{"text_format":"1","workbook":"xlsx","n_sheets":31,"sheets":["Cover","FullToolOverview","1.LanguagePreferences","2.IntendedUse","3.FurtherPreferences","SelectedToolsDescriptions","SelectedTools_DecisionMatrix","ToolSummary&Matching","asPECT","Athena","DuboCalc","Ecochain","Ecorce_M","GreenDOT","Klimatkalkyl","LCC_AM_QM","LCCA_original_and_express","LCE4ROADS","LICCER","OpenLCA","PaLATE","RealCost_LCCA_FHWA","SEVE","SimaPro","SMART_SPP","VTTI_UC_Pavement_LCA","NAPA_EPD_tool","Gabi","EmptyTemplate","Admin","Styles"],"not_rendered":{"charts":0,"images":1,"macros":1,"external_links":0,"defined_names":30,"comments":0,"pivot_tables":0},"unopened":[],"bounds":{"document_bytes":16777216,"sheet_cells":100000,"rows_first":2000,"rows_last":500,"rows_between":2000,"halvings":0,"cell_chars":16384,"cell_head_chars":4096},"cells_cut":0,"cells_raw":0,"read":"whole","date_system":"1900"}

{"sheet":"Cover","index":0,"n_rows":40,"n_cols":4,"rows_kept":40,"cut":false,"hidden":false,"merged":[[31,2,31,3],[32,2,32,3]]}
[]
[]
[]
[]
[null,"CEDR Sustainability Compass"]
[]
[null,"Description"]
[]
[null,{"$f":"\"This tool contains information about \"&TotalToolsCount&\" (LCA) tools and sustainability databases.\"","v":"This tool contains information about 20 (LCA) tools and sustainability databases."}]
[null,"For each tool or database a factsheet with information is available, which can be accessed through the Full Tool Overview Page."]
[]
[null,"The aim of this tool is:"]
[null,"1. To create an overview of all available tools and datasets for sustainability assessments of pavements, including descriptions of their characteristics."]
[null,"2. To help NRAs to find the best tool for a certain situation, based on the intended use and preferences."]
[]
[null,"Instructions"]
[]
[null,"- Use the navigation buttons at the top of each page to navigate through the tool."]
[null,"- The page 'Full Tool Overview' can be used to access all tool factsheet."]
[null,"- The tool contains three steps to find the most suitable tools."]
[null,null,"1. Language Preferences"]
[null,null,"2. Intended Use"]
[null,null,"3. Further Preferences."]
[null,"- Before starting a new selection process, you can use the button to reset the inputs in all 3 steps (note: this cannot be undone!)."]
[null,"- Go through each of the three steps to find the most suitable tool for your need."]
[null,"- After completing the inputs results can be seen through the pages ' Results Tool Descriptions' and 'Results Decision Matrix' "]
[]
[null,"Details"]
[]
[null,"Contact 1","Karlien Wouters","karlien.wouters@tno.nl"]
[null,"Contact 2","Elisabeth Keijzer","elisabeth.keijzer@tno.nl"]
[null,"Version","3.0"]
[null,"Date","14 July 2021"]
[]
[]
[]
[]
["[Hidden Row]"]
["[Hidden Row]"]
["[Hidden Row]"]

{"sheet":"FullToolOverview","index":1,"n_rows":31,"n_cols":6,"rows_kept":31,"cut":false,"hidden":false,"merged":[]}
[null,null,null,null,null,"[Hidden column]"]
[]
[]
[]
[null,"LCA Tool Overview"]
[null,"This page gives an overview of all LCA tools included in the Sustainability Compass."]
[null,null,null,null,null,"Sheet address (cell below must remain empty!)"]
[null,"#","Tool Name","Short Description","Navigation"]
[null,1,{"$f":"IF(INDEX(SummaryTable_ToolName,$B9)=0,\"\",INDEX(SummaryTable_ToolName,$B9))","v":"asPECT"},{"$f":"IF($C9=\"\",\"\",INDEX(SummaryTable_Data,MATCH(D$8,SummaryTable_DataType,0),MATCH($C9,SummaryTable_ToolName,0)))","v":"asPECT is a tool developed by the Transport Research Laboratory. asPECT estimates CO2e emissions from asphalt paving processes in a cradle to gate scenario, and has been designed to meet the specifications in the UK standard PAS 2050. It can be used by producers of road materials, designers and contractors to calculate carbon dioxide equivalent (CO2e) emissions associated with bitumen bound mixtures. This tool does not provide default asphalt mixtures, therefore the user must input all the information on asphalt production him/herself. For instance, only the use of primary data for aggregates and filler is permitted. It is also possible to model the use of recycled asphalt, in this case the benefits are attributed to the user of the recycled asphalt. "},"Go to information sheet",{"$f":"IF(INDEX(SummaryTable_SheetName,$B9)=0,\"\",INDEX(SummaryTable_SheetName,$B9))","v":"asPECT"}]
[null,2,{"$f":"IF(INDEX(SummaryTable_ToolName,$B10)=0,\"\",INDEX(SummaryTable_ToolName,$B10))","v":"Athena Pavement LCA"},"The software was developed by ement Association of Canada and Athena Institute and covers Canada and USA context. It includes a large equipment and materials database drawn from the Athena Institute, the US LCI Database, and EcoInvent, including 50 roadway designs. Three types of pavement are available, flexible (asphalt), rigid (concrete) and reinforcing steel. Moreover all data is generally less than 10 years old. The user has flexibility to specify unique pavement systems – sub-base and base granular materials as well as hot and warm mix asphalt and a host of user-specified concrete mix designs. Roadway lifespan is variable and dictates rehabilitation events such as scheduled resurfacing. Results are reported on a gross roadway surface area basis. Results are reported consistently with the US EPA TRACI methodology. Life Cycle Cost Analysis (LCCA) is available on the web based version and a Cost Item Reference Library has been created for Ontario and Quebec roadways using data from Applied Research Associates (ARA). Regarding uncertainties, when comparing different systems the developers recommend to consider a 15% margin of error.","Go to information sheet",{"$f":"IF(INDEX(SummaryTable_SheetName,$B10)=0,\"\",INDEX(SummaryTable_SheetName,$B10))","v":"Athena"}]
[null,3,{"$f":"IF(INDEX(SummaryTable_ToolName,$B11)=0,\"\",INDEX(SummaryTable_ToolName,$B11))","v":"Dubocalc"},"DuboCalc is a tool developed by the Dutch NRA. With DuboCalc, road designers can calculate environmental profiles of road infrastructure design alternatives. The tool uses envrionmental profiles (EPDs) of building products (from the Dutch National Environmental Database) and calculates the environmental peformance of road infrastructure projects in line with the SBK Bepalingsmethode (Dutch EPD guideline, which is extended version of EN15804) . The output of the tool, expressed in environmental costs (shadowprices, “MKI”) is used in green procurement (\"MEAT\" procedures). \nData older than 5 years has to be updated, otherwise it is withdrawn from the database.","Go to information sheet",{"$f":"IF(INDEX(SummaryTable_SheetName,$B11)=0,\"\",INDEX(SummaryTable_SheetName,$B11))","v":"Dubocalc"}]
[null,4,{"$f":"IF(INDEX(SummaryTable_ToolName,$B12)=0,\"\",INDEX(SummaryTable_ToolName,$B12))","v":"Ecochain"},"EcoChain is an online sustainability data management platform that enables to quantify the full environmental performance of an entire product portfolio through full LCA/EPD. It provides insights into many sustainability drivers, such as energy efficiency, raw material use and process efficiency. All life cycle stages are covered, from raw material mining to waste diposal as described on EN15804. The two main databases available in Ecochain are Ecoinvent and the Nationale Milieu Database (NMD). Ecoinvent is the largest LCA database available founded by several institutes of the ETH Domain and by Agroscope. The Nationale Milieu Database (NMD) is a LCA database focused on the construction sector in the Netherlands. The tool is compatble wit hISO 14040/44, ISO 14021/25 compliance, EU Energy Efficiency Directive EED, ISO 14067, ISO 14001 data framework, EN 15804, ISO 50001 data framework, PAS 2050 and GRI data framework environment, making it suitable to verify environmental claims. Useful for desgin, planning and tendering/procurement phases. Green aphalt datasets such as asphalt with RAP content and WMA are present in the database.","Go to information sheet",{"$f":"IF(INDEX(SummaryTable_SheetName,$B12)=0,\"\",INDEX(SummaryTable_SheetName,$B12))","v":"Ecochain"}]
[null,5,{"$f":"IF(INDEX(SummaryTable_ToolName,$B13)=0,\"\",INDEX(SummaryTable_ToolName,$B13))","v":"Ecorce M"},"The software provides a robust assessment for calculating a set of mid-point indicators in the framework of LCA for road construction and maintenance. The database available in Ecorce was gathered from scientific literature and validated during standard review processes. To generate the impact assessment the user is required to input volumetric data, equipment type (e.g. roller, paver, etc.), layer composition data, the type of mixing plant, and the transport distances and modes. Ecorce deals specially with the following types of works: construction and structural aintenance of pavements on road corridors, installation of foundation layer, preparation of the upper part of earthworks and construction of fills. The user is required to model each layer of the pavement what makes possible to compare not only the materials used in a given layer but also different pavement structures with several layers. The results are provided in terms of mid-point categories in several screens and tables. The impact assessment is done using the CML 2001 impact assessment method.","Go to information sheet",{"$f":"IF(INDEX(SummaryTable_SheetName,$B13)=0,\"\",INDEX(SummaryTable_SheetName,$B13))","v":"Ecorce_M"}]
[null,6,{"$f":"IF(INDEX(SummaryTable_ToolName,$B14)=0,\"\",INDEX(SummaryTable_ToolName,$B14))","v":"GreenDOT"},"GreenDOT calculates carbon dioxide (CO2) emissions from the operations, construction, and maintenance activities of state Deparments of Transportation (DOTs). GreenDOT is designed to calculate emissions for geographical areas ranging from a single project to an entire state, and over time periods ranging from one day to several years. The two most likely uses of the tool are to calculate annual agency-wide emissions or to calculate emissions related to a specific project, covering a period of days or years. The database in the tool consists of primary data from projects and research from Master's students. It is possible to model different ratios for the asphalt mixes, including the possibility of including RAP and choose between Hot-or warm mix asphalt. The tool does not require a large amount of inputs from the user but in turn is also not very flexible when it comes to adapting the materials included in the tool. ","Go to information sheet",{"$f":"IF(INDEX(SummaryTable_SheetName,$B14)=0,\"\",INDEX(SummaryTable_SheetName,$B14))","v":"GreenDOT"}]
[null,7,{"$f":"IF(INDEX(SummaryTable_ToolName,$B15)=0,\"\",INDEX(SummaryTable_ToolName,$B15))","v":"Klimatkalkyl"},"This tool developed by the Swedish Transport Administration allows to make climate calculations that show climate impact and energy use for the construction, operation and maintenance of roads and railways, and for basic road contracts, from a life cycle perspective.  The results are presented in terms of green house gases emissions (CO2 eq.) and energy use. This tool is intended for use during tender procedures by the swedish road authority and contractors. The tool does contain EcoInvent data and an own database that can be used for calculating the carbon footprint of a road/pavement already in the system, for instance  cubic metres of concrete per square metre of bridge, but also allows the input of project specific data.","Go to information sheet",{"$f":"IF(INDEX(SummaryTable_SheetName,$B15)=0,\"\",INDEX(SummaryTable_SheetName,$B15))","v":"Klimatkalkyl"}]
[null,8,{"$f":"IF(INDEX(SummaryTable_ToolName,$B16)=0,\"\",INDEX(SummaryTable_ToolName,$B16))","v":"LCC AM-QM"},"The tool allows to calculate Total Costs of Ownership (TCO), focusing on finding out what your investment will cost during its entire life cycle. It takes into account composed interest effects, investments, replacements, maintenance, general costs, production levels, taxes and a myriad of other costs than can be entered manually or using automation. This tool does not perform environmental performance assessment and therefore delivers results in terms of costs only.  It is possible to do Quantitative Analysis on the recorded data in your Maintenance management system (CMMS) to provide aging information about your assets and installations. among others. The software is developped and maintained by S&G Asset Management\nResults are presented as total costs per yer or over the whole life cycle of an asset.\nThere is no background database with asphalt or road data available.","Go to information sheet",{"$f":"IF(INDEX(SummaryTable_SheetName,$B16)=0,\"\",INDEX(SummaryTable_SheetName,$B16))","v":"LCC_AM_QM"}]
[null,9,{"$f":"IF(INDEX(SummaryTable_ToolName,$B17)=0,\"\",INDEX(SummaryTable_ToolName,$B17))","v":"LCCA original and express"},"LCCA original and express versions are life cycle costing tools developped according to the principles recommended by the Federal Highway Administration (FHWA) to compare the economics of alternative designs for a given road project to compare the economics of alternative designs for a given road project. It calculates the net present value of different pavement alternatives using either deterministic or probabilistic analyses as described in FHWA Publication No. FHWA-SA-98-079. It is maintained by Asphalt Pavement Alliance. Costs can be calculated for the life cycle of an asset from the initial construction to the demolition and removal phase. Results are presented in terms of In terms of net present value and discount rates. It is possible to model \nDoes the tool have a database in the background with data the user can use?\nIs the tool compatible with international sustainability standards?\nFor which phase of a road administration is this tool useful? (Desgin, planning, tendering/procurement, monitoring/maintenance?)","Go to information sheet",{"$f":"IF(INDEX(SummaryTable_SheetName,$B17)=0,\"\",INDEX(SummaryTable_SheetName,$B17))","v":"LCCA_original_and_express"}]
[null,10,{"$f":"IF(INDEX(SummaryTable_ToolName,$B18)=0,\"\",INDEX(SummaryTable_ToolName,$B18))","v":"LCE4ROADS"},"LCE4Roads tool integrates the certification methodology developed for road products and infrastructures alongside the LCE4Roads project allowing the evaluation of the overall performance of a road according to the Key Performance Indicators (KPIs) selected. The tool is able to model and calculate the impact of the materials and activities involved in all phases of its life cycle (design, construction, use, maintenance and final disposal) considering different perspectives (environmental, economic, social and technical). The software comes with a pre-loaded database based on EcoInvent, literature research and primary data collection, whic offers several machinery datasets, typical asphalt mixes, energy usage from different sources and country mixes and other materials used in the EU. It is also possible to add custom data and use in the projects but it is not possible to change data available in the library. The results are delivered in chosen indicators and a certificate may be emitted and exported to a PDF file.","Go to information sheet",{"$f":"IF(INDEX(SummaryTable_SheetName,$B18)=0,\"\",INDEX(SummaryTable_SheetName,$B18))","v":"LCE4ROADS"}]
[null,11,{"$f":"IF(INDEX(SummaryTable_ToolName,$B19)=0,\"\",INDEX(SummaryTable_ToolName,$B19))","v":"Life Cycle Considerations in EIA of Road Infrastructure - LICCER"},"LICCER was a research project of the cross-border funded joint research programme “ENR2011 ENERGY – Sustainability and Energy Efficient Management of Roads”. The model consists of guidelines, based on existing tools and methodologies for Life Cycle Assessment of road infrastructure fully integrating modelling of road elements (i.e. road, bridges and tunnels). The model aim is to support decision-making in the early stage of transport planning and is based on existing tools and methodologies for Life Cycle Assessment of road infrastructure. Results are calculated in terms of cumulative energy consumption and GHG emissions. The interface is an excel based spreadsheet. The LICCER guidelines and tool do not provide a database in itself since other existing tools are used.","Go to information sheet",{"$f":"IF(INDEX(SummaryTable_SheetName,$B19)=0,\"\",INDEX(SummaryTable_SheetName,$B19))","v":"LICCER"}]
[null,12,{"$f":"IF(INDEX(SummaryTable_ToolName,$B20)=0,\"\",INDEX(SummaryTable_ToolName,$B20))","v":"OpenLCA"},"openLCA is a general LCA tool developped by GreenDelta which is provided free of charge.\nTo make use of paid databases, such as EcoInvent, the users should purchase a license from that database from the openLCA nexus website.\nWith openLCA users can calculate the environmental performance of any type of product, including asphalt and other materials for road infrastructure. The software does not provide any databases by default, but a great variety of paid and free of charge databases is available. The results are delivered per impact category of the chosen calculation methodology in the correspondent unit. This tool is used by many universities, organizations and some private companies for their LCA studies. There are no pre-defined models available which means that the user is required to input data for the whole model and make all design decisions on its own. ","Go to information sheet",{"$f":"IF(INDEX(SummaryTable_SheetName,$B20)=0,\"\",INDEX(SummaryTable_SheetName,$B20))","v":"OpenLCA"}]
[null,13,{"$f":"IF(INDEX(SummaryTable_ToolName,$B21)=0,\"\",INDEX(SummaryTable_ToolName,$B21))","v":"PaLATE"},"PaLATE is a life cycle costing and life cycle assessment tool developped by members of the University of California, Berkeley.\nThe tool makes the assessment of materials production, construction and maintenance for road pavements and includes emissions from specific equipment use and life cycle costing results including a discount rate. The LCA results are provided in terms of emissions rather than impact categories, apart from that the tool generates graphs showing the results for LCC and LCA. This tool is not compatible with EPD and CWA 17089 standards and considers the USA context for calculations, which are performed using the CML 2001 impact assessment method. The data available in this tool comes from the Carnegie Mellon University EIO-LCA software and the Transportation Energy Data Book. ","Go to information sheet",{"$f":"IF(INDEX(SummaryTable_SheetName,$B21)=0,\"\",INDEX(SummaryTable_SheetName,$B21))","v":"PaLATE"}]
[null,14,{"$f":"IF(INDEX(SummaryTable_ToolName,$B22)=0,\"\",INDEX(SummaryTable_ToolName,$B22))","v":"Real Cost LCCA - FHWA"},"RealCost was created to provide an instructional tool for pavement design decisionmakers who want to learn about LCCA.allowing to investigate the effects of cost, service life, and economic inputs on life-cycle cost and to provide an actual tool for pavement designers, to incorporate life-cycle costs into pavement investment decisions. The software calculates life-cycle values for agency and user costs associated with construction and rehabilitation. Results are presented in terms of total costs and costs for ageny and user. This tool is useful for planning and tendering/procurement phases.","Go to information sheet",{"$f":"IF(INDEX(SummaryTable_SheetName,$B22)=0,\"\",INDEX(SummaryTable_SheetName,$B22))","v":"RealCost_LCCA_FHWA"}]
[null,15,{"$f":"IF(INDEX(SummaryTable_ToolName,$B23)=0,\"\",INDEX(SummaryTable_ToolName,$B23))","v":"Système d’Evaluation des Variantes Environnementales (SEVE)"}," SEVE is an internet based tool, widely used by industries in France and has been officially recognized by the French government as a tool for evaluating bids in the frame of call for tender, allowing equivalent technical solutions for road maintenance works or building works to be compared on the same level regarding environmental claims. During a call for tenders, the users can enter parameters for each aspect of the project, namely: nature of the layers, constituents, condition of manufacture of the pavement, composition of the application workshops, distances and modes of transport. It is not possible to calculate the environmental impacts of a construction site in an absolute way with this tool and therefore it is not suitable for carrying out a greenhouse gas emissions assessment. The tool is associated with a database of materials, equipment, products, ... common to all users and a base of formulas (concrete, asphalt) specific to each manufacturing station (bituminous materials production tools or concrete). SEVE can thus calculate the environmental indicators of the projects according to the specific environmental cost of the resources present in these bases. This specific cost is calculated according to several criteria: Distance and type of transport from the raw materials to the item Type of fuel Asphalt temperature Percentage of aggregates added to the formula This database is managed independently of the part of the software devolved to the calculations of the environmental costs of the basic solutions and variants. The result is delivered in terms of the specific environmental cost of the resources present in the database which is calculated based on 9 indicators.","Go to information sheet",{"$f":"IF(INDEX(SummaryTable_SheetName,$B23)=0,\"\",INDEX(SummaryTable_SheetName,$B23))","v":"SEVE"}]
[null,16,{"$f":"IF(INDEX(SummaryTable_ToolName,$B24)=0,\"\",INDEX(SummaryTable_ToolName,$B24))","v":"SimaPro"},"SimaPro is a general LCA tool developed by Pré Consultants.\nWith simaPro users can calculate the environmental performance of any type of product, including asphalt and other materials for road infrastructure. The software provides by default different databases, such as EcoInvent, Agri-footprint, ELCD and others, for the user to  design the product's life cycle and calculate it's environmental performance. The results are delivered per impact category of the chosen calculation methodology in the correspondent unit. This tool is used by many universities, governmental organizations and private companies for their LCA studies.","Go to information sheet",{"$f":"IF(INDEX(SummaryTable_SheetName,$B24)=0,\"\",INDEX(SummaryTable_SheetName,$B24))","v":"SimaPro"}]
[null,17,{"$f":"IF(INDEX(SummaryTable_ToolName,$B25)=0,\"\",INDEX(SummaryTable_ToolName,$B25))","v":"SMART SPP"},"SMART SPP is an excel based calculation tool developed by Ecoinstitut Barcelona and Öko-Institut e.V. with support of ICLEI – Local Governments for Sustainability within the IEE funded project \"SMART SPP - innovation through sustainable procurement\". It has been developed to help you calculate the life cycle costs (LCC) and important emissions (CO2, CO2eq, NOx, SO2, NMHC and PM) of different products, work and services to assist in procurement decision-making. It has been particularly  designed to support decision making when tendering sustainable and innovative products. The tool accounts for all of the costs that will incur during the lifetime of the product, work or service and its related emissions. No database containing datasets relevant to model the life cycle of a road is included in the tool apart from lists of emission factors for different fuels, thus, to calculate the LCC and emissions the user should input the information of embeded emissions for a product manually (to obtain these, they should be calculated with the help of another tool) and provide information about energy usage (source and amount) during the implementation phase. ","Go to information sheet",{"$f":"IF(INDEX(SummaryTable_SheetName,$B25)=0,\"\",INDEX(SummaryTable_SheetName,$B25))","v":"SMART_SPP"}]
[null,18,{"$f":"IF(INDEX(SummaryTable_ToolName,$B26)=0,\"\",INDEX(SummaryTable_ToolName,$B26))","v":"VTTI/UC Pavement LCA Tool"},"The VTTI/UC asphalt pavement LCA tool is a project-level pavement LCA tool that estimates the environmental burdens associated with materials extraction and production, construction, maintenance and rehabilitation (M&R), transportation of materials, work-zone (WZ) traffic management, usage, and end-of-life (EOL) phases of the life cycle of a flexible road pavement located in the United States. This tools uses the TRACI 2.0 impact assessment method to calculate the environmental performance of the pavement. For the database, data found in literature was used.","Go to information sheet",{"$f":"IF(INDEX(SummaryTable_SheetName,$B26)=0,\"\",INDEX(SummaryTable_SheetName,$B26))","v":"VTTI_UC_Pavement_LCA"}]
[null,19,{"$f":"IF(INDEX(SummaryTable_ToolName,$B27)=0,\"\",INDEX(SummaryTable_ToolName,$B27))","v":"Emerald EPD tool"},"The emarald Ecolabel tool (developed by NAPA) is a tool designed for asphalt producers that creates plant specific and mix specific EPDs that are in line with the LCA process. The LCA process underlining the EPD measures all the environmental impacts associated with all the steps of mix production until the mix leaves the production facility. The emerald Eco label tool makes it easy for a company to input data about what goes into an asphalt mixture and then generate a credible, transparent EPD that summarises the environmental impacts of the mixture. The EPD can also be used by the company to highlight areas for optimisation within the manufacturing process. The emerald EPD tool is particularly helpful to improve fuel use and material selection during the production process.","Go to information sheet",{"$f":"IF(INDEX(SummaryTable_SheetName,$B27)=0,\"\",INDEX(SummaryTable_SheetName,$B27))","v":"NAPA_EPD_tool"}]
[null,20,{"$f":"IF(INDEX(SummaryTable_ToolName,$B28)=0,\"\",INDEX(SummaryTable_ToolName,$B28))","v":"Gabi"},"Gabi is a general LCA tool developed and maintained by Sphera Solutions GmbH.\nWith Gabi users can calculate the environmental performance of any type of product, including asphalt and other materials for road infrastructure. The software provides by default different databases, such as EcoInvent, NREL, Environmental Footprint database and others, for the user to  design the product's life cycle and calculate it's environmental performance. The results are delivered per impact category of the chosen calculation methodology in the correspondent unit. This tool is used by many universities, governmental organizations and private companies for their LCA studies.","Go to information sheet",{"$f":"IF(INDEX(SummaryTable_SheetName,$B28)=0,\"\",INDEX(SummaryTable_SheetName,$B28))","v":"Gabi"}]
[null,21,{"$f":"IF(INDEX(SummaryTable_ToolName,$B29)=0,\"\",INDEX(SummaryTable_ToolName,$B29))","v":""},"","Go to information sheet",{"$f":"IF(INDEX(SummaryTable_SheetName,$B29)=0,\"\",INDEX(SummaryTable_SheetName,$B29))","v":""}]
[null,22,{"$f":"IF(INDEX(SummaryTable_ToolName,$B30)=0,\"\",INDEX(SummaryTable_ToolName,$B30))","v":""},"","Go to information sheet",{"$f":"IF(INDEX(SummaryTable_SheetName,$B30)=0,\"\",INDEX(SummaryTable_SheetName,$B30))","v":""}]
[null,23,{"$f":"IF(INDEX(SummaryTable_ToolName,$B31)=0,\"\",INDEX(SummaryTable_ToolName,$B31))","v":""},"","Go to information sheet",{"$f":"IF(INDEX(SummaryTable_SheetName,$B31)=0,\"\",INDEX(SummaryTable_SheetName,$B31))","v":""}]

{"sheet":"1.LanguagePreferences","index":2,"n_rows":21,"n_cols":5,"rows_kept":21,"cut":false,"hidden":false,"merged":[]}
[]
[]
[]
[]
[null,null,null,null,"Step 1: Specify language requirements"]
[null,"[Hidden column] ","[Hidden column] ","[Hidden column] "]
[]
[null,null,"Current Selection",null,"Which tool languages do you want to include?"]
[null,"PrefLang_Field","PrefLang_CurrentSelection",null,"Select all allowed languages."]
[null,"English",true]
[null,"Chinese",true]
[null,"Dutch",true]
[null,"French",true]
[null,"German",true]
[null,"Hungarian",true]
[null,"Italian",true]
[null,"Spanish",true]
[null,"Swedish",true]
[]
[]
[null,null,null,null,{"$f":"\"Result: \"&ApplicableToolsCount_Step1&\" out of \"&TotalToolsCount&\" LCA tools are suitable for your language preferences.\"","v":"Result: 20 out of 20 LCA tools are suitable for your language preferences."}]

{"sheet":"2.IntendedUse","index":3,"n_rows":49,"n_cols":7,"rows_kept":49,"cut":false,"hidden":false,"merged":[]}
[]
[]
[]
[]
[null,null,null,null,null,null,"Step 2: Specify intented use"]
[null,"[Hidden column] ","[Hidden column] ","[Hidden column] ","[Hidden column] ","[Hidden column] "]
[]
[]
[]
[null,null,null,null,null,null,"What type of user are you?"]
[null,null,null,"Current Selection","Default input",null,"Select one or more. Leave empty if irrelevant."]
[null,null,"IntUse_Field","IntUse_CurrentSelection","IntUse_Default"]
[null,null,"Road owner ",false,false]
[null,null,"Contracting company",false,false]
[null,null,"Product developer",false,false]
[null,null,"Road pavement activities (layers of pavement)",false,false]
[null,null,"Road pavement materials (asphalt/concrete)",false,false]
[null,null,"Planning phase",false,false,null,"Are you focusing on road pavements or road pavement components? (e.g. asphalt mixtures)"]
[null,null,"Acquisition / Procurement procedure",false,false,null,"Select one or more. Leave empty if irrelevant."]
[null,null,"Realisation",false,false]
[null,null,"Monitoring",false,false]
[null,null,"Design an asset and evaluate/optimize sustainability",false,false]
[null,null,"Analyze and/or optimize product sustainability",false,false]
[null,null,"Procurement procedures",false,false]
[null,null,"Monitoring of assets",false,false,null,"When do you want to use the tool?"]
[null,null,"Verification of sustainability claims (EPD)",false,false,null,"Select one or more. Leave empty if irrelevant."]
[]
[]
[]
[]
[]
[]
[]
[]
[]
[null,null,null,null,null,null,"For which purpose(s) do you want to use the tool?"]
[null,null,null,null,null,null,"Select one or more. Leave empty if irrelevant."]
[]
[]
[]
[]
[]
[]
[]
[]
[]
[]
[]
[null,null,null,null,null,null,{"$f":"\"Result: \"&ApplicableToolsCount_Step2&\" out of \"&ApplicableToolsCount_Step1&\" language-appropriate LCA tools are suitable for your intended use.\"","v":"Result: 20 out of 20 language-appropriate LCA tools are suitable for your intended use."}]

{"sheet":"3.FurtherPreferences","index":4,"n_rows":41,"n_cols":7,"rows_kept":41,"cut":false,"hidden":false,"merged":[]}
[]
[]
[]
[]
[null,null,"Step 3: Specify further requirements and preferences"]
[null,null,"In this step you can add futher requirements and preferences by using the drop-down menus. These will be treated as follows:"]
[null,null,"- Requirements: LCA Tools that do not meet the requirement will be excluded from there results."]
[null,null,"- Preference: Applicable tools will be ranked based on the amount of preferences met by te tool."]
[null,null,"You can skip any elements that are not important to you."]
[]
["[Hidden row]",null,"ReqPref_Field1","ReqPref_Input1",null,"ReqPref_Field2","ReqPref_Input2"]
["[Hidden row]",null,null,"ReqPref_MaxCost"]
["[Hidden row]",null,null,"ReqPref_CostPref"]
[null,null,"What are your preferences",null,null,"Which main impacts do you prefer to be included?"]
[null,null,"What is the maximum allowed user cost?",null,null,"Environmental"]
[null,null,"Is this a requirement or a preference?",null,null,"Costs"]
[null,null,null,null,null,"Social"]
[null,null,"What are your preferences regarding country coverage?"]
[null,null,"World",null,null,"Which product categories do you prefer to be included?"]
[null,null,"Canada",null,null,"Asphalt"]
[null,null,"Europe",null,null,"Concrete"]
[null,null,"France",null,null,"Groundworks"]
[null,null,"Netherlands",null,null,"Roads"]
[null,null,"Sweden",null,null,"Civil works"]
[null,null,"USA",null,null,"Railways"]
[null,null,null,null,null,"Waterways"]
[null,null,"Which life cycle stages do you prefer to be included?"]
[null,null,"A1 - Extraction and pre-processing of raw materials",null,null,"Do you prefer weighing to be included?"]
[null,null,"A2 - Transport to producer",null,null,"Weighing"]
[null,null,"A3 - Production"]
[null,null,"A4 - Transport to building location",null,null,"Which scoping aspects do you prefer to be included?"]
[null,null,"A5 - Building phase and implementation",null,null,"Lifetime expectation info"]
[null,null,"B - Use stage + maintenance",null,null,"Infrastructure (capital goods included)"]
[null,null,"C1 - Demolition / removal",null,null,"Discount rate (for LCC)"]
[null,null,"C2 - Transport to waste processing facility",null,null,"Reviewed data"]
[null,null,"C3 - Waste processing",null,null,"Uncertainty information "]
[null,null,"C4 - Final waste destination"]
[null,null,"D - Recycling"]
[]
[]
[null,null,{"$f":"\"Result: \"&ApplicableToolsCount_Step3&\" match your requirements. These will be ranked based on your preferences.\"","v":"Result: 20 match your requirements. These will be ranked based on your preferences."}]

{"sheet":"SelectedToolsDescriptions","index":5,"n_rows":35,"n_cols":6,"rows_kept":35,"cut":false,"hidden":false,"merged":[]}
[null,null,null,null,null,"[Hidden column]"]
[]
[]
[]
[null,"Results - Selected LCA tools - Descriptions"]
[null,"This overview shows all LCA tools applicable to your requirements. Results are ranked based on your preferences. "]
[]
[]
[]
[]
[null,null,null,null,null,"Sheet address (cell below must remain empty!)"]
[null,"Rank","Tool Name","Short Description","Navigation"]
[null,1,{"$f":"IF(ISNA(MATCH($B13,Result_ToolRanking,0)),\"\",INDEX(SummaryTable_ToolName,MATCH($B13,Result_ToolRanking,0)))","v":"asPECT"},{"$f":"IF($C13=\"\",\"\",INDEX(SummaryTable_Data,MATCH(D$12,SummaryTable_DataType,0),MATCH($C13,SummaryTable_ToolName,0)))","v":"asPECT is a tool developed by the Transport Research Laboratory. asPECT estimates CO2e emissions from asphalt paving processes in a cradle to gate scenario, and has been designed to meet the specifications in the UK standard PAS 2050. It can be used by producers of road materials, designers and contractors to calculate carbon dioxide equivalent (CO2e) emissions associated with bitumen bound mixtures. This tool does not provide default asphalt mixtures, therefore the user must input all the information on asphalt production him/herself. For instance, only the use of primary data for aggregates and filler is permitted. It is also possible to model the use of recycled asphalt, in this case the benefits are attributed to the user of the recycled asphalt. "},"Go to information sheet",{"$f":"IF($C13=\"\",\"\",INDEX(SummaryTable_SheetName,MATCH($C13,SummaryTable_ToolName,0)))","v":"asPECT"}]
[null,2,"Athena Pavement LCA",{"$f":"IF($C14=\"\",\"\",INDEX(SummaryTable_Data,MATCH(D$12,SummaryTable_DataType,0),MATCH($C14,SummaryTable_ToolName,0)))","v":"The software was developed by ement Association of Canada and Athena Institute and covers Canada and USA context. It includes a large equipment and materials database drawn from the Athena Institute, the US LCI Database, and EcoInvent, including 50 roadway designs. Three types of pavement are available, flexible (asphalt), rigid (concrete) and reinforcing steel. Moreover all data is generally less than 10 years old. The user has flexibility to specify unique pavement systems – sub-base and base granular materials as well as hot and warm mix asphalt and a host of user-specified concrete mix designs. Roadway lifespan is variable and dictates rehabilitation events such as scheduled resurfacing. Results are reported on a gross roadway surface area basis. Results are reported consistently with the US EPA TRACI methodology. Life Cycle Cost Analysis (LCCA) is available on the web based version and a Cost Item Reference Library has been created for Ontario and Quebec roadways using data from Applied Research Associates (ARA). Regarding uncertainties, when comparing different systems the developers recommend to consider a 15% margin of error."},"Go to information sheet","Athena"]
[null,3,"Dubocalc","DuboCalc is a tool developed by the Dutch NRA. With DuboCalc, road designers can calculate environmental profiles of road infrastructure design alternatives. The tool uses envrionmental profiles (EPDs) of building products (from the Dutch National Environmental Database) and calculates the environmental peformance of road infrastructure projects in line with the SBK Bepalingsmethode (Dutch EPD guideline, which is extended version of EN15804) . The output of the tool, expressed in environmental costs (shadowprices, “MKI”) is used in green procurement (\"MEAT\" procedures). \nData older than 5 years has to be updated, otherwise it is withdrawn from the database.","Go to information sheet","Dubocalc"]
[null,4,"Ecochain","EcoChain is an online sustainability data management platform that enables to quantify the full environmental performance of an entire product portfolio through full LCA/EPD. It provides insights into many sustainability drivers, such as energy efficiency, raw material use and process efficiency. All life cycle stages are covered, from raw material mining to waste diposal as described on EN15804. The two main databases available in Ecochain are Ecoinvent and the Nationale Milieu Database (NMD). Ecoinvent is the largest LCA database available founded by several institutes of the ETH Domain and by Agroscope. The Nationale Milieu Database (NMD) is a LCA database focused on the construction sector in the Netherlands. The tool is compatble wit hISO 14040/44, ISO 14021/25 compliance, EU Energy Efficiency Directive EED, ISO 14067, ISO 14001 data framework, EN 15804, ISO 50001 data framework, PAS 2050 and GRI data framework environment, making it suitable to verify environmental claims. Useful for desgin, planning and tendering/procurement phases. Green aphalt datasets such as asphalt with RAP content and WMA are present in the database.","Go to information sheet","Ecochain"]
[null,5,"Ecorce M","The software provides a robust assessment for calculating a set of mid-point indicators in the framework of LCA for road construction and maintenance. The database available in Ecorce was gathered from scientific literature and validated during standard review processes. To generate the impact assessment the user is required to input volumetric data, equipment type (e.g. roller, paver, etc.), layer composition data, the type of mixing plant, and the transport distances and modes. Ecorce deals specially with the following types of works: construction and structural aintenance of pavements on road corridors, installation of foundation layer, preparation of the upper part of earthworks and construction of fills. The user is required to model each layer of the pavement what makes possible to compare not only the materials used in a given layer but also different pavement structures with several layers. The results are provided in terms of mid-point categories in several screens and tables. The impact assessment is done using the CML 2001 impact assessment method.","Go to information sheet","Ecorce_M"]
[null,6,"GreenDOT","GreenDOT calculates carbon dioxide (CO2) emissions from the operations, construction, and maintenance activities of state Deparments of Transportation (DOTs). GreenDOT is designed to calculate emissions for geographical areas ranging from a single project to an entire state, and over time periods ranging from one day to several years. The two most likely uses of the tool are to calculate annual agency-wide emissions or to calculate emissions related to a specific project, covering a period of days or years. The database in the tool consists of primary data from projects and research from Master's students. It is possible to model different ratios for the asphalt mixes, including the possibility of including RAP and choose between Hot-or warm mix asphalt. The tool does not require a large amount of inputs from the user but in turn is also not very flexible when it comes to adapting the materials included in the tool. ","Go to information sheet","GreenDOT"]
[null,7,"Klimatkalkyl","This tool developed by the Swedish Transport Administration allows to make climate calculations that show climate impact and energy use for the construction, operation and maintenance of roads and railways, and for basic road contracts, from a life cycle perspective.  The results are presented in terms of green house gases emissions (CO2 eq.) and energy use. This tool is intended for use during tender procedures by the swedish road authority and contractors. The tool does contain EcoInvent data and an own database that can be used for calculating the carbon footprint of a road/pavement already in the system, for instance  cubic metres of concrete per square metre of bridge, but also allows the input of project specific data.","Go to information sheet","Klimatkalkyl"]
[null,8,"LCC AM-QM","The tool allows to calculate Total Costs of Ownership (TCO), focusing on finding out what your investment will cost during its entire life cycle. It takes into account composed interest effects, investments, replacements, maintenance, general costs, production levels, taxes and a myriad of other costs than can be entered manually or using automation. This tool does not perform environmental performance assessment and therefore delivers results in terms of costs only.  It is possible to do Quantitative Analysis on the recorded data in your Maintenance management system (CMMS) to provide aging information about your assets and installations. among others. The software is developped and maintained by S&G Asset Management\nResults are presented as total costs per yer or over the whole life cycle of an asset.\nThere is no background database with asphalt or road data available.","Go to information sheet","LCC_AM_QM"]
[null,9,"LCCA original and express","LCCA original and express versions are life cycle costing tools developped according to the principles recommended by the Federal Highway Administration (FHWA) to compare the economics of alternative designs for a given road project to compare the economics of alternative designs for a given road project. It calculates the net present value of different pavement alternatives using either deterministic or probabilistic analyses as described in FHWA Publication No. FHWA-SA-98-079. It is maintained by Asphalt Pavement Alliance. Costs can be calculated for the life cycle of an asset from the initial construction to the demolition and removal phase. Results are presented in terms of In terms of net present value and discount rates. It is possible to model \nDoes the tool have a database in the background with data the user can use?\nIs the tool compatible with international sustainability standards?\nFor which phase of a road administration is this tool useful? (Desgin, planning, tendering/procurement, monitoring/maintenance?)","Go to information sheet","LCCA_original_and_express"]
[null,10,"LCE4ROADS","LCE4Roads tool integrates the certification methodology developed for road products and infrastructures alongside the LCE4Roads project allowing the evaluation of the overall performance of a road according to the Key Performance Indicators (KPIs) selected. The tool is able to model and calculate the impact of the materials and activities involved in all phases of its life cycle (design, construction, use, maintenance and final disposal) considering different perspectives (environmental, economic, social and technical). The software comes with a pre-loaded database based on EcoInvent, literature research and primary data collection, whic offers several machinery datasets, typical asphalt mixes, energy usage from different sources and country mixes and other materials used in the EU. It is also possible to add custom data and use in the projects but it is not possible to change data available in the library. The results are delivered in chosen indicators and a certificate may be emitted and exported to a PDF file.","Go to information sheet","LCE4ROADS"]
[null,11,"Life Cycle Considerations in EIA of Road Infrastructure - LICCER","LICCER was a research project of the cross-border funded joint research programme “ENR2011 ENERGY – Sustainability and Energy Efficient Management of Roads”. The model consists of guidelines, based on existing tools and methodologies for Life Cycle Assessment of road infrastructure fully integrating modelling of road elements (i.e. road, bridges and tunnels). The model aim is to support decision-making in the early stage of transport planning and is based on existing tools and methodologies for Life Cycle Assessment of road infrastructure. Results are calculated in terms of cumulative energy consumption and GHG emissions. The interface is an excel based spreadsheet. The LICCER guidelines and tool do not provide a database in itself since other existing tools are used.","Go to information sheet","LICCER"]
[null,12,"OpenLCA","openLCA is a general LCA tool developped by GreenDelta which is provided free of charge.\nTo make use of paid databases, such as EcoInvent, the users should purchase a license from that database from the openLCA nexus website.\nWith openLCA users can calculate the environmental performance of any type of product, including asphalt and other materials for road infrastructure. The software does not provide any databases by default, but a great variety of paid and free of charge databases is available. The results are delivered per impact category of the chosen calculation methodology in the correspondent unit. This tool is used by many universities, organizations and some private companies for their LCA studies. There are no pre-defined models available which means that the user is required to input data for the whole model and make all design decisions on its own. ","Go to information sheet","OpenLCA"]
[null,13,"PaLATE","PaLATE is a life cycle costing and life cycle assessment tool developped by members of the University of California, Berkeley.\nThe tool makes the assessment of materials production, construction and maintenance for road pavements and includes emissions from specific equipment use and life cycle costing results including a discount rate. The LCA results are provided in terms of emissions rather than impact categories, apart from that the tool generates graphs showing the results for LCC and LCA. This tool is not compatible with EPD and CWA 17089 standards and considers the USA context for calculations, which are performed using the CML 2001 impact assessment method. The data available in this tool comes from the Carnegie Mellon University EIO-LCA software and the Transportation Energy Data Book. ","Go to information sheet","PaLATE"]
[null,14,"Real Cost LCCA - FHWA","RealCost was created to provide an instructional tool for pavement design decisionmakers who want to learn about LCCA.allowing to investigate the effects of cost, service life, and economic inputs on life-cycle cost and to provide an actual tool for pavement designers, to incorporate life-cycle costs into pavement investment decisions. The software calculates life-cycle values for agency and user costs associated with construction and rehabilitation. Results are presented in terms of total costs and costs for ageny and user. This tool is useful for planning and tendering/procurement phases.","Go to information sheet","RealCost_LCCA_FHWA"]
[null,15,"Système d’Evaluation des Variantes Environnementales (SEVE)"," SEVE is an internet based tool, widely used by industries in France and has been officially recognized by the French government as a tool for evaluating bids in the frame of call for tender, allowing equivalent technical solutions for road maintenance works or building works to be compared on the same level regarding environmental claims. During a call for tenders, the users can enter parameters for each aspect of the project, namely: nature of the layers, constituents, condition of manufacture of the pavement, composition of the application workshops, distances and modes of transport. It is not possible to calculate the environmental impacts of a construction site in an absolute way with this tool and therefore it is not suitable for carrying out a greenhouse gas emissions assessment. The tool is associated with a database of materials, equipment, products, ... common to all users and a base of formulas (concrete, asphalt) specific to each manufacturing station (bituminous materials production tools or concrete). SEVE can thus calculate the environmental indicators of the projects according to the specific environmental cost of the resources present in these bases. This specific cost is calculated according to several criteria: Distance and type of transport from the raw materials to the item Type of fuel Asphalt temperature Percentage of aggregates added to the formula This database is managed independently of the part of the software devolved to the calculations of the environmental costs of the basic solutions and variants. The result is delivered in terms of the specific environmental cost of the resources present in the database which is calculated based on 9 indicators.","Go to information sheet","SEVE"]
[null,16,"SimaPro","SimaPro is a general LCA tool developed by Pré Consultants.\nWith simaPro users can calculate the environmental performance of any type of product, including asphalt and other materials for road infrastructure. The software provides by default different databases, such as EcoInvent, Agri-footprint, ELCD and others, for the user to  design the product's life cycle and calculate it's environmental performance. The results are delivered per impact category of the chosen calculation methodology in the correspondent unit. This tool is used by many universities, governmental organizations and private companies for their LCA studies.","Go to information sheet","SimaPro"]
[null,17,"SMART SPP","SMART SPP is an excel based calculation tool developed by Ecoinstitut Barcelona and Öko-Institut e.V. with support of ICLEI – Local Governments for Sustainability within the IEE funded project \"SMART SPP - innovation through sustainable procurement\". It has been developed to help you calculate the life cycle costs (LCC) and important emissions (CO2, CO2eq, NOx, SO2, NMHC and PM) of different products, work and services to assist in procurement decision-making. It has been particularly  designed to support decision making when tendering sustainable and innovative products. The tool accounts for all of the costs that will incur during the lifetime of the product, work or service and its related emissions. No database containing datasets relevant to model the life cycle of a road is included in the tool apart from lists of emission factors for different fuels, thus, to calculate the LCC and emissions the user should input the information of embeded emissions for a product manually (to obtain these, they should be calculated with the help of another tool) and provide information about energy usage (source and amount) during the implementation phase. ","Go to information sheet","SMART_SPP"]
[null,18,"VTTI/UC Pavement LCA Tool","The VTTI/UC asphalt pavement LCA tool is a project-level pavement LCA tool that estimates the environmental burdens associated with materials extraction and production, construction, maintenance and rehabilitation (M&R), transportation of materials, work-zone (WZ) traffic management, usage, and end-of-life (EOL) phases of the life cycle of a flexible road pavement located in the United States. This tools uses the TRACI 2.0 impact assessment method to calculate the environmental performance of the pavement. For the database, data found in literature was used.","Go to information sheet","VTTI_UC_Pavement_LCA"]
[null,19,"Emerald EPD tool","The emarald Ecolabel tool (developed by NAPA) is a tool designed for asphalt producers that creates plant specific and mix specific EPDs that are in line with the LCA process. The LCA process underlining the EPD measures all the environmental impacts associated with all the steps of mix production until the mix leaves the production facility. The emerald Eco label tool makes it easy for a company to input data about what goes into an asphalt mixture and then generate a credible, transparent EPD that summarises the environmental impacts of the mixture. The EPD can also be used by the company to highlight areas for optimisation within the manufacturing process. The emerald EPD tool is particularly helpful to improve fuel use and material selection during the production process.","Go to information sheet","NAPA_EPD_tool"]
[null,20,"Gabi","Gabi is a general LCA tool developed and maintained by Sphera Solutions GmbH.\nWith Gabi users can calculate the environmental performance of any type of product, including asphalt and other materials for road infrastructure. The software provides by default different databases, such as EcoInvent, NREL, Environmental Footprint database and others, for the user to  design the product's life cycle and calculate it's environmental performance. The results are delivered per impact category of the chosen calculation methodology in the correspondent unit. This tool is used by many universities, governmental organizations and private companies for their LCA studies.","Go to information sheet","Gabi"]
[null,21,"","","Go to information sheet",""]
[null,22,"","","Go to information sheet",""]
[null,23,"","","Go to information sheet",""]

{"sheet":"SelectedTools_DecisionMatrix","index":6,"n_rows":38,"n_cols":40,"rows_kept":38,"cut":false,"hidden":false,"merged":[[8,5,8,11],[9,5,9,11],[10,5,10,11],[8,12,8,17],[9,12,9,17],[10,12,10,17]]}
[null,null,null,null,null,null,null,null,null,null,null,null,null,null,null,null,null,null,null,null,null,null,null,null,null,null,null,null,null,null,null,null,null,null,null,null,null,null,null,"[Hidden column]"]
[]
[]
[]
[null,"Results - Selected LCA tools - Decision Matrix"]
[null,"This overview shows all LCA tools applicable to your requirements. Results are ranked based on your preferences. "]
[null,"The color coding shows which of your preferences are met by each tool."]
[]
[null,null,null,null,"Legend:","Requirement/Preference",null,null,null,null,null,null,"No Preference"]
[null,null,null,null,null,"Within scope",null,null,null,null,null,null,"Within scope"]
[null,null,null,null,null,"Not within scope",null,null,null,null,null,null,"Not within scope"]
[]
[null,null,null,null,null,"Country coverage",null,null,null,null,null,null,"Life cycle stages",null,null,null,null,null,null,null,null,null,null,"Impacts",null,null,"Product categories",null,null,null,null,null,null,"Scoping aspects",null,null,null,null,null,"Sheet name"]
[null,"Rank","Tool Name","Go To Information Sheet","User costs","World","Canada","Europe","France","Netherlands","Sweden","USA","A1 - Extraction and pre-processing of raw materials","A2 - Transport to producer","A3 - Production","A4 - Transport to building location","A5 - Building phase and implementation","B - Use stage + maintenance","C1 - Demolition / removal","C2 - Transport to waste processing facility","C3 - Waste processing","C4 - Final waste destination","D - Recycling","Environmental","Costs","Social","Asphalt","Concrete","Groundworks","Roads","Civil works","Railways","Waterways","Weighing","Lifetime expectation info","Infrastructure (capital goods included)","Discount rate (for LCC)","Reviewed data","Uncertainty information "]
[null,null,null,"Entered preferences->",{"$f":"IF(ReqPref_MaxCost=0,\"\",ReqPref_MaxCost)","v":""},{"$f":"INDEX(Step3Res_ReqPref,MATCH(F$14,Step3Res_Type,0))","v":""},"","","","","","","","","","","","","","","","","","","","","","","","","","","","","","","","",""]
[null,1,{"$f":"IF(ISNA(MATCH($B16,Result_ToolRanking,0)),\"\",INDEX(SummaryTable_ToolName,MATCH($B16,Result_ToolRanking,0)))","v":"asPECT"},"Go to information sheet",{"$f":"IF($C16=\"\",\"\",INDEX(SummaryTable_Data,MATCH($E$14,SummaryTable_DataType,0),MATCH($C16,SummaryTable_ToolName,0)))","v":"Free"},{"$f":"IF($C16=\"\",\"\",\nIF(INDEX(Step3Res_CountryCheck,MATCH(F$14,Step3Res_CountryName,0),MATCH($C16,Step3Res_ToolName,0))=TRUE(),\"Y\",\"N\"))","v":"N"},"N","Y","N","N","N","N",{"$f":"IF($C16=\"\",\"\",LEFT(INDEX(SummaryTable_Data,MATCH(M$14,SummaryTable_DataType,0),MATCH($C16,SummaryTable_ToolName,0)),1))","v":"Y"},"Y","Y","Y","Y","Y","Y","Y","Y","Y",{"$f":"IF($C16=\"\",\"\",LEFT(INDEX(SummaryTable_Data,MATCH(W$14,SummaryTable_DataType,0),MATCH($C16,SummaryTable_ToolName,0)),1))","v":"N"},"Y","N","N","Y","N","N","N","N","N",{"$f":"IF($C16=\"\",\"\",LEFT(INDEX(SummaryTable_Data,MATCH(AG$14,SummaryTable_DataType,0),MATCH($C16,SummaryTable_ToolName,0)),1))","v":"N"},"N","N","Y","N","Y","N",{"$f":"IF($C16=\"\",\"\",INDEX(SummaryTable_SheetName,,MATCH($C16,SummaryTable_ToolName,0)))","v":"asPECT"}]
[null,2,"Athena Pavement LCA","Go to information sheet",{"$f":"IF($C17=\"\",\"\",INDEX(SummaryTable_Data,MATCH($E$14,SummaryTable_DataType,0),MATCH($C17,SummaryTable_ToolName,0)))","v":"Free"},"N","Y","N","N","N","N","Y","Y","Y","Y","Y","Y","Y","Y","N","N","N","N","Y","Y","N","Y","Y","N","Y","N","N","N","N","N","Y","Y","Y","Y",{"$f":"IF($C17=\"\",\"\",INDEX(SummaryTable_SheetName,,MATCH($C17,SummaryTable_ToolName,0)))","v":"Athena"}]
[null,3,"Dubocalc","Go to information sheet","License, 101-500 euros/year","N","N","N","N","Y","N","N","Y","Y","Y","Y","Y","Y","Y","Y","Y","Y","Y","Y","N","N","Y","Y","Y","Y","Y","Y","Y","Y","Y","Y","Y","Y","N",{"$f":"IF($C18=\"\",\"\",INDEX(SummaryTable_SheetName,,MATCH($C18,SummaryTable_ToolName,0)))","v":"Dubocalc"}]
[null,4,"Ecochain","Go to information sheet","License, >500 euros/year","N","N","Y","N","N","N","N","Y","Y","Y","Y","Y","Y","Y","Y","Y","Y","N","Y","Y","N","Y","Y","Y","Y","Y","Y","Y","Y","N","Y","N","Y","N",{"$f":"IF($C19=\"\",\"\",INDEX(SummaryTable_SheetName,,MATCH($C19,SummaryTable_ToolName,0)))","v":"Ecochain"}]
[null,5,"Ecorce M","Go to information sheet","Free","N","N","N","Y","N","N","N","Y","Y","Y","Y","Y","Y","Y","N","N","N","N","Y","N","N","Y","N","Y","Y","N","N","N","N","N","Y","N","Y","N",{"$f":"IF($C20=\"\",\"\",INDEX(SummaryTable_SheetName,,MATCH($C20,SummaryTable_ToolName,0)))","v":"Ecorce_M"}]
[null,6,"GreenDOT","Go to information sheet","Free","N","N","N","N","N","N","Y","Y","Y","Y","Y","Y","Y","Y","N","N","N","N","Y","N","N","Y","Y","N","Y","N","N","N","N","N","Y","N","N","N",{"$f":"IF($C21=\"\",\"\",INDEX(SummaryTable_SheetName,,MATCH($C21,SummaryTable_ToolName,0)))","v":"GreenDOT"}]
[null,7,"Klimatkalkyl","Go to information sheet","Free","N","N","N","N","N","Y","N","Y","Y","Y","N","Y","Y","Y","N","N","N","Y","Y","N","N","Y","Y","Y","Y","Y","Y","N","N","N","N","N","Y","N",{"$f":"IF($C22=\"\",\"\",INDEX(SummaryTable_SheetName,,MATCH($C22,SummaryTable_ToolName,0)))","v":"Klimatkalkyl"}]
[null,8,"LCC AM-QM","Go to information sheet","License, >500 euros/year","Y","N","N","N","N","N","N","N","N","N","N","Y","Y","Y","N","N","N","N","N","Y","N","N","N","N","N","N","N","N","N","N","Y","N","N","N",{"$f":"IF($C23=\"\",\"\",INDEX(SummaryTable_SheetName,,MATCH($C23,SummaryTable_ToolName,0)))","v":"LCC_AM_QM"}]
[null,9,"LCCA original and express","Go to information sheet","Free","N","N","N","N","N","N","Y","N","N","N","N","Y","Y","N","N","N","N","N","N","Y","N","Y","Y","N","Y","N","N","N","N","N","N","Y","N","N",{"$f":"IF($C24=\"\",\"\",INDEX(SummaryTable_SheetName,,MATCH($C24,SummaryTable_ToolName,0)))","v":"LCCA_original_and_express"}]
[null,10,"LCE4ROADS","Go to information sheet","Free","N","N","Y","N","N","N","N","Y","Y","Y","Y","Y","Y","Y","Y","Y","Y","N","Y","Y","Y","Y","Y","N","Y","Y","N","N","N","N","Y","Y","N","N",{"$f":"IF($C25=\"\",\"\",INDEX(SummaryTable_SheetName,,MATCH($C25,SummaryTable_ToolName,0)))","v":"LCE4ROADS"}]
[null,11,"Life Cycle Considerations in EIA of Road Infrastructure - LICCER","Go to information sheet","Free",{"$f":"IF($C26=\"\",\"\",\nIF(INDEX(Step3Res_CountryCheck,MATCH(F$14,Step3Res_CountryName,0),MATCH($C26,Step3Res_ToolName,0))=TRUE(),\"Y\",\"N\"))","v":"N"},"N","Y","N","N","N","N",{"$f":"IF($C26=\"\",\"\",LEFT(INDEX(SummaryTable_Data,MATCH(M$14,SummaryTable_DataType,0),MATCH($C26,SummaryTable_ToolName,0)),1))","v":"Y"},"Y","Y","Y","Y","Y","Y","Y","Y","Y",{"$f":"IF($C26=\"\",\"\",LEFT(INDEX(SummaryTable_Data,MATCH(W$14,SummaryTable_DataType,0),MATCH($C26,SummaryTable_ToolName,0)),1))","v":"N"},"Y","N","N","Y","Y","Y","Y","Y","Y",{"$f":"IF($C26=\"\",\"\",LEFT(INDEX(SummaryTable_Data,MATCH(AG$14,SummaryTable_DataType,0),MATCH($C26,SummaryTable_ToolName,0)),1))","v":"Y"},"N","N","N","N","N","N",{"$f":"IF($C26=\"\",\"\",INDEX(SummaryTable_SheetName,,MATCH($C26,SummaryTable_ToolName,0)))","v":"LICCER"}]
[null,12,"OpenLCA","Go to information sheet","Free","Y","N","N","N","N","N","N","Y","Y","Y","Y","Y","Y","Y","Y","Y","Y","Y","Y","Y","Y","Y","Y","Y","Y","Y","Y","Y","Y","Y","Y","Y","Y","Y",{"$f":"IF($C27=\"\",\"\",INDEX(SummaryTable_SheetName,,MATCH($C27,SummaryTable_ToolName,0)))","v":"OpenLCA"}]
[null,13,"PaLATE","Go to information sheet","Free","N","N","N","N","N","N","Y","Y","Y","Y","Y","Y","Y","N","N","N","N","N","Y","Y","N","Y","Y","N","Y","N","N","N","N","N","N","Y","N","N",{"$f":"IF($C28=\"\",\"\",INDEX(SummaryTable_SheetName,,MATCH($C28,SummaryTable_ToolName,0)))","v":"PaLATE"}]
[null,14,"Real Cost LCCA - FHWA","Go to information sheet","Free","N","N","N","N","N","N","Y","N","N","Y","N","Y","Y","N","N","N","N","N","N","Y","N","Y","N","N","Y","N","N","N","N","N","N","Y","N","Y",{"$f":"IF($C29=\"\",\"\",INDEX(SummaryTable_SheetName,,MATCH($C29,SummaryTable_ToolName,0)))","v":"RealCost_LCCA_FHWA"}]
[null,15,"Système d’Evaluation des Variantes Environnementales (SEVE)","Go to information sheet","License, >500 euros/year","Y","N","Y","N","N","N","N","Y","Y","Y","Y","Y","Y","Y","Y","Y","Y","Y","Y","N","N","Y","Y","Y","Y","Y","N","N","Y","Y","Y","N","Y","N",{"$f":"IF($C30=\"\",\"\",INDEX(SummaryTable_SheetName,,MATCH($C30,SummaryTable_ToolName,0)))","v":"SEVE"}]
[null,16,"SimaPro","Go to information sheet","License, >500 euros/year","Y","N","N","N","N","N","N","Y","Y","Y","Y","Y","Y","Y","Y","Y","Y","Y","Y","Y","Y","Y","Y","Y","Y","Y","Y","Y","Y","N","Y","N","Y","Y",{"$f":"IF($C31=\"\",\"\",INDEX(SummaryTable_SheetName,,MATCH($C31,SummaryTable_ToolName,0)))","v":"SimaPro"}]
[null,17,"SMART SPP","Go to information sheet","Free","N","N","Y","N","N","N","N","N","N","N","Y","Y","Y","N","N","N","N","N","Y","Y","N","N","N","N","N","N","N","N","N","N","N","Y","N","N",{"$f":"IF($C32=\"\",\"\",INDEX(SummaryTable_SheetName,,MATCH($C32,SummaryTable_ToolName,0)))","v":"SMART_SPP"}]
[null,18,"VTTI/UC Pavement LCA Tool","Go to information sheet","Free","N","N","N","N","N","N","Y","Y","Y","Y","Y","Y","Y","Y","Y","Y","Y","N","Y","N","N","Y","N","N","Y","N","N","N","N","N","Y","N","N","N",{"$f":"IF($C33=\"\",\"\",INDEX(SummaryTable_SheetName,,MATCH($C33,SummaryTable_ToolName,0)))","v":"VTTI_UC_Pavement_LCA"}]
[null,19,"Emerald EPD tool","Go to information sheet","License, 101-500 euros/year","N","N","N","N","N","N","N","Y","Y","Y","N","N","N","N","N","N","N","N","Y","0","0","Y","N","N","N","N","N","N","N","N","N","N","N","N",{"$f":"IF($C34=\"\",\"\",INDEX(SummaryTable_SheetName,,MATCH($C34,SummaryTable_ToolName,0)))","v":"NAPA_EPD_tool"}]
[null,20,"Gabi","Go to information sheet","License, >500 euros/year","Y","N","N","N","N","N","N","Y","Y","Y","Y","Y","Y","Y","Y","Y","Y","Y","Y","0","0","Y","Y","Y","Y","Y","Y","Y","Y","N","Y","N","Y","Y",{"$f":"IF($C35=\"\",\"\",INDEX(SummaryTable_SheetName,,MATCH($C35,SummaryTable_ToolName,0)))","v":"Gabi"}]
[null,21,"","Go to information sheet","","","","","","","","","","","","","","","","","","","","","","","","","","","","","","","","","","","",{"$f":"IF($C36=\"\",\"\",INDEX(SummaryTable_SheetName,,MATCH($C36,SummaryTable_ToolName,0)))","v":""}]
[null,22,"","Go to information sheet","","","","","","","","","","","","","","","","","","","","","","","","","","","","","","","","","","","",{"$f":"IF($C37=\"\",\"\",INDEX(SummaryTable_SheetName,,MATCH($C37,SummaryTable_ToolName,0)))","v":""}]
[null,23,"","Go to information sheet","","","","","","","","","","","","","","","","","","","","","","","","","","","","","","","","","","","",{"$f":"IF($C38=\"\",\"\",INDEX(SummaryTable_SheetName,,MATCH($C38,SummaryTable_ToolName,0)))","v":""}]

{"sheet":"ToolSummary&Matching","index":7,"n_rows":151,"n_cols":29,"rows_kept":151,"cut":false,"hidden":false,"merged":[]}
[]
[null,"Tool Summary & Matching Sheet"]
[null,null,"[Hidden background sheet]"]
[null,null,"On this sheet the relevant elements for selection for each tool are summarised. The summary table is subsequently used for matching the tools that fit the user-entered preferences."]
[]
[null,null,"Tool Summary Table"]
[null,null,null,"This section summarises the relavant aspects for each of the tools."]
[null,null,null,"If a new LCA tool is added to this tool, add the tool name and sheet name in one of the empty fields. Note: The sheet name must not contain spaces or dashes (-) for this sheet to work properly. Make sure the lay-out of the template sheet is not altered."]
[]
[null,null,null,null,null,"TotalToolsCount","# Tools included",{"$f":"COUNTA($G$14:$AC$14)","v":20}]
[null,null,null,null,null,null,"SummaryTable_SheetName"]
[null,null,null,null,"SummaryTable_DataType","SummaryTable_Data","SummaryTable_ToolName",null,null,null,null,null,null,null,null,null,null,null,null,null,null,null,null,null,"[Empty fields to add tools to the overview later] "]
[null,null,null,"Category","Data type","Cell on sheet","asPECT","Athena Pavement LCA","Dubocalc","Ecochain","Ecorce M","GreenDOT","Klimatkalkyl","LCC AM-QM","LCCA original and express","LCE4ROADS","Life Cycle Considerations in EIA of Road Infrastructure - LICCER","OpenLCA","PaLATE","Real Cost LCCA - FHWA","Système d’Evaluation des Variantes Environnementales (SEVE)","SimaPro","SMART SPP","VTTI/UC Pavement LCA Tool","Emerald EPD tool","Gabi"]
[null,null,null,"General infromation:","Sheet name",null,"asPECT","Athena","Dubocalc","Ecochain","Ecorce_M","GreenDOT","Klimatkalkyl","LCC_AM_QM","LCCA_original_and_express","LCE4ROADS","LICCER","OpenLCA","PaLATE","RealCost_LCCA_FHWA","SEVE","SimaPro","SMART_SPP","VTTI_UC_Pavement_LCA","NAPA_EPD_tool","Gabi"]
[null,null,null,null,"Country coverage","C9",{"$f":"IF(OR(G$14=\"\",$F15=\"\"),\"\",INDIRECT(G$14&\"!\"&$F15))","v":"Europe"},{"$f":"IF(OR(H$14=\"\",$F15=\"\"),\"\",INDIRECT(H$14&\"!\"&$F15))","v":"Canada, USA"},{"$f":"IF(OR(I$14=\"\",$F15=\"\"),\"\",INDIRECT(I$14&\"!\"&$F15))","v":"Netherlands"},{"$f":"IF(OR(J$14=\"\",$F15=\"\"),\"\",INDIRECT(J$14&\"!\"&$F15))","v":"Europe"},{"$f":"IF(OR(K$14=\"\",$F15=\"\"),\"\",INDIRECT(K$14&\"!\"&$F15))","v":"France"},{"$f":"IF(OR(L$14=\"\",$F15=\"\"),\"\",INDIRECT(L$14&\"!\"&$F15))","v":"USA"},{"$f":"IF(OR(M$14=\"\",$F15=\"\"),\"\",INDIRECT(M$14&\"!\"&$F15))","v":"Sweden"},{"$f":"IF(OR(N$14=\"\",$F15=\"\"),\"\",INDIRECT(N$14&\"!\"&$F15))","v":"Any, Worldwide"},{"$f":"IF(OR(O$14=\"\",$F15=\"\"),\"\",INDIRECT(O$14&\"!\"&$F15))","v":"USA"},{"$f":"IF(OR(P$14=\"\",$F15=\"\"),\"\",INDIRECT(P$14&\"!\"&$F15))","v":"European union"},{"$f":"IF(OR(Q$14=\"\",$F15=\"\"),\"\",INDIRECT(Q$14&\"!\"&$F15))","v":"Europe"},{"$f":"IF(OR(R$14=\"\",$F15=\"\"),\"\",INDIRECT(R$14&\"!\"&$F15))","v":"Worldwide"},{"$f":"IF(OR(S$14=\"\",$F15=\"\"),\"\",INDIRECT(S$14&\"!\"&$F15))","v":"USA"},{"$f":"IF(OR(T$14=\"\",$F15=\"\"),\"\",INDIRECT(T$14&\"!\"&$F15))","v":"USA"},{"$f":"IF(OR(U$14=\"\",$F15=\"\"),\"\",INDIRECT(U$14&\"!\"&$F15))","v":"World and especially Europe"},{"$f":"IF(OR(V$14=\"\",$F15=\"\"),\"\",INDIRECT(V$14&\"!\"&$F15))","v":"Worldwide"},{"$f":"IF(OR(W$14=\"\",$F15=\"\"),\"\",INDIRECT(W$14&\"!\"&$F15))","v":"European union"},{"$f":"IF(OR(X$14=\"\",$F15=\"\"),\"\",INDIRECT(X$14&\"!\"&$F15))","v":"USA"},{"$f":"IF(OR(Y$14=\"\",$F15=\"\"),\"\",INDIRECT(Y$14&\"!\"&$F15))","v":"US"},{"$f":"IF(OR(Z$14=\"\",$F15=\"\"),\"\",INDIRECT(Z$14&\"!\"&$F15))","v":"Worldwide"},{"$f":"IF(OR(AA$14=\"\",$F15=\"\"),\"\",INDIRECT(AA$14&\"!\"&$F15))","v":""},{"$f":"IF(OR(AB$14=\"\",$F15=\"\"),\"\",INDIRECT(AB$14&\"!\"&$F15))","v":""},{"$f":"IF(OR(AC$14=\"\",$F15=\"\"),\"\",INDIRECT(AC$14&\"!\"&$F15))","v":""}]
[null,null,null,null,"Language","C10",{"$f":"IF(OR(G$14=\"\",$F16=\"\"),\"\",INDIRECT(G$14&\"!\"&$F16))","v":"English"},{"$f":"IF(OR(H$14=\"\",$F16=\"\"),\"\",INDIRECT(H$14&\"!\"&$F16))","v":"English"},{"$f":"IF(OR(I$14=\"\",$F16=\"\"),\"\",INDIRECT(I$14&\"!\"&$F16))","v":"Dutch"},{"$f":"IF(OR(J$14=\"\",$F16=\"\"),\"\",INDIRECT(J$14&\"!\"&$F16))","v":"English, Dutch, German, French"},{"$f":"IF(OR(K$14=\"\",$F16=\"\"),\"\",INDIRECT(K$14&\"!\"&$F16))","v":"Software: English, Database: French (English upon request)"},{"$f":"IF(OR(L$14=\"\",$F16=\"\"),\"\",INDIRECT(L$14&\"!\"&$F16))","v":"English"},{"$f":"IF(OR(M$14=\"\",$F16=\"\"),\"\",INDIRECT(M$14&\"!\"&$F16))","v":"Swedish"},{"$f":"IF(OR(N$14=\"\",$F16=\"\"),\"\",INDIRECT(N$14&\"!\"&$F16))","v":"English"},{"$f":"IF(OR(O$14=\"\",$F16=\"\"),\"\",INDIRECT(O$14&\"!\"&$F16))","v":"English"},{"$f":"IF(OR(P$14=\"\",$F16=\"\"),\"\",INDIRECT(P$14&\"!\"&$F16))","v":"English"},{"$f":"IF(OR(Q$14=\"\",$F16=\"\"),\"\",INDIRECT(Q$14&\"!\"&$F16))","v":"English"},{"$f":"IF(OR(R$14=\"\",$F16=\"\"),\"\",INDIRECT(R$14&\"!\"&$F16))","v":"English, Dutch, Spanish, French, German, Italian, Chinese and more"},{"$f":"IF(OR(S$14=\"\",$F16=\"\"),\"\",INDIRECT(S$14&\"!\"&$F16))","v":"English"},{"$f":"IF(OR(T$14=\"\",$F16=\"\"),\"\",INDIRECT(T$14&\"!\"&$F16))","v":"English"},{"$f":"IF(OR(U$14=\"\",$F16=\"\"),\"\",INDIRECT(U$14&\"!\"&$F16))","v":"French, English, German, Spanish and Hungarian"},{"$f":"IF(OR(V$14=\"\",$F16=\"\"),\"\",INDIRECT(V$14&\"!\"&$F16))","v":"English, Dutch, Spanish, French, German, Italian, Chinese and 5 more"},{"$f":"IF(OR(W$14=\"\",$F16=\"\"),\"\",INDIRECT(W$14&\"!\"&$F16))","v":"German, English"},{"$f":"IF(OR(X$14=\"\",$F16=\"\"),\"\",INDIRECT(X$14&\"!\"&$F16))","v":"English"},{"$f":"IF(OR(Y$14=\"\",$F16=\"\"),\"\",INDIRECT(Y$14&\"!\"&$F16))","v":"English"},{"$f":"IF(OR(Z$14=\"\",$F16=\"\"),\"\",INDIRECT(Z$14&\"!\"&$F16))","v":"English, Dutch, Spanish, French, German, Italian, Chinese and 5 more"},{"$f":"IF(OR(AA$14=\"\",$F16=\"\"),\"\",INDIRECT(AA$14&\"!\"&$F16))","v":""},{"$f":"IF(OR(AB$14=\"\",$F16=\"\"),\"\",INDIRECT(AB$14&\"!\"&$F16))","v":""},{"$f":"IF(OR(AC$14=\"\",$F16=\"\"),\"\",INDIRECT(AC$14&\"!\"&$F16))","v":""}]
[null,null,null,null,"User Costs","C15",{"$f":"IF(OR(G$14=\"\",$F17=\"\"),\"\",INDIRECT(G$14&\"!\"&$F17))","v":"Free"},{"$f":"IF(OR(H$14=\"\",$F17=\"\"),\"\",INDIRECT(H$14&\"!\"&$F17))","v":"Free"},{"$f":"IF(OR(I$14=\"\",$F17=\"\"),\"\",INDIRECT(I$14&\"!\"&$F17))","v":"License, 101-500 euros/year"},{"$f":"IF(OR(J$14=\"\",$F17=\"\"),\"\",INDIRECT(J$14&\"!\"&$F17))","v":"License, >500 euros/year"},{"$f":"IF(OR(K$14=\"\",$F17=\"\"),\"\",INDIRECT(K$14&\"!\"&$F17))","v":"Free"},{"$f":"IF(OR(L$14=\"\",$F17=\"\"),\"\",INDIRECT(L$14&\"!\"&$F17))","v":"Free"},{"$f":"IF(OR(M$14=\"\",$F17=\"\"),\"\",INDIRECT(M$14&\"!\"&$F17))","v":"Free"},{"$f":"IF(OR(N$14=\"\",$F17=\"\"),\"\",INDIRECT(N$14&\"!\"&$F17))","v":"License, >500 euros/year"},{"$f":"IF(OR(O$14=\"\",$F17=\"\"),\"\",INDIRECT(O$14&\"!\"&$F17))","v":"Free"},{"$f":"IF(OR(P$14=\"\",$F17=\"\"),\"\",INDIRECT(P$14&\"!\"&$F17))","v":"Free"},{"$f":"IF(OR(Q$14=\"\",$F17=\"\"),\"\",INDIRECT(Q$14&\"!\"&$F17))","v":"Free"},{"$f":"IF(OR(R$14=\"\",$F17=\"\"),\"\",INDIRECT(R$14&\"!\"&$F17))","v":"Free"},{"$f":"IF(OR(S$14=\"\",$F17=\"\"),\"\",INDIRECT(S$14&\"!\"&$F17))","v":"Free"},{"$f":"IF(OR(T$14=\"\",$F17=\"\"),\"\",INDIRECT(T$14&\"!\"&$F17))","v":"Free"},{"$f":"IF(OR(U$14=\"\",$F17=\"\"),\"\",INDIRECT(U$14&\"!\"&$F17))","v":"License, >500 euros/year"},{"$f":"IF(OR(V$14=\"\",$F17=\"\"),\"\",INDIRECT(V$14&\"!\"&$F17))","v":"License, >500 euros/year"},{"$f":"IF(OR(W$14=\"\",$F17=\"\"),\"\",INDIRECT(W$14&\"!\"&$F17))","v":"Free"},{"$f":"IF(OR(X$14=\"\",$F17=\"\"),\"\",INDIRECT(X$14&\"!\"&$F17))","v":"Free"},{"$f":"IF(OR(Y$14=\"\",$F17=\"\"),\"\",INDIRECT(Y$14&\"!\"&$F17))","v":"License, 101-500 euros/year"},{"$f":"IF(OR(Z$14=\"\",$F17=\"\"),\"\",INDIRECT(Z$14&\"!\"&$F17))","v":"License, >500 euros/year"},{"$f":"IF(OR(AA$14=\"\",$F17=\"\"),\"\",INDIRECT(AA$14&\"!\"&$F17))","v":""},{"$f":"IF(OR(AB$14=\"\",$F17=\"\"),\"\",INDIRECT(AB$14&\"!\"&$F17))","v":""},{"$f":"IF(OR(AC$14=\"\",$F17=\"\"),\"\",INDIRECT(AC$14&\"!\"&$F17))","v":""}]
[null,null,null,null,"Data, average age","C16",{"$f":"IF(OR(G$14=\"\",$F18=\"\"),\"\",INDIRECT(G$14&\"!\"&$F18))","v":"Data in general is about 5 - 10 years old"},{"$f":"IF(OR(H$14=\"\",$F18=\"\"),\"\",INDIRECT(H$14&\"!\"&$F18))","v":"Data in general is about 5 - 10 years old"},{"$f":"IF(OR(I$14=\"\",$F18=\"\"),\"\",INDIRECT(I$14&\"!\"&$F18))","v":"Not older than 5 years old"},{"$f":"IF(OR(J$14=\"\",$F18=\"\"),\"\",INDIRECT(J$14&\"!\"&$F18))","v":"5-10 years "},{"$f":"IF(OR(K$14=\"\",$F18=\"\"),\"\",INDIRECT(K$14&\"!\"&$F18))","v":"Data in general is about 5 - 10 years old"},{"$f":"IF(OR(L$14=\"\",$F18=\"\"),\"\",INDIRECT(L$14&\"!\"&$F18))","v":"Data in general is about 5 - 10 years old"},{"$f":"IF(OR(M$14=\"\",$F18=\"\"),\"\",INDIRECT(M$14&\"!\"&$F18))","v":"5-10 years"},{"$f":"IF(OR(N$14=\"\",$F18=\"\"),\"\",INDIRECT(N$14&\"!\"&$F18))","v":"no data included "},{"$f":"IF(OR(O$14=\"\",$F18=\"\"),\"\",INDIRECT(O$14&\"!\"&$F18))","v":"Unknown"},{"$f":"IF(OR(P$14=\"\",$F18=\"\"),\"\",INDIRECT(P$14&\"!\"&$F18))","v":"Data in general is about 5 - 10 years old"},{"$f":"IF(OR(Q$14=\"\",$F18=\"\"),\"\",INDIRECT(Q$14&\"!\"&$F18))","v":"Data in general is about 5 - 10 years old"},{"$f":"IF(OR(R$14=\"\",$F18=\"\"),\"\",INDIRECT(R$14&\"!\"&$F18))","v":"5-10 years "},{"$f":"IF(OR(S$14=\"\",$F18=\"\"),\"\",INDIRECT(S$14&\"!\"&$F18))","v":"Data in general is about 5 - 10 years old"},{"$f":"IF(OR(T$14=\"\",$F18=\"\"),\"\",INDIRECT(T$14&\"!\"&$F18))","v":"Unknown"},{"$f":"IF(OR(U$14=\"\",$F18=\"\"),\"\",INDIRECT(U$14&\"!\"&$F18))","v":"Data in general is about 5 - 10 years old"},{"$f":"IF(OR(V$14=\"\",$F18=\"\"),\"\",INDIRECT(V$14&\"!\"&$F18))","v":"Data in general is about 5 - 10 years old"},{"$f":"IF(OR(W$14=\"\",$F18=\"\"),\"\",INDIRECT(W$14&\"!\"&$F18))","v":"Data in general is about 5 - 10 years old"},{"$f":"IF(OR(X$14=\"\",$F18=\"\"),\"\",INDIRECT(X$14&\"!\"&$F18))","v":"Data in general is about 5 - 10 years old"},{"$f":"IF(OR(Y$14=\"\",$F18=\"\"),\"\",INDIRECT(Y$14&\"!\"&$F18))","v":"Data are inputed by the user"},{"$f":"IF(OR(Z$14=\"\",$F18=\"\"),\"\",INDIRECT(Z$14&\"!\"&$F18))","v":"Data is reviewed on a yearly basis"},{"$f":"IF(OR(AA$14=\"\",$F18=\"\"),\"\",INDIRECT(AA$14&\"!\"&$F18))","v":""},{"$f":"IF(OR(AB$14=\"\",$F18=\"\"),\"\",INDIRECT(AB$14&\"!\"&$F18))","v":""},{"$f":"IF(OR(AC$14=\"\",$F18=\"\"),\"\",INDIRECT(AC$14&\"!\"&$F18))","v":""}]
[null,null,null,null,"Short description","B19",{"$f":"IF(OR(G$14=\"\",$F19=\"\"),\"\",INDIRECT(G$14&\"!\"&$F19))","v":"asPECT is a tool developed by the Transport Research Laboratory. asPECT estimates CO2e emissions from asphalt paving processes in a cradle to gate scenario, and has been designed to meet the specifications in the UK standard PAS 2050. It can be used by producers of road materials, designers and contractors to calculate carbon dioxide equivalent (CO2e) emissions associated with bitumen bound mixtures. This tool does not provide default asphalt mixtures, therefore the user must input all the information on asphalt production him/herself. For instance, only the use of primary data for aggregates and filler is permitted. It is also possible to model the use of recycled asphalt, in this case the benefits are attributed to the user of the recycled asphalt. "},{"$f":"IF(OR(H$14=\"\",$F19=\"\"),\"\",INDIRECT(H$14&\"!\"&$F19))","v":"The software was developed by ement Association of Canada and Athena Institute and covers Canada and USA context. It includes a large equipment and materials database drawn from the Athena Institute, the US LCI Database, and EcoInvent, including 50 roadway designs. Three types of pavement are available, flexible (asphalt), rigid (concrete) and reinforcing steel. Moreover all data is generally less than 10 years old. The user has flexibility to specify unique pavement systems – sub-base and base granular materials as well as hot and warm mix asphalt and a host of user-specified concrete mix designs. Roadway lifespan is variable and dictates rehabilitation events such as scheduled resurfacing. Results are reported on a gross roadway surface area basis. Results are reported consistently with the US EPA TRACI methodology. Life Cycle Cost Analysis (LCCA) is available on the web based version and a Cost Item Reference Library has been created for Ontario and Quebec roadways using data from Applied Research Associates (ARA). Regarding uncertainties, when comparing different systems the developers recommend to consider a 15% margin of error."},{"$f":"IF(OR(I$14=\"\",$F19=\"\"),\"\",INDIRECT(I$14&\"!\"&$F19))","v":"DuboCalc is a tool developed by the Dutch NRA. With DuboCalc, road designers can calculate environmental profiles of road infrastructure design alternatives. The tool uses envrionmental profiles (EPDs) of building products (from the Dutch National Environmental Database) and calculates the environmental peformance of road infrastructure projects in line with the SBK Bepalingsmethode (Dutch EPD guideline, which is extended version of EN15804) . The output of the tool, expressed in environmental costs (shadowprices, “MKI”) is used in green procurement (\"MEAT\" procedures). \nData older than 5 years has to be updated, otherwise it is withdrawn from the database."},{"$f":"IF(OR(J$14=\"\",$F19=\"\"),\"\",INDIRECT(J$14&\"!\"&$F19))","v":"EcoChain is an online sustainability data management platform that enables to quantify the full environmental performance of an entire product portfolio through full LCA/EPD. It provides insights into many sustainability drivers, such as energy efficiency, raw material use and process efficiency. All life cycle stages are covered, from raw material mining to waste diposal as described on EN15804. The two main databases available in Ecochain are Ecoinvent and the Nationale Milieu Database (NMD). Ecoinvent is the largest LCA database available founded by several institutes of the ETH Domain and by Agroscope. The Nationale Milieu Database (NMD) is a LCA database focused on the construction sector in the Netherlands. The tool is compatble wit hISO 14040/44, ISO 14021/25 compliance, EU Energy Efficiency Directive EED, ISO 14067, ISO 14001 data framework, EN 15804, ISO 50001 data framework, PAS 2050 and GRI data framework environment, making it suitable to verify environmental claims. Useful for desgin, planning and tendering/procurement phases. Green aphalt datasets such as asphalt with RAP content and WMA are present in the database."},{"$f":"IF(OR(K$14=\"\",$F19=\"\"),\"\",INDIRECT(K$14&\"!\"&$F19))","v":"The software provides a robust assessment for calculating a set of mid-point indicators in the framework of LCA for road construction and maintenance. The database available in Ecorce was gathered from scientific literature and validated during standard review processes. To generate the impact assessment the user is required to input volumetric data, equipment type (e.g. roller, paver, etc.), layer composition data, the type of mixing plant, and the transport distances and modes. Ecorce deals specially with the following types of works: construction and structural aintenance of pavements on road corridors, installation of foundation layer, preparation of the upper part of earthworks and construction of fills. The user is required to model each layer of the pavement what makes possible to compare not only the materials used in a given layer but also different pavement structures with several layers. The results are provided in terms of mid-point categories in several screens and tables. The impact assessment is done using the CML 2001 impact assessment method."},{"$f":"IF(OR(L$14=\"\",$F19=\"\"),\"\",INDIRECT(L$14&\"!\"&$F19))","v":"GreenDOT calculates carbon dioxide (CO2) emissions from the operations, construction, and maintenance activities of state Deparments of Transportation (DOTs). GreenDOT is designed to calculate emissions for geographical areas ranging from a single project to an entire state, and over time periods ranging from one day to several years. The two most likely uses of the tool are to calculate annual agency-wide emissions or to calculate emissions related to a specific project, covering a period of days or years. The database in the tool consists of primary data from projects and research from Master's students. It is possible to model different ratios for the asphalt mixes, including the possibility of including RAP and choose between Hot-or warm mix asphalt. The tool does not require a large amount of inputs from the user but in turn is also not very flexible when it comes to adapting the materials included in the tool. "},{"$f":"IF(OR(M$14=\"\",$F19=\"\"),\"\",INDIRECT(M$14&\"!\"&$F19))","v":"This tool developed by the Swedish Transport Administration allows to make climate calculations that show climate impact and energy use for the construction, operation and maintenance of roads and railways, and for basic road contracts, from a life cycle perspective.  The results are presented in terms of green house gases emissions (CO2 eq.) and energy use. This tool is intended for use during tender procedures by the swedish road authority and contractors. The tool does contain EcoInvent data and an own database that can be used for calculating the carbon footprint of a road/pavement already in the system, for instance  cubic metres of concrete per square metre of bridge, but also allows the input of project specific data."},{"$f":"IF(OR(N$14=\"\",$F19=\"\"),\"\",INDIRECT(N$14&\"!\"&$F19))","v":"The tool allows to calculate Total Costs of Ownership (TCO), focusing on finding out what your investment will cost during its entire life cycle. It takes into account composed interest effects, investments, replacements, maintenance, general costs, production levels, taxes and a myriad of other costs than can be entered manually or using automation. This tool does not perform environmental performance assessment and therefore delivers results in terms of costs only.  It is possible to do Quantitative Analysis on the recorded data in your Maintenance management system (CMMS) to provide aging information about your assets and installations. among others. The software is developped and maintained by S&G Asset Management\nResults are presented as total costs per yer or over the whole life cycle of an asset.\nThere is no background database with asphalt or road data available."},{"$f":"IF(OR(O$14=\"\",$F19=\"\"),\"\",INDIRECT(O$14&\"!\"&$F19))","v":"LCCA original and express versions are life cycle costing tools developped according to the principles recommended by the Federal Highway Administration (FHWA) to compare the economics of alternative designs for a given road project to compare the economics of alternative designs for a given road project. It calculates the net present value of different pavement alternatives using either deterministic or probabilistic analyses as described in FHWA Publication No. FHWA-SA-98-079. It is maintained by Asphalt Pavement Alliance. Costs can be calculated for the life cycle of an asset from the initial construction to the demolition and removal phase. Results are presented in terms of In terms of net present value and discount rates. It is possible to model \nDoes the tool have a database in the background with data the user can use?\nIs the tool compatible with international sustainability standards?\nFor which phase of a road administration is this tool useful? (Desgin, planning, tendering/procurement, monitoring/maintenance?)"},{"$f":"IF(OR(P$14=\"\",$F19=\"\"),\"\",INDIRECT(P$14&\"!\"&$F19))","v":"LCE4Roads tool integrates the certification methodology developed for road products and infrastructures alongside the LCE4Roads project allowing the evaluation of the overall performance of a road according to the Key Performance Indicators (KPIs) selected. The tool is able to model and calculate the impact of the materials and activities involved in all phases of its life cycle (design, construction, use, maintenance and final disposal) considering different perspectives (environmental, economic, social and technical). The software comes with a pre-loaded database based on EcoInvent, literature research and primary data collection, whic offers several machinery datasets, typical asphalt mixes, energy usage from different sources and country mixes and other materials used in the EU. It is also possible to add custom data and use in the projects but it is not possible to change data available in the library. The results are delivered in chosen indicators and a certificate may be emitted and exported to a PDF file."},{"$f":"IF(OR(Q$14=\"\",$F19=\"\"),\"\",INDIRECT(Q$14&\"!\"&$F19))","v":"LICCER was a research project of the cross-border funded joint research programme “ENR2011 ENERGY – Sustainability and Energy Efficient Management of Roads”. The model consists of guidelines, based on existing tools and methodologies for Life Cycle Assessment of road infrastructure fully integrating modelling of road elements (i.e. road, bridges and tunnels). The model aim is to support decision-making in the early stage of transport planning and is based on existing tools and methodologies for Life Cycle Assessment of road infrastructure. Results are calculated in terms of cumulative energy consumption and GHG emissions. The interface is an excel based spreadsheet. The LICCER guidelines and tool do not provide a database in itself since other existing tools are used."},{"$f":"IF(OR(R$14=\"\",$F19=\"\"),\"\",INDIRECT(R$14&\"!\"&$F19))","v":"openLCA is a general LCA tool developped by GreenDelta which is provided free of charge.\nTo make use of paid databases, such as EcoInvent, the users should purchase a license from that database from the openLCA nexus website.\nWith openLCA users can calculate the environmental performance of any type of product, including asphalt and other materials for road infrastructure. The software does not provide any databases by default, but a great variety of paid and free of charge databases is available. The results are delivered per impact category of the chosen calculation methodology in the correspondent unit. This tool is used by many universities, organizations and some private companies for their LCA studies. There are no pre-defined models available which means that the user is required to input data for the whole model and make all design decisions on its own. "},{"$f":"IF(OR(S$14=\"\",$F19=\"\"),\"\",INDIRECT(S$14&\"!\"&$F19))","v":"PaLATE is a life cycle costing and life cycle assessment tool developped by members of the University of California, Berkeley.\nThe tool makes the assessment of materials production, construction and maintenance for road pavements and includes emissions from specific equipment use and life cycle costing results including a discount rate. The LCA results are provided in terms of emissions rather than impact categories, apart from that the tool generates graphs showing the results for LCC and LCA. This tool is not compatible with EPD and CWA 17089 standards and considers the USA context for calculations, which are performed using the CML 2001 impact assessment method. The data available in this tool comes from the Carnegie Mellon University EIO-LCA software and the Transportation Energy Data Book. "},{"$f":"IF(OR(T$14=\"\",$F19=\"\"),\"\",INDIRECT(T$14&\"!\"&$F19))","v":"RealCost was created to provide an instructional tool for pavement design decisionmakers who want to learn about LCCA.allowing to investigate the effects of cost, service life, and economic inputs on life-cycle cost and to provide an actual tool for pavement designers, to incorporate life-cycle costs into pavement investment decisions. The software calculates life-cycle values for agency and user costs associated with construction and rehabilitation. Results are presented in terms of total costs and costs for ageny and user. This tool is useful for planning and tendering/procurement phases."},{"$f":"IF(OR(U$14=\"\",$F19=\"\"),\"\",INDIRECT(U$14&\"!\"&$F19))","v":" SEVE is an internet based tool, widely used by industries in France and has been officially recognized by the French government as a tool for evaluating bids in the frame of call for tender, allowing equivalent technical solutions for road maintenance works or building works to be compared on the same level regarding environmental claims. During a call for tenders, the users can enter parameters for each aspect of the project, namely: nature of the layers, constituents, condition of manufacture of the pavement, composition of the application workshops, distances and modes of transport. It is not possible to calculate the environmental impacts of a construction site in an absolute way with this tool and therefore it is not suitable for carrying out a greenhouse gas emissions assessment. The tool is associated with a database of materials, equipment, products, ... common to all users and a base of formulas (concrete, asphalt) specific to each manufacturing station (bituminous materials production tools or concrete). SEVE can thus calculate the environmental indicators of the projects according to the specific environmental cost of the resources present in these bases. This specific cost is calculated according to several criteria: Distance and type of transport from the raw materials to the item Type of fuel Asphalt temperature Percentage of aggregates added to the formula This database is managed independently of the part of the software devolved to the calculations of the environmental costs of the basic solutions and variants. The result is delivered in terms of the specific environmental cost of the resources present in the database which is calculated based on 9 indicators."},{"$f":"IF(OR(V$14=\"\",$F19=\"\"),\"\",INDIRECT(V$14&\"!\"&$F19))","v":"SimaPro is a general LCA tool developed by Pré Consultants.\nWith simaPro users can calculate the environmental performance of any type of product, including asphalt and other materials for road infrastructure. The software provides by default different databases, such as EcoInvent, Agri-footprint, ELCD and others, for the user to  design the product's life cycle and calculate it's environmental performance. The results are delivered per impact category of the chosen calculation methodology in the correspondent unit. This tool is used by many universities, governmental organizations and private companies for their LCA studies."},{"$f":"IF(OR(W$14=\"\",$F19=\"\"),\"\",INDIRECT(W$14&\"!\"&$F19))","v":"SMART SPP is an excel based calculation tool developed by Ecoinstitut Barcelona and Öko-Institut e.V. with support of ICLEI – Local Governments for Sustainability within the IEE funded project \"SMART SPP - innovation through sustainable procurement\". It has been developed to help you calculate the life cycle costs (LCC) and important emissions (CO2, CO2eq, NOx, SO2, NMHC and PM) of different products, work and services to assist in procurement decision-making. It has been particularly  designed to support decision making when tendering sustainable and innovative products. The tool accounts for all of the costs that will incur during the lifetime of the product, work or service and its related emissions. No database containing datasets relevant to model the life cycle of a road is included in the tool apart from lists of emission factors for different fuels, thus, to calculate the LCC and emissions the user should input the information of embeded emissions for a product manually (to obtain these, they should be calculated with the help of another tool) and provide information about energy usage (source and amount) during the implementation phase. "},{"$f":"IF(OR(X$14=\"\",$F19=\"\"),\"\",INDIRECT(X$14&\"!\"&$F19))","v":"The VTTI/UC asphalt pavement LCA tool is a project-level pavement LCA tool that estimates the environmental burdens associated with materials extraction and production, construction, maintenance and rehabilitation (M&R), transportation of materials, work-zone (WZ) traffic management, usage, and end-of-life (EOL) phases of the life cycle of a flexible road pavement located in the United States. This tools uses the TRACI 2.0 impact assessment method to calculate the environmental performance of the pavement. For the database, data found in literature was used."},{"$f":"IF(OR(Y$14=\"\",$F19=\"\"),\"\",INDIRECT(Y$14&\"!\"&$F19))","v":"The emarald Ecolabel tool (developed by NAPA) is a tool designed for asphalt producers that creates plant specific and mix specific EPDs that are in line with the LCA process. The LCA process underlining the EPD measures all the environmental impacts associated with all the steps of mix production until the mix leaves the production facility. The emerald Eco label tool makes it easy for a company to input data about what goes into an asphalt mixture and then generate a credible, transparent EPD that summarises the environmental impacts of the mixture. The EPD can also be used by the company to highlight areas for optimisation within the manufacturing process. The emerald EPD tool is particularly helpful to improve fuel use and material selection during the production process."},{"$f":"IF(OR(Z$14=\"\",$F19=\"\"),\"\",INDIRECT(Z$14&\"!\"&$F19))","v":"Gabi is a general LCA tool developed and maintained by Sphera Solutions GmbH.\nWith Gabi users can calculate the environmental performance of any type of product, including asphalt and other materials for road infrastructure. The software provides by default different databases, such as EcoInvent, NREL, Environmental Footprint database and others, for the user to  design the product's life cycle and calculate it's environmental performance. The results are delivered per impact category of the chosen calculation methodology in the correspondent unit. This tool is used by many universities, governmental organizations and private companies for their LCA studies."},{"$f":"IF(OR(AA$14=\"\",$F19=\"\"),\"\",INDIRECT(AA$14&\"!\"&$F19))","v":""},{"$f":"IF(OR(AB$14=\"\",$F19=\"\"),\"\",INDIRECT(AB$14&\"!\"&$F19))","v":""},{"$f":"IF(OR(AC$14=\"\",$F19=\"\"),\"\",INDIRECT(AC$14&\"!\"&$F19))","v":""}]
[null,null,null,"Main impacts included:","Environmental","B42",{"$f":"IF(OR(G$14=\"\",$F20=\"\"),\"\",INDIRECT(G$14&\"!\"&$F20))","v":"Yes"},{"$f":"IF(OR(H$14=\"\",$F20=\"\"),\"\",INDIRECT(H$14&\"!\"&$F20))","v":"Yes"},{"$f":"IF(OR(I$14=\"\",$F20=\"\"),\"\",INDIRECT(I$14&\"!\"&$F20))","v":"Yes"},{"$f":"IF(OR(J$14=\"\",$F20=\"\"),\"\",INDIRECT(J$14&\"!\"&$F20))","v":"Yes"},{"$f":"IF(OR(K$14=\"\",$F20=\"\"),\"\",INDIRECT(K$14&\"!\"&$F20))","v":"Yes"},{"$f":"IF(OR(L$14=\"\",$F20=\"\"),\"\",INDIRECT(L$14&\"!\"&$F20))","v":"Yes"},{"$f":"IF(OR(M$14=\"\",$F20=\"\"),\"\",INDIRECT(M$14&\"!\"&$F20))","v":"Yes"},{"$f":"IF(OR(N$14=\"\",$F20=\"\"),\"\",INDIRECT(N$14&\"!\"&$F20))","v":"No"},{"$f":"IF(OR(O$14=\"\",$F20=\"\"),\"\",INDIRECT(O$14&\"!\"&$F20))","v":"No"},{"$f":"IF(OR(P$14=\"\",$F20=\"\"),\"\",INDIRECT(P$14&\"!\"&$F20))","v":"Yes"},{"$f":"IF(OR(Q$14=\"\",$F20=\"\"),\"\",INDIRECT(Q$14&\"!\"&$F20))","v":"Yes"},{"$f":"IF(OR(R$14=\"\",$F20=\"\"),\"\",INDIRECT(R$14&\"!\"&$F20))","v":"Yes"},{"$f":"IF(OR(S$14=\"\",$F20=\"\"),\"\",INDIRECT(S$14&\"!\"&$F20))","v":"Yes"},{"$f":"IF(OR(T$14=\"\",$F20=\"\"),\"\",INDIRECT(T$14&\"!\"&$F20))","v":"No"},{"$f":"IF(OR(U$14=\"\",$F20=\"\"),\"\",INDIRECT(U$14&\"!\"&$F20))","v":"Yes"},{"$f":"IF(OR(V$14=\"\",$F20=\"\"),\"\",INDIRECT(V$14&\"!\"&$F20))","v":"Yes"},{"$f":"IF(OR(W$14=\"\",$F20=\"\"),\"\",INDIRECT(W$14&\"!\"&$F20))","v":"Yes"},{"$f":"IF(OR(X$14=\"\",$F20=\"\"),\"\",INDIRECT(X$14&\"!\"&$F20))","v":"Yes"},{"$f":"IF(OR(Y$14=\"\",$F20=\"\"),\"\",INDIRECT(Y$14&\"!\"&$F20))","v":"Yes"},{"$f":"IF(OR(Z$14=\"\",$F20=\"\"),\"\",INDIRECT(Z$14&\"!\"&$F20))","v":"Yes"},{"$f":"IF(OR(AA$14=\"\",$F20=\"\"),\"\",INDIRECT(AA$14&\"!\"&$F20))","v":""},{"$f":"IF(OR(AB$14=\"\",$F20=\"\"),\"\",INDIRECT(AB$14&\"!\"&$F20))","v":""},{"$f":"IF(OR(AC$14=\"\",$F20=\"\"),\"\",INDIRECT(AC$14&\"!\"&$F20))","v":""}]
[null,null,null,null,"Costs","C42",{"$f":"IF(OR(G$14=\"\",$F21=\"\"),\"\",INDIRECT(G$14&\"!\"&$F21))","v":"No"},{"$f":"IF(OR(H$14=\"\",$F21=\"\"),\"\",INDIRECT(H$14&\"!\"&$F21))","v":"Yes"},{"$f":"IF(OR(I$14=\"\",$F21=\"\"),\"\",INDIRECT(I$14&\"!\"&$F21))","v":"No"},{"$f":"IF(OR(J$14=\"\",$F21=\"\"),\"\",INDIRECT(J$14&\"!\"&$F21))","v":"Yes"},{"$f":"IF(OR(K$14=\"\",$F21=\"\"),\"\",INDIRECT(K$14&\"!\"&$F21))","v":"No"},{"$f":"IF(OR(L$14=\"\",$F21=\"\"),\"\",INDIRECT(L$14&\"!\"&$F21))","v":"No"},{"$f":"IF(OR(M$14=\"\",$F21=\"\"),\"\",INDIRECT(M$14&\"!\"&$F21))","v":"No"},{"$f":"IF(OR(N$14=\"\",$F21=\"\"),\"\",INDIRECT(N$14&\"!\"&$F21))","v":"Yes"},{"$f":"IF(OR(O$14=\"\",$F21=\"\"),\"\",INDIRECT(O$14&\"!\"&$F21))","v":"Yes"},{"$f":"IF(OR(P$14=\"\",$F21=\"\"),\"\",INDIRECT(P$14&\"!\"&$F21))","v":"Yes"},{"$f":"IF(OR(Q$14=\"\",$F21=\"\"),\"\",INDIRECT(Q$14&\"!\"&$F21))","v":"No"},{"$f":"IF(OR(R$14=\"\",$F21=\"\"),\"\",INDIRECT(R$14&\"!\"&$F21))","v":"Yes"},{"$f":"IF(OR(S$14=\"\",$F21=\"\"),\"\",INDIRECT(S$14&\"!\"&$F21))","v":"Yes"},{"$f":"IF(OR(T$14=\"\",$F21=\"\"),\"\",INDIRECT(T$14&\"!\"&$F21))","v":"Yes"},{"$f":"IF(OR(U$14=\"\",$F21=\"\"),\"\",INDIRECT(U$14&\"!\"&$F21))","v":"No"},{"$f":"IF(OR(V$14=\"\",$F21=\"\"),\"\",INDIRECT(V$14&\"!\"&$F21))","v":"Yes"},{"$f":"IF(OR(W$14=\"\",$F21=\"\"),\"\",INDIRECT(W$14&\"!\"&$F21))","v":"Yes"},{"$f":"IF(OR(X$14=\"\",$F21=\"\"),\"\",INDIRECT(X$14&\"!\"&$F21))","v":"No"},{"$f":"IF(OR(Y$14=\"\",$F21=\"\"),\"\",INDIRECT(Y$14&\"!\"&$F21))","v":0},{"$f":"IF(OR(Z$14=\"\",$F21=\"\"),\"\",INDIRECT(Z$14&\"!\"&$F21))","v":0},{"$f":"IF(OR(AA$14=\"\",$F21=\"\"),\"\",INDIRECT(AA$14&\"!\"&$F21))","v":""},{"$f":"IF(OR(AB$14=\"\",$F21=\"\"),\"\",INDIRECT(AB$14&\"!\"&$F21))","v":""},{"$f":"IF(OR(AC$14=\"\",$F21=\"\"),\"\",INDIRECT(AC$14&\"!\"&$F21))","v":""}]
[null,null,null,null,"Social","D42",{"$f":"IF(OR(G$14=\"\",$F22=\"\"),\"\",INDIRECT(G$14&\"!\"&$F22))","v":"No"},{"$f":"IF(OR(H$14=\"\",$F22=\"\"),\"\",INDIRECT(H$14&\"!\"&$F22))","v":"No"},{"$f":"IF(OR(I$14=\"\",$F22=\"\"),\"\",INDIRECT(I$14&\"!\"&$F22))","v":"No"},{"$f":"IF(OR(J$14=\"\",$F22=\"\"),\"\",INDIRECT(J$14&\"!\"&$F22))","v":"No"},{"$f":"IF(OR(K$14=\"\",$F22=\"\"),\"\",INDIRECT(K$14&\"!\"&$F22))","v":"No"},{"$f":"IF(OR(L$14=\"\",$F22=\"\"),\"\",INDIRECT(L$14&\"!\"&$F22))","v":"No"},{"$f":"IF(OR(M$14=\"\",$F22=\"\"),\"\",INDIRECT(M$14&\"!\"&$F22))","v":"No"},{"$f":"IF(OR(N$14=\"\",$F22=\"\"),\"\",INDIRECT(N$14&\"!\"&$F22))","v":"No"},{"$f":"IF(OR(O$14=\"\",$F22=\"\"),\"\",INDIRECT(O$14&\"!\"&$F22))","v":"No"},{"$f":"IF(OR(P$14=\"\",$F22=\"\"),\"\",INDIRECT(P$14&\"!\"&$F22))","v":"Yes"},{"$f":"IF(OR(Q$14=\"\",$F22=\"\"),\"\",INDIRECT(Q$14&\"!\"&$F22))","v":"No"},{"$f":"IF(OR(R$14=\"\",$F22=\"\"),\"\",INDIRECT(R$14&\"!\"&$F22))","v":"Yes"},{"$f":"IF(OR(S$14=\"\",$F22=\"\"),\"\",INDIRECT(S$14&\"!\"&$F22))","v":"No"},{"$f":"IF(OR(T$14=\"\",$F22=\"\"),\"\",INDIRECT(T$14&\"!\"&$F22))","v":"No"},{"$f":"IF(OR(U$14=\"\",$F22=\"\"),\"\",INDIRECT(U$14&\"!\"&$F22))","v":"No"},{"$f":"IF(OR(V$14=\"\",$F22=\"\"),\"\",INDIRECT(V$14&\"!\"&$F22))","v":"Yes"},{"$f":"IF(OR(W$14=\"\",$F22=\"\"),\"\",INDIRECT(W$14&\"!\"&$F22))","v":"No"},{"$f":"IF(OR(X$14=\"\",$F22=\"\"),\"\",INDIRECT(X$14&\"!\"&$F22))","v":"No"},{"$f":"IF(OR(Y$14=\"\",$F22=\"\"),\"\",INDIRECT(Y$14&\"!\"&$F22))","v":0},{"$f":"IF(OR(Z$14=\"\",$F22=\"\"),\"\",INDIRECT(Z$14&\"!\"&$F22))","v":0},{"$f":"IF(OR(AA$14=\"\",$F22=\"\"),\"\",INDIRECT(AA$14&\"!\"&$F22))","v":""},{"$f":"IF(OR(AB$14=\"\",$F22=\"\"),\"\",INDIRECT(AB$14&\"!\"&$F22))","v":""},{"$f":"IF(OR(AC$14=\"\",$F22=\"\"),\"\",INDIRECT(AC$14&\"!\"&$F22))","v":""}]
[null,null,null,null,"Weighing","C66",{"$f":"IF(OR(G$14=\"\",$F23=\"\"),\"\",INDIRECT(G$14&\"!\"&$F23))","v":"No"},{"$f":"IF(OR(H$14=\"\",$F23=\"\"),\"\",INDIRECT(H$14&\"!\"&$F23))","v":"No"},{"$f":"IF(OR(I$14=\"\",$F23=\"\"),\"\",INDIRECT(I$14&\"!\"&$F23))","v":"Yes"},{"$f":"IF(OR(J$14=\"\",$F23=\"\"),\"\",INDIRECT(J$14&\"!\"&$F23))","v":"Yes"},{"$f":"IF(OR(K$14=\"\",$F23=\"\"),\"\",INDIRECT(K$14&\"!\"&$F23))","v":"No"},{"$f":"IF(OR(L$14=\"\",$F23=\"\"),\"\",INDIRECT(L$14&\"!\"&$F23))","v":"No"},{"$f":"IF(OR(M$14=\"\",$F23=\"\"),\"\",INDIRECT(M$14&\"!\"&$F23))","v":"No"},{"$f":"IF(OR(N$14=\"\",$F23=\"\"),\"\",INDIRECT(N$14&\"!\"&$F23))","v":"No"},{"$f":"IF(OR(O$14=\"\",$F23=\"\"),\"\",INDIRECT(O$14&\"!\"&$F23))","v":"No"},{"$f":"IF(OR(P$14=\"\",$F23=\"\"),\"\",INDIRECT(P$14&\"!\"&$F23))","v":"No"},{"$f":"IF(OR(Q$14=\"\",$F23=\"\"),\"\",INDIRECT(Q$14&\"!\"&$F23))","v":"No"},{"$f":"IF(OR(R$14=\"\",$F23=\"\"),\"\",INDIRECT(R$14&\"!\"&$F23))","v":"Yes"},{"$f":"IF(OR(S$14=\"\",$F23=\"\"),\"\",INDIRECT(S$14&\"!\"&$F23))","v":"No"},{"$f":"IF(OR(T$14=\"\",$F23=\"\"),\"\",INDIRECT(T$14&\"!\"&$F23))","v":"No"},{"$f":"IF(OR(U$14=\"\",$F23=\"\"),\"\",INDIRECT(U$14&\"!\"&$F23))","v":"Yes"},{"$f":"IF(OR(V$14=\"\",$F23=\"\"),\"\",INDIRECT(V$14&\"!\"&$F23))","v":"Yes"},{"$f":"IF(OR(W$14=\"\",$F23=\"\"),\"\",INDIRECT(W$14&\"!\"&$F23))","v":"No"},{"$f":"IF(OR(X$14=\"\",$F23=\"\"),\"\",INDIRECT(X$14&\"!\"&$F23))","v":"No"},{"$f":"IF(OR(Y$14=\"\",$F23=\"\"),\"\",INDIRECT(Y$14&\"!\"&$F23))","v":"No"},{"$f":"IF(OR(Z$14=\"\",$F23=\"\"),\"\",INDIRECT(Z$14&\"!\"&$F23))","v":"Yes"},{"$f":"IF(OR(AA$14=\"\",$F23=\"\"),\"\",INDIRECT(AA$14&\"!\"&$F23))","v":""},{"$f":"IF(OR(AB$14=\"\",$F23=\"\"),\"\",INDIRECT(AB$14&\"!\"&$F23))","v":""},{"$f":"IF(OR(AC$14=\"\",$F23=\"\"),\"\",INDIRECT(AC$14&\"!\"&$F23))","v":""}]
[null,null,null,"Life cycle stage included:","A1 - Extraction and pre-processing of raw materials","C70",{"$f":"IF(OR(G$14=\"\",$F24=\"\"),\"\",INDIRECT(G$14&\"!\"&$F24))","v":"Yes"},{"$f":"IF(OR(H$14=\"\",$F24=\"\"),\"\",INDIRECT(H$14&\"!\"&$F24))","v":"Yes"},{"$f":"IF(OR(I$14=\"\",$F24=\"\"),\"\",INDIRECT(I$14&\"!\"&$F24))","v":"Yes"},{"$f":"IF(OR(J$14=\"\",$F24=\"\"),\"\",INDIRECT(J$14&\"!\"&$F24))","v":"Yes"},{"$f":"IF(OR(K$14=\"\",$F24=\"\"),\"\",INDIRECT(K$14&\"!\"&$F24))","v":"Yes"},{"$f":"IF(OR(L$14=\"\",$F24=\"\"),\"\",INDIRECT(L$14&\"!\"&$F24))","v":"Yes"},{"$f":"IF(OR(M$14=\"\",$F24=\"\"),\"\",INDIRECT(M$14&\"!\"&$F24))","v":"Yes"},{"$f":"IF(OR(N$14=\"\",$F24=\"\"),\"\",INDIRECT(N$14&\"!\"&$F24))","v":"No"},{"$f":"IF(OR(O$14=\"\",$F24=\"\"),\"\",INDIRECT(O$14&\"!\"&$F24))","v":"No"},{"$f":"IF(OR(P$14=\"\",$F24=\"\"),\"\",INDIRECT(P$14&\"!\"&$F24))","v":"Yes"},{"$f":"IF(OR(Q$14=\"\",$F24=\"\"),\"\",INDIRECT(Q$14&\"!\"&$F24))","v":"Yes"},{"$f":"IF(OR(R$14=\"\",$F24=\"\"),\"\",INDIRECT(R$14&\"!\"&$F24))","v":"Yes"},{"$f":"IF(OR(S$14=\"\",$F24=\"\"),\"\",INDIRECT(S$14&\"!\"&$F24))","v":"Yes"},{"$f":"IF(OR(T$14=\"\",$F24=\"\"),\"\",INDIRECT(T$14&\"!\"&$F24))","v":"No"},{"$f":"IF(OR(U$14=\"\",$F24=\"\"),\"\",INDIRECT(U$14&\"!\"&$F24))","v":"Yes"},{"$f":"IF(OR(V$14=\"\",$F24=\"\"),\"\",INDIRECT(V$14&\"!\"&$F24))","v":"Yes"},{"$f":"IF(OR(W$14=\"\",$F24=\"\"),\"\",INDIRECT(W$14&\"!\"&$F24))","v":"No"},{"$f":"IF(OR(X$14=\"\",$F24=\"\"),\"\",INDIRECT(X$14&\"!\"&$F24))","v":"Yes"},{"$f":"IF(OR(Y$14=\"\",$F24=\"\"),\"\",INDIRECT(Y$14&\"!\"&$F24))","v":"Yes"},{"$f":"IF(OR(Z$14=\"\",$F24=\"\"),\"\",INDIRECT(Z$14&\"!\"&$F24))","v":"Yes"},{"$f":"IF(OR(AA$14=\"\",$F24=\"\"),\"\",INDIRECT(AA$14&\"!\"&$F24))","v":""},{"$f":"IF(OR(AB$14=\"\",$F24=\"\"),\"\",INDIRECT(AB$14&\"!\"&$F24))","v":""},{"$f":"IF(OR(AC$14=\"\",$F24=\"\"),\"\",INDIRECT(AC$14&\"!\"&$F24))","v":""}]
[null,null,null,null,"A2 - Transport to producer","C71",{"$f":"IF(OR(G$14=\"\",$F25=\"\"),\"\",INDIRECT(G$14&\"!\"&$F25))","v":"Yes"},{"$f":"IF(OR(H$14=\"\",$F25=\"\"),\"\",INDIRECT(H$14&\"!\"&$F25))","v":"Yes"},{"$f":"IF(OR(I$14=\"\",$F25=\"\"),\"\",INDIRECT(I$14&\"!\"&$F25))","v":"Yes"},{"$f":"IF(OR(J$14=\"\",$F25=\"\"),\"\",INDIRECT(J$14&\"!\"&$F25))","v":"Yes"},{"$f":"IF(OR(K$14=\"\",$F25=\"\"),\"\",INDIRECT(K$14&\"!\"&$F25))","v":"Yes"},{"$f":"IF(OR(L$14=\"\",$F25=\"\"),\"\",INDIRECT(L$14&\"!\"&$F25))","v":"Yes"},{"$f":"IF(OR(M$14=\"\",$F25=\"\"),\"\",INDIRECT(M$14&\"!\"&$F25))","v":"Yes"},{"$f":"IF(OR(N$14=\"\",$F25=\"\"),\"\",INDIRECT(N$14&\"!\"&$F25))","v":"No"},{"$f":"IF(OR(O$14=\"\",$F25=\"\"),\"\",INDIRECT(O$14&\"!\"&$F25))","v":"No"},{"$f":"IF(OR(P$14=\"\",$F25=\"\"),\"\",INDIRECT(P$14&\"!\"&$F25))","v":"Yes"},{"$f":"IF(OR(Q$14=\"\",$F25=\"\"),\"\",INDIRECT(Q$14&\"!\"&$F25))","v":"Yes"},{"$f":"IF(OR(R$14=\"\",$F25=\"\"),\"\",INDIRECT(R$14&\"!\"&$F25))","v":"Yes"},{"$f":"IF(OR(S$14=\"\",$F25=\"\"),\"\",INDIRECT(S$14&\"!\"&$F25))","v":"Yes"},{"$f":"IF(OR(T$14=\"\",$F25=\"\"),\"\",INDIRECT(T$14&\"!\"&$F25))","v":"No"},{"$f":"IF(OR(U$14=\"\",$F25=\"\"),\"\",INDIRECT(U$14&\"!\"&$F25))","v":"Yes"},{"$f":"IF(OR(V$14=\"\",$F25=\"\"),\"\",INDIRECT(V$14&\"!\"&$F25))","v":"Yes"},{"$f":"IF(OR(W$14=\"\",$F25=\"\"),\"\",INDIRECT(W$14&\"!\"&$F25))","v":"No"},{"$f":"IF(OR(X$14=\"\",$F25=\"\"),\"\",INDIRECT(X$14&\"!\"&$F25))","v":"Yes"},{"$f":"IF(OR(Y$14=\"\",$F25=\"\"),\"\",INDIRECT(Y$14&\"!\"&$F25))","v":"Yes"},{"$f":"IF(OR(Z$14=\"\",$F25=\"\"),\"\",INDIRECT(Z$14&\"!\"&$F25))","v":"Yes"},{"$f":"IF(OR(AA$14=\"\",$F25=\"\"),\"\",INDIRECT(AA$14&\"!\"&$F25))","v":""},{"$f":"IF(OR(AB$14=\"\",$F25=\"\"),\"\",INDIRECT(AB$14&\"!\"&$F25))","v":""},{"$f":"IF(OR(AC$14=\"\",$F25=\"\"),\"\",INDIRECT(AC$14&\"!\"&$F25))","v":""}]
[null,null,null,null,"A3 - Production","C72",{"$f":"IF(OR(G$14=\"\",$F26=\"\"),\"\",INDIRECT(G$14&\"!\"&$F26))","v":"Yes"},{"$f":"IF(OR(H$14=\"\",$F26=\"\"),\"\",INDIRECT(H$14&\"!\"&$F26))","v":"Yes"},{"$f":"IF(OR(I$14=\"\",$F26=\"\"),\"\",INDIRECT(I$14&\"!\"&$F26))","v":"Yes"},{"$f":"IF(OR(J$14=\"\",$F26=\"\"),\"\",INDIRECT(J$14&\"!\"&$F26))","v":"Yes"},{"$f":"IF(OR(K$14=\"\",$F26=\"\"),\"\",INDIRECT(K$14&\"!\"&$F26))","v":"Yes"},{"$f":"IF(OR(L$14=\"\",$F26=\"\"),\"\",INDIRECT(L$14&\"!\"&$F26))","v":"Yes"},{"$f":"IF(OR(M$14=\"\",$F26=\"\"),\"\",INDIRECT(M$14&\"!\"&$F26))","v":"Yes"},{"$f":"IF(OR(N$14=\"\",$F26=\"\"),\"\",INDIRECT(N$14&\"!\"&$F26))","v":"No"},{"$f":"IF(OR(O$14=\"\",$F26=\"\"),\"\",INDIRECT(O$14&\"!\"&$F26))","v":"No"},{"$f":"IF(OR(P$14=\"\",$F26=\"\"),\"\",INDIRECT(P$14&\"!\"&$F26))","v":"Yes"},{"$f":"IF(OR(Q$14=\"\",$F26=\"\"),\"\",INDIRECT(Q$14&\"!\"&$F26))","v":"Yes"},{"$f":"IF(OR(R$14=\"\",$F26=\"\"),\"\",INDIRECT(R$14&\"!\"&$F26))","v":"Yes"},{"$f":"IF(OR(S$14=\"\",$F26=\"\"),\"\",INDIRECT(S$14&\"!\"&$F26))","v":"Yes"},{"$f":"IF(OR(T$14=\"\",$F26=\"\"),\"\",INDIRECT(T$14&\"!\"&$F26))","v":"Yes"},{"$f":"IF(OR(U$14=\"\",$F26=\"\"),\"\",INDIRECT(U$14&\"!\"&$F26))","v":"Yes"},{"$f":"IF(OR(V$14=\"\",$F26=\"\"),\"\",INDIRECT(V$14&\"!\"&$F26))","v":"Yes"},{"$f":"IF(OR(W$14=\"\",$F26=\"\"),\"\",INDIRECT(W$14&\"!\"&$F26))","v":"No"},{"$f":"IF(OR(X$14=\"\",$F26=\"\"),\"\",INDIRECT(X$14&\"!\"&$F26))","v":"Yes"},{"$f":"IF(OR(Y$14=\"\",$F26=\"\"),\"\",INDIRECT(Y$14&\"!\"&$F26))","v":"Yes"},{"$f":"IF(OR(Z$14=\"\",$F26=\"\"),\"\",INDIRECT(Z$14&\"!\"&$F26))","v":"Yes"},{"$f":"IF(OR(AA$14=\"\",$F26=\"\"),\"\",INDIRECT(AA$14&\"!\"&$F26))","v":""},{"$f":"IF(OR(AB$14=\"\",$F26=\"\"),\"\",INDIRECT(AB$14&\"!\"&$F26))","v":""},{"$f":"IF(OR(AC$14=\"\",$F26=\"\"),\"\",INDIRECT(AC$14&\"!\"&$F26))","v":""}]
[null,null,null,null,"A4 - Transport to building location","C73",{"$f":"IF(OR(G$14=\"\",$F27=\"\"),\"\",INDIRECT(G$14&\"!\"&$F27))","v":"Yes"},{"$f":"IF(OR(H$14=\"\",$F27=\"\"),\"\",INDIRECT(H$14&\"!\"&$F27))","v":"Yes"},{"$f":"IF(OR(I$14=\"\",$F27=\"\"),\"\",INDIRECT(I$14&\"!\"&$F27))","v":"Yes"},{"$f":"IF(OR(J$14=\"\",$F27=\"\"),\"\",INDIRECT(J$14&\"!\"&$F27))","v":"Yes"},{"$f":"IF(OR(K$14=\"\",$F27=\"\"),\"\",INDIRECT(K$14&\"!\"&$F27))","v":"Yes"},{"$f":"IF(OR(L$14=\"\",$F27=\"\"),\"\",INDIRECT(L$14&\"!\"&$F27))","v":"Yes"},{"$f":"IF(OR(M$14=\"\",$F27=\"\"),\"\",INDIRECT(M$14&\"!\"&$F27))","v":"No"},{"$f":"IF(OR(N$14=\"\",$F27=\"\"),\"\",INDIRECT(N$14&\"!\"&$F27))","v":"No"},{"$f":"IF(OR(O$14=\"\",$F27=\"\"),\"\",INDIRECT(O$14&\"!\"&$F27))","v":"No"},{"$f":"IF(OR(P$14=\"\",$F27=\"\"),\"\",INDIRECT(P$14&\"!\"&$F27))","v":"Yes"},{"$f":"IF(OR(Q$14=\"\",$F27=\"\"),\"\",INDIRECT(Q$14&\"!\"&$F27))","v":"Yes"},{"$f":"IF(OR(R$14=\"\",$F27=\"\"),\"\",INDIRECT(R$14&\"!\"&$F27))","v":"Yes"},{"$f":"IF(OR(S$14=\"\",$F27=\"\"),\"\",INDIRECT(S$14&\"!\"&$F27))","v":"Yes"},{"$f":"IF(OR(T$14=\"\",$F27=\"\"),\"\",INDIRECT(T$14&\"!\"&$F27))","v":"No"},{"$f":"IF(OR(U$14=\"\",$F27=\"\"),\"\",INDIRECT(U$14&\"!\"&$F27))","v":"Yes"},{"$f":"IF(OR(V$14=\"\",$F27=\"\"),\"\",INDIRECT(V$14&\"!\"&$F27))","v":"Yes"},{"$f":"IF(OR(W$14=\"\",$F27=\"\"),\"\",INDIRECT(W$14&\"!\"&$F27))","v":"Yes"},{"$f":"IF(OR(X$14=\"\",$F27=\"\"),\"\",INDIRECT(X$14&\"!\"&$F27))","v":"Yes"},{"$f":"IF(OR(Y$14=\"\",$F27=\"\"),\"\",INDIRECT(Y$14&\"!\"&$F27))","v":"No"},{"$f":"IF(OR(Z$14=\"\",$F27=\"\"),\"\",INDIRECT(Z$14&\"!\"&$F27))","v":"Yes"},{"$f":"IF(OR(AA$14=\"\",$F27=\"\"),\"\",INDIRECT(AA$14&\"!\"&$F27))","v":""},{"$f":"IF(OR(AB$14=\"\",$F27=\"\"),\"\",INDIRECT(AB$14&\"!\"&$F27))","v":""},{"$f":"IF(OR(AC$14=\"\",$F27=\"\"),\"\",INDIRECT(AC$14&\"!\"&$F27))","v":""}]
[null,null,null,null,"A5 - Building phase and implementation","C74",{"$f":"IF(OR(G$14=\"\",$F28=\"\"),\"\",INDIRECT(G$14&\"!\"&$F28))","v":"Yes"},{"$f":"IF(OR(H$14=\"\",$F28=\"\"),\"\",INDIRECT(H$14&\"!\"&$F28))","v":"Yes"},{"$f":"IF(OR(I$14=\"\",$F28=\"\"),\"\",INDIRECT(I$14&\"!\"&$F28))","v":"Yes"},{"$f":"IF(OR(J$14=\"\",$F28=\"\"),\"\",INDIRECT(J$14&\"!\"&$F28))","v":"Yes"},{"$f":"IF(OR(K$14=\"\",$F28=\"\"),\"\",INDIRECT(K$14&\"!\"&$F28))","v":"Yes"},{"$f":"IF(OR(L$14=\"\",$F28=\"\"),\"\",INDIRECT(L$14&\"!\"&$F28))","v":"Yes"},{"$f":"IF(OR(M$14=\"\",$F28=\"\"),\"\",INDIRECT(M$14&\"!\"&$F28))","v":"Yes"},{"$f":"IF(OR(N$14=\"\",$F28=\"\"),\"\",INDIRECT(N$14&\"!\"&$F28))","v":"Yes"},{"$f":"IF(OR(O$14=\"\",$F28=\"\"),\"\",INDIRECT(O$14&\"!\"&$F28))","v":"Yes"},{"$f":"IF(OR(P$14=\"\",$F28=\"\"),\"\",INDIRECT(P$14&\"!\"&$F28))","v":"Yes"},{"$f":"IF(OR(Q$14=\"\",$F28=\"\"),\"\",INDIRECT(Q$14&\"!\"&$F28))","v":"Yes"},{"$f":"IF(OR(R$14=\"\",$F28=\"\"),\"\",INDIRECT(R$14&\"!\"&$F28))","v":"Yes"},{"$f":"IF(OR(S$14=\"\",$F28=\"\"),\"\",INDIRECT(S$14&\"!\"&$F28))","v":"Yes"},{"$f":"IF(OR(T$14=\"\",$F28=\"\"),\"\",INDIRECT(T$14&\"!\"&$F28))","v":"Yes"},{"$f":"IF(OR(U$14=\"\",$F28=\"\"),\"\",INDIRECT(U$14&\"!\"&$F28))","v":"Yes"},{"$f":"IF(OR(V$14=\"\",$F28=\"\"),\"\",INDIRECT(V$14&\"!\"&$F28))","v":"Yes"},{"$f":"IF(OR(W$14=\"\",$F28=\"\"),\"\",INDIRECT(W$14&\"!\"&$F28))","v":"Yes"},{"$f":"IF(OR(X$14=\"\",$F28=\"\"),\"\",INDIRECT(X$14&\"!\"&$F28))","v":"Yes"},{"$f":"IF(OR(Y$14=\"\",$F28=\"\"),\"\",INDIRECT(Y$14&\"!\"&$F28))","v":"No"},{"$f":"IF(OR(Z$14=\"\",$F28=\"\"),\"\",INDIRECT(Z$14&\"!\"&$F28))","v":"Yes"},{"$f":"IF(OR(AA$14=\"\",$F28=\"\"),\"\",INDIRECT(AA$14&\"!\"&$F28))","v":""},{"$f":"IF(OR(AB$14=\"\",$F28=\"\"),\"\",INDIRECT(AB$14&\"!\"&$F28))","v":""},{"$f":"IF(OR(AC$14=\"\",$F28=\"\"),\"\",INDIRECT(AC$14&\"!\"&$F28))","v":""}]
[null,null,null,null,"B - Use stage + maintenance","C75",{"$f":"IF(OR(G$14=\"\",$F29=\"\"),\"\",INDIRECT(G$14&\"!\"&$F29))","v":"Yes"},{"$f":"IF(OR(H$14=\"\",$F29=\"\"),\"\",INDIRECT(H$14&\"!\"&$F29))","v":"Yes"},{"$f":"IF(OR(I$14=\"\",$F29=\"\"),\"\",INDIRECT(I$14&\"!\"&$F29))","v":"Yes"},{"$f":"IF(OR(J$14=\"\",$F29=\"\"),\"\",INDIRECT(J$14&\"!\"&$F29))","v":"Yes"},{"$f":"IF(OR(K$14=\"\",$F29=\"\"),\"\",INDIRECT(K$14&\"!\"&$F29))","v":"Yes"},{"$f":"IF(OR(L$14=\"\",$F29=\"\"),\"\",INDIRECT(L$14&\"!\"&$F29))","v":"Yes"},{"$f":"IF(OR(M$14=\"\",$F29=\"\"),\"\",INDIRECT(M$14&\"!\"&$F29))","v":"Yes"},{"$f":"IF(OR(N$14=\"\",$F29=\"\"),\"\",INDIRECT(N$14&\"!\"&$F29))","v":"Yes"},{"$f":"IF(OR(O$14=\"\",$F29=\"\"),\"\",INDIRECT(O$14&\"!\"&$F29))","v":"Yes"},{"$f":"IF(OR(P$14=\"\",$F29=\"\"),\"\",INDIRECT(P$14&\"!\"&$F29))","v":"Yes"},{"$f":"IF(OR(Q$14=\"\",$F29=\"\"),\"\",INDIRECT(Q$14&\"!\"&$F29))","v":"Yes"},{"$f":"IF(OR(R$14=\"\",$F29=\"\"),\"\",INDIRECT(R$14&\"!\"&$F29))","v":"Yes"},{"$f":"IF(OR(S$14=\"\",$F29=\"\"),\"\",INDIRECT(S$14&\"!\"&$F29))","v":"Yes"},{"$f":"IF(OR(T$14=\"\",$F29=\"\"),\"\",INDIRECT(T$14&\"!\"&$F29))","v":"Yes"},{"$f":"IF(OR(U$14=\"\",$F29=\"\"),\"\",INDIRECT(U$14&\"!\"&$F29))","v":"Yes"},{"$f":"IF(OR(V$14=\"\",$F29=\"\"),\"\",INDIRECT(V$14&\"!\"&$F29))","v":"Yes"},{"$f":"IF(OR(W$14=\"\",$F29=\"\"),\"\",INDIRECT(W$14&\"!\"&$F29))","v":"Yes"},{"$f":"IF(OR(X$14=\"\",$F29=\"\"),\"\",INDIRECT(X$14&\"!\"&$F29))","v":"Yes"},{"$f":"IF(OR(Y$14=\"\",$F29=\"\"),\"\",INDIRECT(Y$14&\"!\"&$F29))","v":"No"},{"$f":"IF(OR(Z$14=\"\",$F29=\"\"),\"\",INDIRECT(Z$14&\"!\"&$F29))","v":"Yes"},{"$f":"IF(OR(AA$14=\"\",$F29=\"\"),\"\",INDIRECT(AA$14&\"!\"&$F29))","v":""},{"$f":"IF(OR(AB$14=\"\",$F29=\"\"),\"\",INDIRECT(AB$14&\"!\"&$F29))","v":""},{"$f":"IF(OR(AC$14=\"\",$F29=\"\"),\"\",INDIRECT(AC$14&\"!\"&$F29))","v":""}]
[null,null,null,null,"C1 - Demolition / removal","C76",{"$f":"IF(OR(G$14=\"\",$F30=\"\"),\"\",INDIRECT(G$14&\"!\"&$F30))","v":"Yes"},{"$f":"IF(OR(H$14=\"\",$F30=\"\"),\"\",INDIRECT(H$14&\"!\"&$F30))","v":"Yes"},{"$f":"IF(OR(I$14=\"\",$F30=\"\"),\"\",INDIRECT(I$14&\"!\"&$F30))","v":"Yes"},{"$f":"IF(OR(J$14=\"\",$F30=\"\"),\"\",INDIRECT(J$14&\"!\"&$F30))","v":"Yes"},{"$f":"IF(OR(K$14=\"\",$F30=\"\"),\"\",INDIRECT(K$14&\"!\"&$F30))","v":"Yes"},{"$f":"IF(OR(L$14=\"\",$F30=\"\"),\"\",INDIRECT(L$14&\"!\"&$F30))","v":"Yes"},{"$f":"IF(OR(M$14=\"\",$F30=\"\"),\"\",INDIRECT(M$14&\"!\"&$F30))","v":"Yes"},{"$f":"IF(OR(N$14=\"\",$F30=\"\"),\"\",INDIRECT(N$14&\"!\"&$F30))","v":"Yes"},{"$f":"IF(OR(O$14=\"\",$F30=\"\"),\"\",INDIRECT(O$14&\"!\"&$F30))","v":"No"},{"$f":"IF(OR(P$14=\"\",$F30=\"\"),\"\",INDIRECT(P$14&\"!\"&$F30))","v":"Yes"},{"$f":"IF(OR(Q$14=\"\",$F30=\"\"),\"\",INDIRECT(Q$14&\"!\"&$F30))","v":"Yes"},{"$f":"IF(OR(R$14=\"\",$F30=\"\"),\"\",INDIRECT(R$14&\"!\"&$F30))","v":"Yes"},{"$f":"IF(OR(S$14=\"\",$F30=\"\"),\"\",INDIRECT(S$14&\"!\"&$F30))","v":"No"},{"$f":"IF(OR(T$14=\"\",$F30=\"\"),\"\",INDIRECT(T$14&\"!\"&$F30))","v":"No"},{"$f":"IF(OR(U$14=\"\",$F30=\"\"),\"\",INDIRECT(U$14&\"!\"&$F30))","v":"Yes"},{"$f":"IF(OR(V$14=\"\",$F30=\"\"),\"\",INDIRECT(V$14&\"!\"&$F30))","v":"Yes"},{"$f":"IF(OR(W$14=\"\",$F30=\"\"),\"\",INDIRECT(W$14&\"!\"&$F30))","v":"No"},{"$f":"IF(OR(X$14=\"\",$F30=\"\"),\"\",INDIRECT(X$14&\"!\"&$F30))","v":"Yes"},{"$f":"IF(OR(Y$14=\"\",$F30=\"\"),\"\",INDIRECT(Y$14&\"!\"&$F30))","v":"No"},{"$f":"IF(OR(Z$14=\"\",$F30=\"\"),\"\",INDIRECT(Z$14&\"!\"&$F30))","v":"Yes"},{"$f":"IF(OR(AA$14=\"\",$F30=\"\"),\"\",INDIRECT(AA$14&\"!\"&$F30))","v":""},{"$f":"IF(OR(AB$14=\"\",$F30=\"\"),\"\",INDIRECT(AB$14&\"!\"&$F30))","v":""},{"$f":"IF(OR(AC$14=\"\",$F30=\"\"),\"\",INDIRECT(AC$14&\"!\"&$F30))","v":""}]
[null,null,null,null,"C2 - Transport to waste processing facility","C77",{"$f":"IF(OR(G$14=\"\",$F31=\"\"),\"\",INDIRECT(G$14&\"!\"&$F31))","v":"Yes"},{"$f":"IF(OR(H$14=\"\",$F31=\"\"),\"\",INDIRECT(H$14&\"!\"&$F31))","v":"No"},{"$f":"IF(OR(I$14=\"\",$F31=\"\"),\"\",INDIRECT(I$14&\"!\"&$F31))","v":"Yes"},{"$f":"IF(OR(J$14=\"\",$F31=\"\"),\"\",INDIRECT(J$14&\"!\"&$F31))","v":"Yes"},{"$f":"IF(OR(K$14=\"\",$F31=\"\"),\"\",INDIRECT(K$14&\"!\"&$F31))","v":"No"},{"$f":"IF(OR(L$14=\"\",$F31=\"\"),\"\",INDIRECT(L$14&\"!\"&$F31))","v":"No"},{"$f":"IF(OR(M$14=\"\",$F31=\"\"),\"\",INDIRECT(M$14&\"!\"&$F31))","v":"No"},{"$f":"IF(OR(N$14=\"\",$F31=\"\"),\"\",INDIRECT(N$14&\"!\"&$F31))","v":"No"},{"$f":"IF(OR(O$14=\"\",$F31=\"\"),\"\",INDIRECT(O$14&\"!\"&$F31))","v":"No"},{"$f":"IF(OR(P$14=\"\",$F31=\"\"),\"\",INDIRECT(P$14&\"!\"&$F31))","v":"Yes"},{"$f":"IF(OR(Q$14=\"\",$F31=\"\"),\"\",INDIRECT(Q$14&\"!\"&$F31))","v":"Yes"},{"$f":"IF(OR(R$14=\"\",$F31=\"\"),\"\",INDIRECT(R$14&\"!\"&$F31))","v":"Yes"},{"$f":"IF(OR(S$14=\"\",$F31=\"\"),\"\",INDIRECT(S$14&\"!\"&$F31))","v":"No"},{"$f":"IF(OR(T$14=\"\",$F31=\"\"),\"\",INDIRECT(T$14&\"!\"&$F31))","v":"No"},{"$f":"IF(OR(U$14=\"\",$F31=\"\"),\"\",INDIRECT(U$14&\"!\"&$F31))","v":"Yes"},{"$f":"IF(OR(V$14=\"\",$F31=\"\"),\"\",INDIRECT(V$14&\"!\"&$F31))","v":"Yes"},{"$f":"IF(OR(W$14=\"\",$F31=\"\"),\"\",INDIRECT(W$14&\"!\"&$F31))","v":"No"},{"$f":"IF(OR(X$14=\"\",$F31=\"\"),\"\",INDIRECT(X$14&\"!\"&$F31))","v":"Yes"},{"$f":"IF(OR(Y$14=\"\",$F31=\"\"),\"\",INDIRECT(Y$14&\"!\"&$F31))","v":"No"},{"$f":"IF(OR(Z$14=\"\",$F31=\"\"),\"\",INDIRECT(Z$14&\"!\"&$F31))","v":"Yes"},{"$f":"IF(OR(AA$14=\"\",$F31=\"\"),\"\",INDIRECT(AA$14&\"!\"&$F31))","v":""},{"$f":"IF(OR(AB$14=\"\",$F31=\"\"),\"\",INDIRECT(AB$14&\"!\"&$F31))","v":""},{"$f":"IF(OR(AC$14=\"\",$F31=\"\"),\"\",INDIRECT(AC$14&\"!\"&$F31))","v":""}]
[null,null,null,null,"C3 - Waste processing","C78",{"$f":"IF(OR(G$14=\"\",$F32=\"\"),\"\",INDIRECT(G$14&\"!\"&$F32))","v":"Yes"},{"$f":"IF(OR(H$14=\"\",$F32=\"\"),\"\",INDIRECT(H$14&\"!\"&$F32))","v":"No"},{"$f":"IF(OR(I$14=\"\",$F32=\"\"),\"\",INDIRECT(I$14&\"!\"&$F32))","v":"Yes"},{"$f":"IF(OR(J$14=\"\",$F32=\"\"),\"\",INDIRECT(J$14&\"!\"&$F32))","v":"Yes"},{"$f":"IF(OR(K$14=\"\",$F32=\"\"),\"\",INDIRECT(K$14&\"!\"&$F32))","v":"No"},{"$f":"IF(OR(L$14=\"\",$F32=\"\"),\"\",INDIRECT(L$14&\"!\"&$F32))","v":"No"},{"$f":"IF(OR(M$14=\"\",$F32=\"\"),\"\",INDIRECT(M$14&\"!\"&$F32))","v":"No"},{"$f":"IF(OR(N$14=\"\",$F32=\"\"),\"\",INDIRECT(N$14&\"!\"&$F32))","v":"No"},{"$f":"IF(OR(O$14=\"\",$F32=\"\"),\"\",INDIRECT(O$14&\"!\"&$F32))","v":"No"},{"$f":"IF(OR(P$14=\"\",$F32=\"\"),\"\",INDIRECT(P$14&\"!\"&$F32))","v":"Yes"},{"$f":"IF(OR(Q$14=\"\",$F32=\"\"),\"\",INDIRECT(Q$14&\"!\"&$F32))","v":"Yes"},{"$f":"IF(OR(R$14=\"\",$F32=\"\"),\"\",INDIRECT(R$14&\"!\"&$F32))","v":"Yes"},{"$f":"IF(OR(S$14=\"\",$F32=\"\"),\"\",INDIRECT(S$14&\"!\"&$F32))","v":"No"},{"$f":"IF(OR(T$14=\"\",$F32=\"\"),\"\",INDIRECT(T$14&\"!\"&$F32))","v":"No"},{"$f":"IF(OR(U$14=\"\",$F32=\"\"),\"\",INDIRECT(U$14&\"!\"&$F32))","v":"Yes"},{"$f":"IF(OR(V$14=\"\",$F32=\"\"),\"\",INDIRECT(V$14&\"!\"&$F32))","v":"Yes"},{"$f":"IF(OR(W$14=\"\",$F32=\"\"),\"\",INDIRECT(W$14&\"!\"&$F32))","v":"No"},{"$f":"IF(OR(X$14=\"\",$F32=\"\"),\"\",INDIRECT(X$14&\"!\"&$F32))","v":"Yes"},{"$f":"IF(OR(Y$14=\"\",$F32=\"\"),\"\",INDIRECT(Y$14&\"!\"&$F32))","v":"No"},{"$f":"IF(OR(Z$14=\"\",$F32=\"\"),\"\",INDIRECT(Z$14&\"!\"&$F32))","v":"Yes"},{"$f":"IF(OR(AA$14=\"\",$F32=\"\"),\"\",INDIRECT(AA$14&\"!\"&$F32))","v":""},{"$f":"IF(OR(AB$14=\"\",$F32=\"\"),\"\",INDIRECT(AB$14&\"!\"&$F32))","v":""},{"$f":"IF(OR(AC$14=\"\",$F32=\"\"),\"\",INDIRECT(AC$14&\"!\"&$F32))","v":""}]
[null,null,null,null,"C4 - Final waste destination","C79",{"$f":"IF(OR(G$14=\"\",$F33=\"\"),\"\",INDIRECT(G$14&\"!\"&$F33))","v":"Yes"},{"$f":"IF(OR(H$14=\"\",$F33=\"\"),\"\",INDIRECT(H$14&\"!\"&$F33))","v":"No"},{"$f":"IF(OR(I$14=\"\",$F33=\"\"),\"\",INDIRECT(I$14&\"!\"&$F33))","v":"Yes"},{"$f":"IF(OR(J$14=\"\",$F33=\"\"),\"\",INDIRECT(J$14&\"!\"&$F33))","v":"Yes"},{"$f":"IF(OR(K$14=\"\",$F33=\"\"),\"\",INDIRECT(K$14&\"!\"&$F33))","v":"No"},{"$f":"IF(OR(L$14=\"\",$F33=\"\"),\"\",INDIRECT(L$14&\"!\"&$F33))","v":"No"},{"$f":"IF(OR(M$14=\"\",$F33=\"\"),\"\",INDIRECT(M$14&\"!\"&$F33))","v":"No"},{"$f":"IF(OR(N$14=\"\",$F33=\"\"),\"\",INDIRECT(N$14&\"!\"&$F33))","v":"No"},{"$f":"IF(OR(O$14=\"\",$F33=\"\"),\"\",INDIRECT(O$14&\"!\"&$F33))","v":"No"},{"$f":"IF(OR(P$14=\"\",$F33=\"\"),\"\",INDIRECT(P$14&\"!\"&$F33))","v":"Yes"},{"$f":"IF(OR(Q$14=\"\",$F33=\"\"),\"\",INDIRECT(Q$14&\"!\"&$F33))","v":"Yes"},{"$f":"IF(OR(R$14=\"\",$F33=\"\"),\"\",INDIRECT(R$14&\"!\"&$F33))","v":"Yes"},{"$f":"IF(OR(S$14=\"\",$F33=\"\"),\"\",INDIRECT(S$14&\"!\"&$F33))","v":"No"},{"$f":"IF(OR(T$14=\"\",$F33=\"\"),\"\",INDIRECT(T$14&\"!\"&$F33))","v":"No"},{"$f":"IF(OR(U$14=\"\",$F33=\"\"),\"\",INDIRECT(U$14&\"!\"&$F33))","v":"Yes"},{"$f":"IF(OR(V$14=\"\",$F33=\"\"),\"\",INDIRECT(V$14&\"!\"&$F33))","v":"Yes"},{"$f":"IF(OR(W$14=\"\",$F33=\"\"),\"\",INDIRECT(W$14&\"!\"&$F33))","v":"No"},{"$f":"IF(OR(X$14=\"\",$F33=\"\"),\"\",INDIRECT(X$14&\"!\"&$F33))","v":"Yes"},{"$f":"IF(OR(Y$14=\"\",$F33=\"\"),\"\",INDIRECT(Y$14&\"!\"&$F33))","v":"No"},{"$f":"IF(OR(Z$14=\"\",$F33=\"\"),\"\",INDIRECT(Z$14&\"!\"&$F33))","v":"Yes"},{"$f":"IF(OR(AA$14=\"\",$F33=\"\"),\"\",INDIRECT(AA$14&\"!\"&$F33))","v":""},{"$f":"IF(OR(AB$14=\"\",$F33=\"\"),\"\",INDIRECT(AB$14&\"!\"&$F33))","v":""},{"$f":"IF(OR(AC$14=\"\",$F33=\"\"),\"\",INDIRECT(AC$14&\"!\"&$F33))","v":""}]
[null,null,null,null,"D - Recycling","C80",{"$f":"IF(OR(G$14=\"\",$F34=\"\"),\"\",INDIRECT(G$14&\"!\"&$F34))","v":"No"},{"$f":"IF(OR(H$14=\"\",$F34=\"\"),\"\",INDIRECT(H$14&\"!\"&$F34))","v":"No"},{"$f":"IF(OR(I$14=\"\",$F34=\"\"),\"\",INDIRECT(I$14&\"!\"&$F34))","v":"Yes"},{"$f":"IF(OR(J$14=\"\",$F34=\"\"),\"\",INDIRECT(J$14&\"!\"&$F34))","v":"No"},{"$f":"IF(OR(K$14=\"\",$F34=\"\"),\"\",INDIRECT(K$14&\"!\"&$F34))","v":"No"},{"$f":"IF(OR(L$14=\"\",$F34=\"\"),\"\",INDIRECT(L$14&\"!\"&$F34))","v":"No"},{"$f":"IF(OR(M$14=\"\",$F34=\"\"),\"\",INDIRECT(M$14&\"!\"&$F34))","v":"Yes"},{"$f":"IF(OR(N$14=\"\",$F34=\"\"),\"\",INDIRECT(N$14&\"!\"&$F34))","v":"No"},{"$f":"IF(OR(O$14=\"\",$F34=\"\"),\"\",INDIRECT(O$14&\"!\"&$F34))","v":"No"},{"$f":"IF(OR(P$14=\"\",$F34=\"\"),\"\",INDIRECT(P$14&\"!\"&$F34))","v":"No"},{"$f":"IF(OR(Q$14=\"\",$F34=\"\"),\"\",INDIRECT(Q$14&\"!\"&$F34))","v":"No"},{"$f":"IF(OR(R$14=\"\",$F34=\"\"),\"\",INDIRECT(R$14&\"!\"&$F34))","v":"Yes"},{"$f":"IF(OR(S$14=\"\",$F34=\"\"),\"\",INDIRECT(S$14&\"!\"&$F34))","v":"No"},{"$f":"IF(OR(T$14=\"\",$F34=\"\"),\"\",INDIRECT(T$14&\"!\"&$F34))","v":"No"},{"$f":"IF(OR(U$14=\"\",$F34=\"\"),\"\",INDIRECT(U$14&\"!\"&$F34))","v":"Yes"},{"$f":"IF(OR(V$14=\"\",$F34=\"\"),\"\",INDIRECT(V$14&\"!\"&$F34))","v":"Yes"},{"$f":"IF(OR(W$14=\"\",$F34=\"\"),\"\",INDIRECT(W$14&\"!\"&$F34))","v":"No"},{"$f":"IF(OR(X$14=\"\",$F34=\"\"),\"\",INDIRECT(X$14&\"!\"&$F34))","v":"No"},{"$f":"IF(OR(Y$14=\"\",$F34=\"\"),\"\",INDIRECT(Y$14&\"!\"&$F34))","v":"No"},{"$f":"IF(OR(Z$14=\"\",$F34=\"\"),\"\",INDIRECT(Z$14&\"!\"&$F34))","v":"Yes"},{"$f":"IF(OR(AA$14=\"\",$F34=\"\"),\"\",INDIRECT(AA$14&\"!\"&$F34))","v":""},{"$f":"IF(OR(AB$14=\"\",$F34=\"\"),\"\",INDIRECT(AB$14&\"!\"&$F34))","v":""},{"$f":"IF(OR(AC$14=\"\",$F34=\"\"),\"\",INDIRECT(AC$14&\"!\"&$F34))","v":""}]
[null,null,null,"Focus of tool:","Road pavement activities (layers of pavement)","C83",{"$f":"IF(OR(G$14=\"\",$F35=\"\"),\"\",INDIRECT(G$14&\"!\"&$F35))","v":"No"},{"$f":"IF(OR(H$14=\"\",$F35=\"\"),\"\",INDIRECT(H$14&\"!\"&$F35))","v":"Yes"},{"$f":"IF(OR(I$14=\"\",$F35=\"\"),\"\",INDIRECT(I$14&\"!\"&$F35))","v":"Yes"},{"$f":"IF(OR(J$14=\"\",$F35=\"\"),\"\",INDIRECT(J$14&\"!\"&$F35))","v":"No"},{"$f":"IF(OR(K$14=\"\",$F35=\"\"),\"\",INDIRECT(K$14&\"!\"&$F35))","v":"Yes"},{"$f":"IF(OR(L$14=\"\",$F35=\"\"),\"\",INDIRECT(L$14&\"!\"&$F35))","v":"No"},{"$f":"IF(OR(M$14=\"\",$F35=\"\"),\"\",INDIRECT(M$14&\"!\"&$F35))","v":"Yes"},{"$f":"IF(OR(N$14=\"\",$F35=\"\"),\"\",INDIRECT(N$14&\"!\"&$F35))","v":"Yes"},{"$f":"IF(OR(O$14=\"\",$F35=\"\"),\"\",INDIRECT(O$14&\"!\"&$F35))","v":"Yes"},{"$f":"IF(OR(P$14=\"\",$F35=\"\"),\"\",INDIRECT(P$14&\"!\"&$F35))","v":"Yes"},{"$f":"IF(OR(Q$14=\"\",$F35=\"\"),\"\",INDIRECT(Q$14&\"!\"&$F35))","v":"Yes"},{"$f":"IF(OR(R$14=\"\",$F35=\"\"),\"\",INDIRECT(R$14&\"!\"&$F35))","v":"No"},{"$f":"IF(OR(S$14=\"\",$F35=\"\"),\"\",INDIRECT(S$14&\"!\"&$F35))","v":"Yes"},{"$f":"IF(OR(T$14=\"\",$F35=\"\"),\"\",INDIRECT(T$14&\"!\"&$F35))","v":"No"},{"$f":"IF(OR(U$14=\"\",$F35=\"\"),\"\",INDIRECT(U$14&\"!\"&$F35))","v":"Yes"},{"$f":"IF(OR(V$14=\"\",$F35=\"\"),\"\",INDIRECT(V$14&\"!\"&$F35))","v":"No"},{"$f":"IF(OR(W$14=\"\",$F35=\"\"),\"\",INDIRECT(W$14&\"!\"&$F35))","v":"Yes"},{"$f":"IF(OR(X$14=\"\",$F35=\"\"),\"\",INDIRECT(X$14&\"!\"&$F35))","v":"Yes"},{"$f":"IF(OR(Y$14=\"\",$F35=\"\"),\"\",INDIRECT(Y$14&\"!\"&$F35))","v":"No"},{"$f":"IF(OR(Z$14=\"\",$F35=\"\"),\"\",INDIRECT(Z$14&\"!\"&$F35))","v":"No"},{"$f":"IF(OR(AA$14=\"\",$F35=\"\"),\"\",INDIRECT(AA$14&\"!\"&$F35))","v":""},{"$f":"IF(OR(AB$14=\"\",$F35=\"\"),\"\",INDIRECT(AB$14&\"!\"&$F35))","v":""},{"$f":"IF(OR(AC$14=\"\",$F35=\"\"),\"\",INDIRECT(AC$14&\"!\"&$F35))","v":""}]
[null,null,null,null,"Road pavement materials (asphalt/concrete)","C84",{"$f":"IF(OR(G$14=\"\",$F36=\"\"),\"\",INDIRECT(G$14&\"!\"&$F36))","v":"Yes"},{"$f":"IF(OR(H$14=\"\",$F36=\"\"),\"\",INDIRECT(H$14&\"!\"&$F36))","v":"No"},{"$f":"IF(OR(I$14=\"\",$F36=\"\"),\"\",INDIRECT(I$14&\"!\"&$F36))","v":"Yes"},{"$f":"IF(OR(J$14=\"\",$F36=\"\"),\"\",INDIRECT(J$14&\"!\"&$F36))","v":"Yes"},{"$f":"IF(OR(K$14=\"\",$F36=\"\"),\"\",INDIRECT(K$14&\"!\"&$F36))","v":"Yes"},{"$f":"IF(OR(L$14=\"\",$F36=\"\"),\"\",INDIRECT(L$14&\"!\"&$F36))","v":"Yes"},{"$f":"IF(OR(M$14=\"\",$F36=\"\"),\"\",INDIRECT(M$14&\"!\"&$F36))","v":"Yes"},{"$f":"IF(OR(N$14=\"\",$F36=\"\"),\"\",INDIRECT(N$14&\"!\"&$F36))","v":"Yes"},{"$f":"IF(OR(O$14=\"\",$F36=\"\"),\"\",INDIRECT(O$14&\"!\"&$F36))","v":"No"},{"$f":"IF(OR(P$14=\"\",$F36=\"\"),\"\",INDIRECT(P$14&\"!\"&$F36))","v":"Yes"},{"$f":"IF(OR(Q$14=\"\",$F36=\"\"),\"\",INDIRECT(Q$14&\"!\"&$F36))","v":"No"},{"$f":"IF(OR(R$14=\"\",$F36=\"\"),\"\",INDIRECT(R$14&\"!\"&$F36))","v":"Yes"},{"$f":"IF(OR(S$14=\"\",$F36=\"\"),\"\",INDIRECT(S$14&\"!\"&$F36))","v":"Yes"},{"$f":"IF(OR(T$14=\"\",$F36=\"\"),\"\",INDIRECT(T$14&\"!\"&$F36))","v":"No"},{"$f":"IF(OR(U$14=\"\",$F36=\"\"),\"\",INDIRECT(U$14&\"!\"&$F36))","v":"Yes"},{"$f":"IF(OR(V$14=\"\",$F36=\"\"),\"\",INDIRECT(V$14&\"!\"&$F36))","v":"Yes"},{"$f":"IF(OR(W$14=\"\",$F36=\"\"),\"\",INDIRECT(W$14&\"!\"&$F36))","v":"No"},{"$f":"IF(OR(X$14=\"\",$F36=\"\"),\"\",INDIRECT(X$14&\"!\"&$F36))","v":"Yes"},{"$f":"IF(OR(Y$14=\"\",$F36=\"\"),\"\",INDIRECT(Y$14&\"!\"&$F36))","v":"Yes"},{"$f":"IF(OR(Z$14=\"\",$F36=\"\"),\"\",INDIRECT(Z$14&\"!\"&$F36))","v":"Yes"},{"$f":"IF(OR(AA$14=\"\",$F36=\"\"),\"\",INDIRECT(AA$14&\"!\"&$F36))","v":""},{"$f":"IF(OR(AB$14=\"\",$F36=\"\"),\"\",INDIRECT(AB$14&\"!\"&$F36))","v":""},{"$f":"IF(OR(AC$14=\"\",$F36=\"\"),\"\",INDIRECT(AC$14&\"!\"&$F36))","v":""}]
[null,null,null,null,"Asphalt","C87",{"$f":"IF(OR(G$14=\"\",$F37=\"\"),\"\",INDIRECT(G$14&\"!\"&$F37))","v":"Yes"},{"$f":"IF(OR(H$14=\"\",$F37=\"\"),\"\",INDIRECT(H$14&\"!\"&$F37))","v":"Yes"},{"$f":"IF(OR(I$14=\"\",$F37=\"\"),\"\",INDIRECT(I$14&\"!\"&$F37))","v":"Yes"},{"$f":"IF(OR(J$14=\"\",$F37=\"\"),\"\",INDIRECT(J$14&\"!\"&$F37))","v":"Yes"},{"$f":"IF(OR(K$14=\"\",$F37=\"\"),\"\",INDIRECT(K$14&\"!\"&$F37))","v":"Yes"},{"$f":"IF(OR(L$14=\"\",$F37=\"\"),\"\",INDIRECT(L$14&\"!\"&$F37))","v":"Yes"},{"$f":"IF(OR(M$14=\"\",$F37=\"\"),\"\",INDIRECT(M$14&\"!\"&$F37))","v":"Yes"},{"$f":"IF(OR(N$14=\"\",$F37=\"\"),\"\",INDIRECT(N$14&\"!\"&$F37))","v":"No"},{"$f":"IF(OR(O$14=\"\",$F37=\"\"),\"\",INDIRECT(O$14&\"!\"&$F37))","v":"Yes"},{"$f":"IF(OR(P$14=\"\",$F37=\"\"),\"\",INDIRECT(P$14&\"!\"&$F37))","v":"Yes"},{"$f":"IF(OR(Q$14=\"\",$F37=\"\"),\"\",INDIRECT(Q$14&\"!\"&$F37))","v":"Yes"},{"$f":"IF(OR(R$14=\"\",$F37=\"\"),\"\",INDIRECT(R$14&\"!\"&$F37))","v":"Yes"},{"$f":"IF(OR(S$14=\"\",$F37=\"\"),\"\",INDIRECT(S$14&\"!\"&$F37))","v":"Yes"},{"$f":"IF(OR(T$14=\"\",$F37=\"\"),\"\",INDIRECT(T$14&\"!\"&$F37))","v":"Yes"},{"$f":"IF(OR(U$14=\"\",$F37=\"\"),\"\",INDIRECT(U$14&\"!\"&$F37))","v":"Yes"},{"$f":"IF(OR(V$14=\"\",$F37=\"\"),\"\",INDIRECT(V$14&\"!\"&$F37))","v":"Yes"},{"$f":"IF(OR(W$14=\"\",$F37=\"\"),\"\",INDIRECT(W$14&\"!\"&$F37))","v":"No"},{"$f":"IF(OR(X$14=\"\",$F37=\"\"),\"\",INDIRECT(X$14&\"!\"&$F37))","v":"Yes"},{"$f":"IF(OR(Y$14=\"\",$F37=\"\"),\"\",INDIRECT(Y$14&\"!\"&$F37))","v":"Yes"},{"$f":"IF(OR(Z$14=\"\",$F37=\"\"),\"\",INDIRECT(Z$14&\"!\"&$F37))","v":"Yes"},{"$f":"IF(OR(AA$14=\"\",$F37=\"\"),\"\",INDIRECT(AA$14&\"!\"&$F37))","v":""},{"$f":"IF(OR(AB$14=\"\",$F37=\"\"),\"\",INDIRECT(AB$14&\"!\"&$F37))","v":""},{"$f":"IF(OR(AC$14=\"\",$F37=\"\"),\"\",INDIRECT(AC$14&\"!\"&$F37))","v":""}]
[null,null,null,null,"Concrete","C88",{"$f":"IF(OR(G$14=\"\",$F38=\"\"),\"\",INDIRECT(G$14&\"!\"&$F38))","v":"No"},{"$f":"IF(OR(H$14=\"\",$F38=\"\"),\"\",INDIRECT(H$14&\"!\"&$F38))","v":"Yes"},{"$f":"IF(OR(I$14=\"\",$F38=\"\"),\"\",INDIRECT(I$14&\"!\"&$F38))","v":"Yes"},{"$f":"IF(OR(J$14=\"\",$F38=\"\"),\"\",INDIRECT(J$14&\"!\"&$F38))","v":"Yes"},{"$f":"IF(OR(K$14=\"\",$F38=\"\"),\"\",INDIRECT(K$14&\"!\"&$F38))","v":"No"},{"$f":"IF(OR(L$14=\"\",$F38=\"\"),\"\",INDIRECT(L$14&\"!\"&$F38))","v":"Yes"},{"$f":"IF(OR(M$14=\"\",$F38=\"\"),\"\",INDIRECT(M$14&\"!\"&$F38))","v":"Yes"},{"$f":"IF(OR(N$14=\"\",$F38=\"\"),\"\",INDIRECT(N$14&\"!\"&$F38))","v":"No"},{"$f":"IF(OR(O$14=\"\",$F38=\"\"),\"\",INDIRECT(O$14&\"!\"&$F38))","v":"Yes"},{"$f":"IF(OR(P$14=\"\",$F38=\"\"),\"\",INDIRECT(P$14&\"!\"&$F38))","v":"Yes"},{"$f":"IF(OR(Q$14=\"\",$F38=\"\"),\"\",INDIRECT(Q$14&\"!\"&$F38))","v":"Yes"},{"$f":"IF(OR(R$14=\"\",$F38=\"\"),\"\",INDIRECT(R$14&\"!\"&$F38))","v":"Yes"},{"$f":"IF(OR(S$14=\"\",$F38=\"\"),\"\",INDIRECT(S$14&\"!\"&$F38))","v":"Yes"},{"$f":"IF(OR(T$14=\"\",$F38=\"\"),\"\",INDIRECT(T$14&\"!\"&$F38))","v":"No"},{"$f":"IF(OR(U$14=\"\",$F38=\"\"),\"\",INDIRECT(U$14&\"!\"&$F38))","v":"Yes"},{"$f":"IF(OR(V$14=\"\",$F38=\"\"),\"\",INDIRECT(V$14&\"!\"&$F38))","v":"Yes"},{"$f":"IF(OR(W$14=\"\",$F38=\"\"),\"\",INDIRECT(W$14&\"!\"&$F38))","v":"No"},{"$f":"IF(OR(X$14=\"\",$F38=\"\"),\"\",INDIRECT(X$14&\"!\"&$F38))","v":"No"},{"$f":"IF(OR(Y$14=\"\",$F38=\"\"),\"\",INDIRECT(Y$14&\"!\"&$F38))","v":"No"},{"$f":"IF(OR(Z$14=\"\",$F38=\"\"),\"\",INDIRECT(Z$14&\"!\"&$F38))","v":"Yes"},{"$f":"IF(OR(AA$14=\"\",$F38=\"\"),\"\",INDIRECT(AA$14&\"!\"&$F38))","v":""},{"$f":"IF(OR(AB$14=\"\",$F38=\"\"),\"\",INDIRECT(AB$14&\"!\"&$F38))","v":""},{"$f":"IF(OR(AC$14=\"\",$F38=\"\"),\"\",INDIRECT(AC$14&\"!\"&$F38))","v":""}]
[null,null,null,null,"Groundworks","C89",{"$f":"IF(OR(G$14=\"\",$F39=\"\"),\"\",INDIRECT(G$14&\"!\"&$F39))","v":"No"},{"$f":"IF(OR(H$14=\"\",$F39=\"\"),\"\",INDIRECT(H$14&\"!\"&$F39))","v":"No"},{"$f":"IF(OR(I$14=\"\",$F39=\"\"),\"\",INDIRECT(I$14&\"!\"&$F39))","v":"Yes"},{"$f":"IF(OR(J$14=\"\",$F39=\"\"),\"\",INDIRECT(J$14&\"!\"&$F39))","v":"Yes"},{"$f":"IF(OR(K$14=\"\",$F39=\"\"),\"\",INDIRECT(K$14&\"!\"&$F39))","v":"Yes"},{"$f":"IF(OR(L$14=\"\",$F39=\"\"),\"\",INDIRECT(L$14&\"!\"&$F39))","v":"No"},{"$f":"IF(OR(M$14=\"\",$F39=\"\"),\"\",INDIRECT(M$14&\"!\"&$F39))","v":"Yes"},{"$f":"IF(OR(N$14=\"\",$F39=\"\"),\"\",INDIRECT(N$14&\"!\"&$F39))","v":"No"},{"$f":"IF(OR(O$14=\"\",$F39=\"\"),\"\",INDIRECT(O$14&\"!\"&$F39))","v":"No"},{"$f":"IF(OR(P$14=\"\",$F39=\"\"),\"\",INDIRECT(P$14&\"!\"&$F39))","v":"No"},{"$f":"IF(OR(Q$14=\"\",$F39=\"\"),\"\",INDIRECT(Q$14&\"!\"&$F39))","v":"Yes"},{"$f":"IF(OR(R$14=\"\",$F39=\"\"),\"\",INDIRECT(R$14&\"!\"&$F39))","v":"Yes"},{"$f":"IF(OR(S$14=\"\",$F39=\"\"),\"\",INDIRECT(S$14&\"!\"&$F39))","v":"No"},{"$f":"IF(OR(T$14=\"\",$F39=\"\"),\"\",INDIRECT(T$14&\"!\"&$F39))","v":"No"},{"$f":"IF(OR(U$14=\"\",$F39=\"\"),\"\",INDIRECT(U$14&\"!\"&$F39))","v":"Yes"},{"$f":"IF(OR(V$14=\"\",$F39=\"\"),\"\",INDIRECT(V$14&\"!\"&$F39))","v":"Yes"},{"$f":"IF(OR(W$14=\"\",$F39=\"\"),\"\",INDIRECT(W$14&\"!\"&$F39))","v":"No"},{"$f":"IF(OR(X$14=\"\",$F39=\"\"),\"\",INDIRECT(X$14&\"!\"&$F39))","v":"No"},{"$f":"IF(OR(Y$14=\"\",$F39=\"\"),\"\",INDIRECT(Y$14&\"!\"&$F39))","v":"No"},{"$f":"IF(OR(Z$14=\"\",$F39=\"\"),\"\",INDIRECT(Z$14&\"!\"&$F39))","v":"Yes"},{"$f":"IF(OR(AA$14=\"\",$F39=\"\"),\"\",INDIRECT(AA$14&\"!\"&$F39))","v":""},{"$f":"IF(OR(AB$14=\"\",$F39=\"\"),\"\",INDIRECT(AB$14&\"!\"&$F39))","v":""},{"$f":"IF(OR(AC$14=\"\",$F39=\"\"),\"\",INDIRECT(AC$14&\"!\"&$F39))","v":""}]
[null,null,null,null,"Roads","C90",{"$f":"IF(OR(G$14=\"\",$F40=\"\"),\"\",INDIRECT(G$14&\"!\"&$F40))","v":"No"},{"$f":"IF(OR(H$14=\"\",$F40=\"\"),\"\",INDIRECT(H$14&\"!\"&$F40))","v":"Yes"},{"$f":"IF(OR(I$14=\"\",$F40=\"\"),\"\",INDIRECT(I$14&\"!\"&$F40))","v":"Yes"},{"$f":"IF(OR(J$14=\"\",$F40=\"\"),\"\",INDIRECT(J$14&\"!\"&$F40))","v":"Yes"},{"$f":"IF(OR(K$14=\"\",$F40=\"\"),\"\",INDIRECT(K$14&\"!\"&$F40))","v":"Yes"},{"$f":"IF(OR(L$14=\"\",$F40=\"\"),\"\",INDIRECT(L$14&\"!\"&$F40))","v":"Yes"},{"$f":"IF(OR(M$14=\"\",$F40=\"\"),\"\",INDIRECT(M$14&\"!\"&$F40))","v":"Yes"},{"$f":"IF(OR(N$14=\"\",$F40=\"\"),\"\",INDIRECT(N$14&\"!\"&$F40))","v":"No"},{"$f":"IF(OR(O$14=\"\",$F40=\"\"),\"\",INDIRECT(O$14&\"!\"&$F40))","v":"Yes"},{"$f":"IF(OR(P$14=\"\",$F40=\"\"),\"\",INDIRECT(P$14&\"!\"&$F40))","v":"Yes"},{"$f":"IF(OR(Q$14=\"\",$F40=\"\"),\"\",INDIRECT(Q$14&\"!\"&$F40))","v":"Yes"},{"$f":"IF(OR(R$14=\"\",$F40=\"\"),\"\",INDIRECT(R$14&\"!\"&$F40))","v":"Yes"},{"$f":"IF(OR(S$14=\"\",$F40=\"\"),\"\",INDIRECT(S$14&\"!\"&$F40))","v":"Yes"},{"$f":"IF(OR(T$14=\"\",$F40=\"\"),\"\",INDIRECT(T$14&\"!\"&$F40))","v":"Yes"},{"$f":"IF(OR(U$14=\"\",$F40=\"\"),\"\",INDIRECT(U$14&\"!\"&$F40))","v":"Yes"},{"$f":"IF(OR(V$14=\"\",$F40=\"\"),\"\",INDIRECT(V$14&\"!\"&$F40))","v":"Yes"},{"$f":"IF(OR(W$14=\"\",$F40=\"\"),\"\",INDIRECT(W$14&\"!\"&$F40))","v":"No"},{"$f":"IF(OR(X$14=\"\",$F40=\"\"),\"\",INDIRECT(X$14&\"!\"&$F40))","v":"Yes"},{"$f":"IF(OR(Y$14=\"\",$F40=\"\"),\"\",INDIRECT(Y$14&\"!\"&$F40))","v":"No"},{"$f":"IF(OR(Z$14=\"\",$F40=\"\"),\"\",INDIRECT(Z$14&\"!\"&$F40))","v":"Yes"},{"$f":"IF(OR(AA$14=\"\",$F40=\"\"),\"\",INDIRECT(AA$14&\"!\"&$F40))","v":""},{"$f":"IF(OR(AB$14=\"\",$F40=\"\"),\"\",INDIRECT(AB$14&\"!\"&$F40))","v":""},{"$f":"IF(OR(AC$14=\"\",$F40=\"\"),\"\",INDIRECT(AC$14&\"!\"&$F40))","v":""}]
[null,null,null,null,"Civil works","C91",{"$f":"IF(OR(G$14=\"\",$F41=\"\"),\"\",INDIRECT(G$14&\"!\"&$F41))","v":"No"},{"$f":"IF(OR(H$14=\"\",$F41=\"\"),\"\",INDIRECT(H$14&\"!\"&$F41))","v":"No"},{"$f":"IF(OR(I$14=\"\",$F41=\"\"),\"\",INDIRECT(I$14&\"!\"&$F41))","v":"Yes"},{"$f":"IF(OR(J$14=\"\",$F41=\"\"),\"\",INDIRECT(J$14&\"!\"&$F41))","v":"Yes"},{"$f":"IF(OR(K$14=\"\",$F41=\"\"),\"\",INDIRECT(K$14&\"!\"&$F41))","v":"No"},{"$f":"IF(OR(L$14=\"\",$F41=\"\"),\"\",INDIRECT(L$14&\"!\"&$F41))","v":"No"},{"$f":"IF(OR(M$14=\"\",$F41=\"\"),\"\",INDIRECT(M$14&\"!\"&$F41))","v":"Yes"},{"$f":"IF(OR(N$14=\"\",$F41=\"\"),\"\",INDIRECT(N$14&\"!\"&$F41))","v":"No"},{"$f":"IF(OR(O$14=\"\",$F41=\"\"),\"\",INDIRECT(O$14&\"!\"&$F41))","v":"No"},{"$f":"IF(OR(P$14=\"\",$F41=\"\"),\"\",INDIRECT(P$14&\"!\"&$F41))","v":"Yes"},{"$f":"IF(OR(Q$14=\"\",$F41=\"\"),\"\",INDIRECT(Q$14&\"!\"&$F41))","v":"Yes"},{"$f":"IF(OR(R$14=\"\",$F41=\"\"),\"\",INDIRECT(R$14&\"!\"&$F41))","v":"Yes"},{"$f":"IF(OR(S$14=\"\",$F41=\"\"),\"\",INDIRECT(S$14&\"!\"&$F41))","v":"No"},{"$f":"IF(OR(T$14=\"\",$F41=\"\"),\"\",INDIRECT(T$14&\"!\"&$F41))","v":"No"},{"$f":"IF(OR(U$14=\"\",$F41=\"\"),\"\",INDIRECT(U$14&\"!\"&$F41))","v":"Yes"},{"$f":"IF(OR(V$14=\"\",$F41=\"\"),\"\",INDIRECT(V$14&\"!\"&$F41))","v":"Yes"},{"$f":"IF(OR(W$14=\"\",$F41=\"\"),\"\",INDIRECT(W$14&\"!\"&$F41))","v":"No"},{"$f":"IF(OR(X$14=\"\",$F41=\"\"),\"\",INDIRECT(X$14&\"!\"&$F41))","v":"No"},{"$f":"IF(OR(Y$14=\"\",$F41=\"\"),\"\",INDIRECT(Y$14&\"!\"&$F41))","v":"No"},{"$f":"IF(OR(Z$14=\"\",$F41=\"\"),\"\",INDIRECT(Z$14&\"!\"&$F41))","v":"Yes"},{"$f":"IF(OR(AA$14=\"\",$F41=\"\"),\"\",INDIRECT(AA$14&\"!\"&$F41))","v":""},{"$f":"IF(OR(AB$14=\"\",$F41=\"\"),\"\",INDIRECT(AB$14&\"!\"&$F41))","v":""},{"$f":"IF(OR(AC$14=\"\",$F41=\"\"),\"\",INDIRECT(AC$14&\"!\"&$F41))","v":""}]
[null,null,null,null,"Railways","C92",{"$f":"IF(OR(G$14=\"\",$F42=\"\"),\"\",INDIRECT(G$14&\"!\"&$F42))","v":"No"},{"$f":"IF(OR(H$14=\"\",$F42=\"\"),\"\",INDIRECT(H$14&\"!\"&$F42))","v":"No"},{"$f":"IF(OR(I$14=\"\",$F42=\"\"),\"\",INDIRECT(I$14&\"!\"&$F42))","v":"Yes"},{"$f":"IF(OR(J$14=\"\",$F42=\"\"),\"\",INDIRECT(J$14&\"!\"&$F42))","v":"Yes"},{"$f":"IF(OR(K$14=\"\",$F42=\"\"),\"\",INDIRECT(K$14&\"!\"&$F42))","v":"No"},{"$f":"IF(OR(L$14=\"\",$F42=\"\"),\"\",INDIRECT(L$14&\"!\"&$F42))","v":"No"},{"$f":"IF(OR(M$14=\"\",$F42=\"\"),\"\",INDIRECT(M$14&\"!\"&$F42))","v":"Yes"},{"$f":"IF(OR(N$14=\"\",$F42=\"\"),\"\",INDIRECT(N$14&\"!\"&$F42))","v":"No"},{"$f":"IF(OR(O$14=\"\",$F42=\"\"),\"\",INDIRECT(O$14&\"!\"&$F42))","v":"No"},{"$f":"IF(OR(P$14=\"\",$F42=\"\"),\"\",INDIRECT(P$14&\"!\"&$F42))","v":"No"},{"$f":"IF(OR(Q$14=\"\",$F42=\"\"),\"\",INDIRECT(Q$14&\"!\"&$F42))","v":"Yes"},{"$f":"IF(OR(R$14=\"\",$F42=\"\"),\"\",INDIRECT(R$14&\"!\"&$F42))","v":"Yes"},{"$f":"IF(OR(S$14=\"\",$F42=\"\"),\"\",INDIRECT(S$14&\"!\"&$F42))","v":"No"},{"$f":"IF(OR(T$14=\"\",$F42=\"\"),\"\",INDIRECT(T$14&\"!\"&$F42))","v":"No"},{"$f":"IF(OR(U$14=\"\",$F42=\"\"),\"\",INDIRECT(U$14&\"!\"&$F42))","v":"No"},{"$f":"IF(OR(V$14=\"\",$F42=\"\"),\"\",INDIRECT(V$14&\"!\"&$F42))","v":"Yes"},{"$f":"IF(OR(W$14=\"\",$F42=\"\"),\"\",INDIRECT(W$14&\"!\"&$F42))","v":"No"},{"$f":"IF(OR(X$14=\"\",$F42=\"\"),\"\",INDIRECT(X$14&\"!\"&$F42))","v":"No"},{"$f":"IF(OR(Y$14=\"\",$F42=\"\"),\"\",INDIRECT(Y$14&\"!\"&$F42))","v":"No"},{"$f":"IF(OR(Z$14=\"\",$F42=\"\"),\"\",INDIRECT(Z$14&\"!\"&$F42))","v":"Yes"},{"$f":"IF(OR(AA$14=\"\",$F42=\"\"),\"\",INDIRECT(AA$14&\"!\"&$F42))","v":""},{"$f":"IF(OR(AB$14=\"\",$F42=\"\"),\"\",INDIRECT(AB$14&\"!\"&$F42))","v":""},{"$f":"IF(OR(AC$14=\"\",$F42=\"\"),\"\",INDIRECT(AC$14&\"!\"&$F42))","v":""}]
[null,null,null,null,"Waterways","C93",{"$f":"IF(OR(G$14=\"\",$F43=\"\"),\"\",INDIRECT(G$14&\"!\"&$F43))","v":"No"},{"$f":"IF(OR(H$14=\"\",$F43=\"\"),\"\",INDIRECT(H$14&\"!\"&$F43))","v":"No"},{"$f":"IF(OR(I$14=\"\",$F43=\"\"),\"\",INDIRECT(I$14&\"!\"&$F43))","v":"Yes"},{"$f":"IF(OR(J$14=\"\",$F43=\"\"),\"\",INDIRECT(J$14&\"!\"&$F43))","v":"Yes"},{"$f":"IF(OR(K$14=\"\",$F43=\"\"),\"\",INDIRECT(K$14&\"!\"&$F43))","v":"No"},{"$f":"IF(OR(L$14=\"\",$F43=\"\"),\"\",INDIRECT(L$14&\"!\"&$F43))","v":"No"},{"$f":"IF(OR(M$14=\"\",$F43=\"\"),\"\",INDIRECT(M$14&\"!\"&$F43))","v":"No"},{"$f":"IF(OR(N$14=\"\",$F43=\"\"),\"\",INDIRECT(N$14&\"!\"&$F43))","v":"No"},{"$f":"IF(OR(O$14=\"\",$F43=\"\"),\"\",INDIRECT(O$14&\"!\"&$F43))","v":"No"},{"$f":"IF(OR(P$14=\"\",$F43=\"\"),\"\",INDIRECT(P$14&\"!\"&$F43))","v":"No"},{"$f":"IF(OR(Q$14=\"\",$F43=\"\"),\"\",INDIRECT(Q$14&\"!\"&$F43))","v":"Yes"},{"$f":"IF(OR(R$14=\"\",$F43=\"\"),\"\",INDIRECT(R$14&\"!\"&$F43))","v":"Yes"},{"$f":"IF(OR(S$14=\"\",$F43=\"\"),\"\",INDIRECT(S$14&\"!\"&$F43))","v":"No"},{"$f":"IF(OR(T$14=\"\",$F43=\"\"),\"\",INDIRECT(T$14&\"!\"&$F43))","v":"No"},{"$f":"IF(OR(U$14=\"\",$F43=\"\"),\"\",INDIRECT(U$14&\"!\"&$F43))","v":"No"},{"$f":"IF(OR(V$14=\"\",$F43=\"\"),\"\",INDIRECT(V$14&\"!\"&$F43))","v":"Yes"},{"$f":"IF(OR(W$14=\"\",$F43=\"\"),\"\",INDIRECT(W$14&\"!\"&$F43))","v":"No"},{"$f":"IF(OR(X$14=\"\",$F43=\"\"),\"\",INDIRECT(X$14&\"!\"&$F43))","v":"No"},{"$f":"IF(OR(Y$14=\"\",$F43=\"\"),\"\",INDIRECT(Y$14&\"!\"&$F43))","v":"No"},{"$f":"IF(OR(Z$14=\"\",$F43=\"\"),\"\",INDIRECT(Z$14&\"!\"&$F43))","v":"Yes"},{"$f":"IF(OR(AA$14=\"\",$F43=\"\"),\"\",INDIRECT(AA$14&\"!\"&$F43))","v":""},{"$f":"IF(OR(AB$14=\"\",$F43=\"\"),\"\",INDIRECT(AB$14&\"!\"&$F43))","v":""},{"$f":"IF(OR(AC$14=\"\",$F43=\"\"),\"\",INDIRECT(AC$14&\"!\"&$F43))","v":""}]
[null,null,null,null,"Other","C94",{"$f":"IF(OR(G$14=\"\",$F44=\"\"),\"\",INDIRECT(G$14&\"!\"&$F44))","v":"No"},{"$f":"IF(OR(H$14=\"\",$F44=\"\"),\"\",INDIRECT(H$14&\"!\"&$F44))","v":"No"},{"$f":"IF(OR(I$14=\"\",$F44=\"\"),\"\",INDIRECT(I$14&\"!\"&$F44))","v":"Yes"},{"$f":"IF(OR(J$14=\"\",$F44=\"\"),\"\",INDIRECT(J$14&\"!\"&$F44))","v":"Yes"},{"$f":"IF(OR(K$14=\"\",$F44=\"\"),\"\",INDIRECT(K$14&\"!\"&$F44))","v":"No"},{"$f":"IF(OR(L$14=\"\",$F44=\"\"),\"\",INDIRECT(L$14&\"!\"&$F44))","v":"No"},{"$f":"IF(OR(M$14=\"\",$F44=\"\"),\"\",INDIRECT(M$14&\"!\"&$F44))","v":"No"},{"$f":"IF(OR(N$14=\"\",$F44=\"\"),\"\",INDIRECT(N$14&\"!\"&$F44))","v":"No"},{"$f":"IF(OR(O$14=\"\",$F44=\"\"),\"\",INDIRECT(O$14&\"!\"&$F44))","v":"No"},{"$f":"IF(OR(P$14=\"\",$F44=\"\"),\"\",INDIRECT(P$14&\"!\"&$F44))","v":"No"},{"$f":"IF(OR(Q$14=\"\",$F44=\"\"),\"\",INDIRECT(Q$14&\"!\"&$F44))","v":"No"},{"$f":"IF(OR(R$14=\"\",$F44=\"\"),\"\",INDIRECT(R$14&\"!\"&$F44))","v":"Yes"},{"$f":"IF(OR(S$14=\"\",$F44=\"\"),\"\",INDIRECT(S$14&\"!\"&$F44))","v":"No"},{"$f":"IF(OR(T$14=\"\",$F44=\"\"),\"\",INDIRECT(T$14&\"!\"&$F44))","v":"No"},{"$f":"IF(OR(U$14=\"\",$F44=\"\"),\"\",INDIRECT(U$14&\"!\"&$F44))","v":"Yes"},{"$f":"IF(OR(V$14=\"\",$F44=\"\"),\"\",INDIRECT(V$14&\"!\"&$F44))","v":"Yes"},{"$f":"IF(OR(W$14=\"\",$F44=\"\"),\"\",INDIRECT(W$14&\"!\"&$F44))","v":"No"},{"$f":"IF(OR(X$14=\"\",$F44=\"\"),\"\",INDIRECT(X$14&\"!\"&$F44))","v":"No"},{"$f":"IF(OR(Y$14=\"\",$F44=\"\"),\"\",INDIRECT(Y$14&\"!\"&$F44))","v":"No"},{"$f":"IF(OR(Z$14=\"\",$F44=\"\"),\"\",INDIRECT(Z$14&\"!\"&$F44))","v":"Yes"},{"$f":"IF(OR(AA$14=\"\",$F44=\"\"),\"\",INDIRECT(AA$14&\"!\"&$F44))","v":""},{"$f":"IF(OR(AB$14=\"\",$F44=\"\"),\"\",INDIRECT(AB$14&\"!\"&$F44))","v":""},{"$f":"IF(OR(AC$14=\"\",$F44=\"\"),\"\",INDIRECT(AC$14&\"!\"&$F44))","v":""}]
[null,null,null,"Scoping aspects:","Lifetime expectation info","C97",{"$f":"IF(OR(G$14=\"\",$F45=\"\"),\"\",INDIRECT(G$14&\"!\"&$F45))","v":"No"},{"$f":"IF(OR(H$14=\"\",$F45=\"\"),\"\",INDIRECT(H$14&\"!\"&$F45))","v":"No"},{"$f":"IF(OR(I$14=\"\",$F45=\"\"),\"\",INDIRECT(I$14&\"!\"&$F45))","v":"Yes"},{"$f":"IF(OR(J$14=\"\",$F45=\"\"),\"\",INDIRECT(J$14&\"!\"&$F45))","v":"No"},{"$f":"IF(OR(K$14=\"\",$F45=\"\"),\"\",INDIRECT(K$14&\"!\"&$F45))","v":"No"},{"$f":"IF(OR(L$14=\"\",$F45=\"\"),\"\",INDIRECT(L$14&\"!\"&$F45))","v":"No"},{"$f":"IF(OR(M$14=\"\",$F45=\"\"),\"\",INDIRECT(M$14&\"!\"&$F45))","v":"No"},{"$f":"IF(OR(N$14=\"\",$F45=\"\"),\"\",INDIRECT(N$14&\"!\"&$F45))","v":"No"},{"$f":"IF(OR(O$14=\"\",$F45=\"\"),\"\",INDIRECT(O$14&\"!\"&$F45))","v":"No"},{"$f":"IF(OR(P$14=\"\",$F45=\"\"),\"\",INDIRECT(P$14&\"!\"&$F45))","v":"No"},{"$f":"IF(OR(Q$14=\"\",$F45=\"\"),\"\",INDIRECT(Q$14&\"!\"&$F45))","v":"No"},{"$f":"IF(OR(R$14=\"\",$F45=\"\"),\"\",INDIRECT(R$14&\"!\"&$F45))","v":"Yes"},{"$f":"IF(OR(S$14=\"\",$F45=\"\"),\"\",INDIRECT(S$14&\"!\"&$F45))","v":"No"},{"$f":"IF(OR(T$14=\"\",$F45=\"\"),\"\",INDIRECT(T$14&\"!\"&$F45))","v":"No"},{"$f":"IF(OR(U$14=\"\",$F45=\"\"),\"\",INDIRECT(U$14&\"!\"&$F45))","v":"Yes"},{"$f":"IF(OR(V$14=\"\",$F45=\"\"),\"\",INDIRECT(V$14&\"!\"&$F45))","v":"No"},{"$f":"IF(OR(W$14=\"\",$F45=\"\"),\"\",INDIRECT(W$14&\"!\"&$F45))","v":"No"},{"$f":"IF(OR(X$14=\"\",$F45=\"\"),\"\",INDIRECT(X$14&\"!\"&$F45))","v":"No"},{"$f":"IF(OR(Y$14=\"\",$F45=\"\"),\"\",INDIRECT(Y$14&\"!\"&$F45))","v":"No"},{"$f":"IF(OR(Z$14=\"\",$F45=\"\"),\"\",INDIRECT(Z$14&\"!\"&$F45))","v":"No"},{"$f":"IF(OR(AA$14=\"\",$F45=\"\"),\"\",INDIRECT(AA$14&\"!\"&$F45))","v":""},{"$f":"IF(OR(AB$14=\"\",$F45=\"\"),\"\",INDIRECT(AB$14&\"!\"&$F45))","v":""},{"$f":"IF(OR(AC$14=\"\",$F45=\"\"),\"\",INDIRECT(AC$14&\"!\"&$F45))","v":""}]
[null,null,null,null,"Infrastructure (capital goods included)","C98",{"$f":"IF(OR(G$14=\"\",$F46=\"\"),\"\",INDIRECT(G$14&\"!\"&$F46))","v":"Yes"},{"$f":"IF(OR(H$14=\"\",$F46=\"\"),\"\",INDIRECT(H$14&\"!\"&$F46))","v":"Yes"},{"$f":"IF(OR(I$14=\"\",$F46=\"\"),\"\",INDIRECT(I$14&\"!\"&$F46))","v":"Yes"},{"$f":"IF(OR(J$14=\"\",$F46=\"\"),\"\",INDIRECT(J$14&\"!\"&$F46))","v":"Yes"},{"$f":"IF(OR(K$14=\"\",$F46=\"\"),\"\",INDIRECT(K$14&\"!\"&$F46))","v":"Yes"},{"$f":"IF(OR(L$14=\"\",$F46=\"\"),\"\",INDIRECT(L$14&\"!\"&$F46))","v":"Yes"},{"$f":"IF(OR(M$14=\"\",$F46=\"\"),\"\",INDIRECT(M$14&\"!\"&$F46))","v":"No"},{"$f":"IF(OR(N$14=\"\",$F46=\"\"),\"\",INDIRECT(N$14&\"!\"&$F46))","v":"Yes"},{"$f":"IF(OR(O$14=\"\",$F46=\"\"),\"\",INDIRECT(O$14&\"!\"&$F46))","v":"No"},{"$f":"IF(OR(P$14=\"\",$F46=\"\"),\"\",INDIRECT(P$14&\"!\"&$F46))","v":"Yes"},{"$f":"IF(OR(Q$14=\"\",$F46=\"\"),\"\",INDIRECT(Q$14&\"!\"&$F46))","v":"No"},{"$f":"IF(OR(R$14=\"\",$F46=\"\"),\"\",INDIRECT(R$14&\"!\"&$F46))","v":"Yes"},{"$f":"IF(OR(S$14=\"\",$F46=\"\"),\"\",INDIRECT(S$14&\"!\"&$F46))","v":"No"},{"$f":"IF(OR(T$14=\"\",$F46=\"\"),\"\",INDIRECT(T$14&\"!\"&$F46))","v":"No"},{"$f":"IF(OR(U$14=\"\",$F46=\"\"),\"\",INDIRECT(U$14&\"!\"&$F46))","v":"Yes"},{"$f":"IF(OR(V$14=\"\",$F46=\"\"),\"\",INDIRECT(V$14&\"!\"&$F46))","v":"Yes"},{"$f":"IF(OR(W$14=\"\",$F46=\"\"),\"\",INDIRECT(W$14&\"!\"&$F46))","v":"No"},{"$f":"IF(OR(X$14=\"\",$F46=\"\"),\"\",INDIRECT(X$14&\"!\"&$F46))","v":"Yes"},{"$f":"IF(OR(Y$14=\"\",$F46=\"\"),\"\",INDIRECT(Y$14&\"!\"&$F46))","v":"No"},{"$f":"IF(OR(Z$14=\"\",$F46=\"\"),\"\",INDIRECT(Z$14&\"!\"&$F46))","v":"Yes"},{"$f":"IF(OR(AA$14=\"\",$F46=\"\"),\"\",INDIRECT(AA$14&\"!\"&$F46))","v":""},{"$f":"IF(OR(AB$14=\"\",$F46=\"\"),\"\",INDIRECT(AB$14&\"!\"&$F46))","v":""},{"$f":"IF(OR(AC$14=\"\",$F46=\"\"),\"\",INDIRECT(AC$14&\"!\"&$F46))","v":""}]
[null,null,null,null,"Discount rate (for LCC)","C99",{"$f":"IF(OR(G$14=\"\",$F47=\"\"),\"\",INDIRECT(G$14&\"!\"&$F47))","v":"No"},{"$f":"IF(OR(H$14=\"\",$F47=\"\"),\"\",INDIRECT(H$14&\"!\"&$F47))","v":"Yes"},{"$f":"IF(OR(I$14=\"\",$F47=\"\"),\"\",INDIRECT(I$14&\"!\"&$F47))","v":"Yes"},{"$f":"IF(OR(J$14=\"\",$F47=\"\"),\"\",INDIRECT(J$14&\"!\"&$F47))","v":"No"},{"$f":"IF(OR(K$14=\"\",$F47=\"\"),\"\",INDIRECT(K$14&\"!\"&$F47))","v":"No"},{"$f":"IF(OR(L$14=\"\",$F47=\"\"),\"\",INDIRECT(L$14&\"!\"&$F47))","v":"No"},{"$f":"IF(OR(M$14=\"\",$F47=\"\"),\"\",INDIRECT(M$14&\"!\"&$F47))","v":"No"},{"$f":"IF(OR(N$14=\"\",$F47=\"\"),\"\",INDIRECT(N$14&\"!\"&$F47))","v":"No"},{"$f":"IF(OR(O$14=\"\",$F47=\"\"),\"\",INDIRECT(O$14&\"!\"&$F47))","v":"Yes"},{"$f":"IF(OR(P$14=\"\",$F47=\"\"),\"\",INDIRECT(P$14&\"!\"&$F47))","v":"Yes"},{"$f":"IF(OR(Q$14=\"\",$F47=\"\"),\"\",INDIRECT(Q$14&\"!\"&$F47))","v":"No"},{"$f":"IF(OR(R$14=\"\",$F47=\"\"),\"\",INDIRECT(R$14&\"!\"&$F47))","v":"Yes"},{"$f":"IF(OR(S$14=\"\",$F47=\"\"),\"\",INDIRECT(S$14&\"!\"&$F47))","v":"Yes"},{"$f":"IF(OR(T$14=\"\",$F47=\"\"),\"\",INDIRECT(T$14&\"!\"&$F47))","v":"Yes"},{"$f":"IF(OR(U$14=\"\",$F47=\"\"),\"\",INDIRECT(U$14&\"!\"&$F47))","v":"No"},{"$f":"IF(OR(V$14=\"\",$F47=\"\"),\"\",INDIRECT(V$14&\"!\"&$F47))","v":"No"},{"$f":"IF(OR(W$14=\"\",$F47=\"\"),\"\",INDIRECT(W$14&\"!\"&$F47))","v":"Yes"},{"$f":"IF(OR(X$14=\"\",$F47=\"\"),\"\",INDIRECT(X$14&\"!\"&$F47))","v":"No"},{"$f":"IF(OR(Y$14=\"\",$F47=\"\"),\"\",INDIRECT(Y$14&\"!\"&$F47))","v":"No"},{"$f":"IF(OR(Z$14=\"\",$F47=\"\"),\"\",INDIRECT(Z$14&\"!\"&$F47))","v":"No"},{"$f":"IF(OR(AA$14=\"\",$F47=\"\"),\"\",INDIRECT(AA$14&\"!\"&$F47))","v":""},{"$f":"IF(OR(AB$14=\"\",$F47=\"\"),\"\",INDIRECT(AB$14&\"!\"&$F47))","v":""},{"$f":"IF(OR(AC$14=\"\",$F47=\"\"),\"\",INDIRECT(AC$14&\"!\"&$F47))","v":""}]
[null,null,null,null,"Reviewed data","C100",{"$f":"IF(OR(G$14=\"\",$F48=\"\"),\"\",INDIRECT(G$14&\"!\"&$F48))","v":"Yes"},{"$f":"IF(OR(H$14=\"\",$F48=\"\"),\"\",INDIRECT(H$14&\"!\"&$F48))","v":"Yes"},{"$f":"IF(OR(I$14=\"\",$F48=\"\"),\"\",INDIRECT(I$14&\"!\"&$F48))","v":"Yes"},{"$f":"IF(OR(J$14=\"\",$F48=\"\"),\"\",INDIRECT(J$14&\"!\"&$F48))","v":"Yes"},{"$f":"IF(OR(K$14=\"\",$F48=\"\"),\"\",INDIRECT(K$14&\"!\"&$F48))","v":"Yes"},{"$f":"IF(OR(L$14=\"\",$F48=\"\"),\"\",INDIRECT(L$14&\"!\"&$F48))","v":"No"},{"$f":"IF(OR(M$14=\"\",$F48=\"\"),\"\",INDIRECT(M$14&\"!\"&$F48))","v":"Yes"},{"$f":"IF(OR(N$14=\"\",$F48=\"\"),\"\",INDIRECT(N$14&\"!\"&$F48))","v":"No"},{"$f":"IF(OR(O$14=\"\",$F48=\"\"),\"\",INDIRECT(O$14&\"!\"&$F48))","v":"No"},{"$f":"IF(OR(P$14=\"\",$F48=\"\"),\"\",INDIRECT(P$14&\"!\"&$F48))","v":"No"},{"$f":"IF(OR(Q$14=\"\",$F48=\"\"),\"\",INDIRECT(Q$14&\"!\"&$F48))","v":"No"},{"$f":"IF(OR(R$14=\"\",$F48=\"\"),\"\",INDIRECT(R$14&\"!\"&$F48))","v":"Yes"},{"$f":"IF(OR(S$14=\"\",$F48=\"\"),\"\",INDIRECT(S$14&\"!\"&$F48))","v":"No"},{"$f":"IF(OR(T$14=\"\",$F48=\"\"),\"\",INDIRECT(T$14&\"!\"&$F48))","v":"No"},{"$f":"IF(OR(U$14=\"\",$F48=\"\"),\"\",INDIRECT(U$14&\"!\"&$F48))","v":"Yes"},{"$f":"IF(OR(V$14=\"\",$F48=\"\"),\"\",INDIRECT(V$14&\"!\"&$F48))","v":"Yes"},{"$f":"IF(OR(W$14=\"\",$F48=\"\"),\"\",INDIRECT(W$14&\"!\"&$F48))","v":"No"},{"$f":"IF(OR(X$14=\"\",$F48=\"\"),\"\",INDIRECT(X$14&\"!\"&$F48))","v":"No"},{"$f":"IF(OR(Y$14=\"\",$F48=\"\"),\"\",INDIRECT(Y$14&\"!\"&$F48))","v":"No"},{"$f":"IF(OR(Z$14=\"\",$F48=\"\"),\"\",INDIRECT(Z$14&\"!\"&$F48))","v":"Yes"},{"$f":"IF(OR(AA$14=\"\",$F48=\"\"),\"\",INDIRECT(AA$14&\"!\"&$F48))","v":""},{"$f":"IF(OR(AB$14=\"\",$F48=\"\"),\"\",INDIRECT(AB$14&\"!\"&$F48))","v":""},{"$f":"IF(OR(AC$14=\"\",$F48=\"\"),\"\",INDIRECT(AC$14&\"!\"&$F48))","v":""}]
[null,null,null,null,"Uncertainty information ","C101",{"$f":"IF(OR(G$14=\"\",$F49=\"\"),\"\",INDIRECT(G$14&\"!\"&$F49))","v":"No"},{"$f":"IF(OR(H$14=\"\",$F49=\"\"),\"\",INDIRECT(H$14&\"!\"&$F49))","v":"Yes"},{"$f":"IF(OR(I$14=\"\",$F49=\"\"),\"\",INDIRECT(I$14&\"!\"&$F49))","v":"No"},{"$f":"IF(OR(J$14=\"\",$F49=\"\"),\"\",INDIRECT(J$14&\"!\"&$F49))","v":"No"},{"$f":"IF(OR(K$14=\"\",$F49=\"\"),\"\",INDIRECT(K$14&\"!\"&$F49))","v":"No"},{"$f":"IF(OR(L$14=\"\",$F49=\"\"),\"\",INDIRECT(L$14&\"!\"&$F49))","v":"No"},{"$f":"IF(OR(M$14=\"\",$F49=\"\"),\"\",INDIRECT(M$14&\"!\"&$F49))","v":"No"},{"$f":"IF(OR(N$14=\"\",$F49=\"\"),\"\",INDIRECT(N$14&\"!\"&$F49))","v":"No"},{"$f":"IF(OR(O$14=\"\",$F49=\"\"),\"\",INDIRECT(O$14&\"!\"&$F49))","v":"No"},{"$f":"IF(OR(P$14=\"\",$F49=\"\"),\"\",INDIRECT(P$14&\"!\"&$F49))","v":"No"},{"$f":"IF(OR(Q$14=\"\",$F49=\"\"),\"\",INDIRECT(Q$14&\"!\"&$F49))","v":"No"},{"$f":"IF(OR(R$14=\"\",$F49=\"\"),\"\",INDIRECT(R$14&\"!\"&$F49))","v":"Yes"},{"$f":"IF(OR(S$14=\"\",$F49=\"\"),\"\",INDIRECT(S$14&\"!\"&$F49))","v":"No"},{"$f":"IF(OR(T$14=\"\",$F49=\"\"),\"\",INDIRECT(T$14&\"!\"&$F49))","v":"Yes"},{"$f":"IF(OR(U$14=\"\",$F49=\"\"),\"\",INDIRECT(U$14&\"!\"&$F49))","v":"No"},{"$f":"IF(OR(V$14=\"\",$F49=\"\"),\"\",INDIRECT(V$14&\"!\"&$F49))","v":"Yes"},{"$f":"IF(OR(W$14=\"\",$F49=\"\"),\"\",INDIRECT(W$14&\"!\"&$F49))","v":"No"},{"$f":"IF(OR(X$14=\"\",$F49=\"\"),\"\",INDIRECT(X$14&\"!\"&$F49))","v":"No"},{"$f":"IF(OR(Y$14=\"\",$F49=\"\"),\"\",INDIRECT(Y$14&\"!\"&$F49))","v":"No"},{"$f":"IF(OR(Z$14=\"\",$F49=\"\"),\"\",INDIRECT(Z$14&\"!\"&$F49))","v":"Yes"},{"$f":"IF(OR(AA$14=\"\",$F49=\"\"),\"\",INDIRECT(AA$14&\"!\"&$F49))","v":""},{"$f":"IF(OR(AB$14=\"\",$F49=\"\"),\"\",INDIRECT(AB$14&\"!\"&$F49))","v":""},{"$f":"IF(OR(AC$14=\"\",$F49=\"\"),\"\",INDIRECT(AC$14&\"!\"&$F49))","v":""}]
[null,null,null,null,"Tool updating frequency","C102",{"$f":"IF(OR(G$14=\"\",$F50=\"\"),\"\",INDIRECT(G$14&\"!\"&$F50))","v":"Unknown, last update 2019"},{"$f":"IF(OR(H$14=\"\",$F50=\"\"),\"\",INDIRECT(H$14&\"!\"&$F50))","v":"Not determined, last update 2018"},{"$f":"IF(OR(I$14=\"\",$F50=\"\"),\"\",INDIRECT(I$14&\"!\"&$F50))","v":"Every 2 years"},{"$f":"IF(OR(J$14=\"\",$F50=\"\"),\"\",INDIRECT(J$14&\"!\"&$F50))","v":"Yearly"},{"$f":"IF(OR(K$14=\"\",$F50=\"\"),\"\",INDIRECT(K$14&\"!\"&$F50))","v":"Unknown, last update 2013"},{"$f":"IF(OR(L$14=\"\",$F50=\"\"),\"\",INDIRECT(L$14&\"!\"&$F50))","v":"Not updated, released on 2010"},{"$f":"IF(OR(M$14=\"\",$F50=\"\"),\"\",INDIRECT(M$14&\"!\"&$F50))","v":"Yearly"},{"$f":"IF(OR(N$14=\"\",$F50=\"\"),\"\",INDIRECT(N$14&\"!\"&$F50))","v":"Unknown"},{"$f":"IF(OR(O$14=\"\",$F50=\"\"),\"\",INDIRECT(O$14&\"!\"&$F50))","v":"Unknown, realised in 2009"},{"$f":"IF(OR(P$14=\"\",$F50=\"\"),\"\",INDIRECT(P$14&\"!\"&$F50))","v":"unknown"},{"$f":"IF(OR(Q$14=\"\",$F50=\"\"),\"\",INDIRECT(Q$14&\"!\"&$F50))","v":"Unknown"},{"$f":"IF(OR(R$14=\"\",$F50=\"\"),\"\",INDIRECT(R$14&\"!\"&$F50))","v":"Yearly"},{"$f":"IF(OR(S$14=\"\",$F50=\"\"),\"\",INDIRECT(S$14&\"!\"&$F50))","v":"Unknown, last update 2003"},{"$f":"IF(OR(T$14=\"\",$F50=\"\"),\"\",INDIRECT(T$14&\"!\"&$F50))","v":"Unknown, realised in 2004"},{"$f":"IF(OR(U$14=\"\",$F50=\"\"),\"\",INDIRECT(U$14&\"!\"&$F50))","v":"Not regularly updated, last update 2016"},{"$f":"IF(OR(V$14=\"\",$F50=\"\"),\"\",INDIRECT(V$14&\"!\"&$F50))","v":"Yearly"},{"$f":"IF(OR(W$14=\"\",$F50=\"\"),\"\",INDIRECT(W$14&\"!\"&$F50))","v":"Unknown"},{"$f":"IF(OR(X$14=\"\",$F50=\"\"),\"\",INDIRECT(X$14&\"!\"&$F50))","v":"Unknown"},{"$f":"IF(OR(Y$14=\"\",$F50=\"\"),\"\",INDIRECT(Y$14&\"!\"&$F50))","v":"unknown"},{"$f":"IF(OR(Z$14=\"\",$F50=\"\"),\"\",INDIRECT(Z$14&\"!\"&$F50))","v":"Yearly"},{"$f":"IF(OR(AA$14=\"\",$F50=\"\"),\"\",INDIRECT(AA$14&\"!\"&$F50))","v":""},{"$f":"IF(OR(AB$14=\"\",$F50=\"\"),\"\",INDIRECT(AB$14&\"!\"&$F50))","v":""},{"$f":"IF(OR(AC$14=\"\",$F50=\"\"),\"\",INDIRECT(AC$14&\"!\"&$F50))","v":""}]
[null,null,null,"Applicability of the tool:","Planning phase","C105",{"$f":"IF(OR(G$14=\"\",$F51=\"\"),\"\",INDIRECT(G$14&\"!\"&$F51))","v":"Yes"},{"$f":"IF(OR(H$14=\"\",$F51=\"\"),\"\",INDIRECT(H$14&\"!\"&$F51))","v":"Yes"},{"$f":"IF(OR(I$14=\"\",$F51=\"\"),\"\",INDIRECT(I$14&\"!\"&$F51))","v":"No"},{"$f":"IF(OR(J$14=\"\",$F51=\"\"),\"\",INDIRECT(J$14&\"!\"&$F51))","v":"Yes"},{"$f":"IF(OR(K$14=\"\",$F51=\"\"),\"\",INDIRECT(K$14&\"!\"&$F51))","v":"Yes"},{"$f":"IF(OR(L$14=\"\",$F51=\"\"),\"\",INDIRECT(L$14&\"!\"&$F51))","v":"Yes"},{"$f":"IF(OR(M$14=\"\",$F51=\"\"),\"\",INDIRECT(M$14&\"!\"&$F51))","v":"Yes"},{"$f":"IF(OR(N$14=\"\",$F51=\"\"),\"\",INDIRECT(N$14&\"!\"&$F51))","v":"Yes"},{"$f":"IF(OR(O$14=\"\",$F51=\"\"),\"\",INDIRECT(O$14&\"!\"&$F51))","v":"Yes"},{"$f":"IF(OR(P$14=\"\",$F51=\"\"),\"\",INDIRECT(P$14&\"!\"&$F51))","v":"Yes"},{"$f":"IF(OR(Q$14=\"\",$F51=\"\"),\"\",INDIRECT(Q$14&\"!\"&$F51))","v":"Yes"},{"$f":"IF(OR(R$14=\"\",$F51=\"\"),\"\",INDIRECT(R$14&\"!\"&$F51))","v":"Yes"},{"$f":"IF(OR(S$14=\"\",$F51=\"\"),\"\",INDIRECT(S$14&\"!\"&$F51))","v":"Yes"},{"$f":"IF(OR(T$14=\"\",$F51=\"\"),\"\",INDIRECT(T$14&\"!\"&$F51))","v":"Yes"},{"$f":"IF(OR(U$14=\"\",$F51=\"\"),\"\",INDIRECT(U$14&\"!\"&$F51))","v":"Yes"},{"$f":"IF(OR(V$14=\"\",$F51=\"\"),\"\",INDIRECT(V$14&\"!\"&$F51))","v":"Yes"},{"$f":"IF(OR(W$14=\"\",$F51=\"\"),\"\",INDIRECT(W$14&\"!\"&$F51))","v":"No"},{"$f":"IF(OR(X$14=\"\",$F51=\"\"),\"\",INDIRECT(X$14&\"!\"&$F51))","v":"Yes"},{"$f":"IF(OR(Y$14=\"\",$F51=\"\"),\"\",INDIRECT(Y$14&\"!\"&$F51))","v":"No"},{"$f":"IF(OR(Z$14=\"\",$F51=\"\"),\"\",INDIRECT(Z$14&\"!\"&$F51))","v":"Yes"},{"$f":"IF(OR(AA$14=\"\",$F51=\"\"),\"\",INDIRECT(AA$14&\"!\"&$F51))","v":""},{"$f":"IF(OR(AB$14=\"\",$F51=\"\"),\"\",INDIRECT(AB$14&\"!\"&$F51))","v":""},{"$f":"IF(OR(AC$14=\"\",$F51=\"\"),\"\",INDIRECT(AC$14&\"!\"&$F51))","v":""}]
[null,null,null,null,"Acquisition / Procurement procedure","C106",{"$f":"IF(OR(G$14=\"\",$F52=\"\"),\"\",INDIRECT(G$14&\"!\"&$F52))","v":"Yes"},{"$f":"IF(OR(H$14=\"\",$F52=\"\"),\"\",INDIRECT(H$14&\"!\"&$F52))","v":"Yes"},{"$f":"IF(OR(I$14=\"\",$F52=\"\"),\"\",INDIRECT(I$14&\"!\"&$F52))","v":"Yes"},{"$f":"IF(OR(J$14=\"\",$F52=\"\"),\"\",INDIRECT(J$14&\"!\"&$F52))","v":"Yes"},{"$f":"IF(OR(K$14=\"\",$F52=\"\"),\"\",INDIRECT(K$14&\"!\"&$F52))","v":"Yes"},{"$f":"IF(OR(L$14=\"\",$F52=\"\"),\"\",INDIRECT(L$14&\"!\"&$F52))","v":"Yes"},{"$f":"IF(OR(M$14=\"\",$F52=\"\"),\"\",INDIRECT(M$14&\"!\"&$F52))","v":"Yes"},{"$f":"IF(OR(N$14=\"\",$F52=\"\"),\"\",INDIRECT(N$14&\"!\"&$F52))","v":"No"},{"$f":"IF(OR(O$14=\"\",$F52=\"\"),\"\",INDIRECT(O$14&\"!\"&$F52))","v":"Yes"},{"$f":"IF(OR(P$14=\"\",$F52=\"\"),\"\",INDIRECT(P$14&\"!\"&$F52))","v":"Yes"},{"$f":"IF(OR(Q$14=\"\",$F52=\"\"),\"\",INDIRECT(Q$14&\"!\"&$F52))","v":"No"},{"$f":"IF(OR(R$14=\"\",$F52=\"\"),\"\",INDIRECT(R$14&\"!\"&$F52))","v":"Yes"},{"$f":"IF(OR(S$14=\"\",$F52=\"\"),\"\",INDIRECT(S$14&\"!\"&$F52))","v":"Yes"},{"$f":"IF(OR(T$14=\"\",$F52=\"\"),\"\",INDIRECT(T$14&\"!\"&$F52))","v":"Yes"},{"$f":"IF(OR(U$14=\"\",$F52=\"\"),\"\",INDIRECT(U$14&\"!\"&$F52))","v":"Yes"},{"$f":"IF(OR(V$14=\"\",$F52=\"\"),\"\",INDIRECT(V$14&\"!\"&$F52))","v":"Yes"},{"$f":"IF(OR(W$14=\"\",$F52=\"\"),\"\",INDIRECT(W$14&\"!\"&$F52))","v":"Yes"},{"$f":"IF(OR(X$14=\"\",$F52=\"\"),\"\",INDIRECT(X$14&\"!\"&$F52))","v":"Yes"},{"$f":"IF(OR(Y$14=\"\",$F52=\"\"),\"\",INDIRECT(Y$14&\"!\"&$F52))","v":"No"},{"$f":"IF(OR(Z$14=\"\",$F52=\"\"),\"\",INDIRECT(Z$14&\"!\"&$F52))","v":"Yes"},{"$f":"IF(OR(AA$14=\"\",$F52=\"\"),\"\",INDIRECT(AA$14&\"!\"&$F52))","v":""},{"$f":"IF(OR(AB$14=\"\",$F52=\"\"),\"\",INDIRECT(AB$14&\"!\"&$F52))","v":""},{"$f":"IF(OR(AC$14=\"\",$F52=\"\"),\"\",INDIRECT(AC$14&\"!\"&$F52))","v":""}]
[null,null,null,null,"Realisation","C107",{"$f":"IF(OR(G$14=\"\",$F53=\"\"),\"\",INDIRECT(G$14&\"!\"&$F53))","v":"Yes"},{"$f":"IF(OR(H$14=\"\",$F53=\"\"),\"\",INDIRECT(H$14&\"!\"&$F53))","v":"Yes"},{"$f":"IF(OR(I$14=\"\",$F53=\"\"),\"\",INDIRECT(I$14&\"!\"&$F53))","v":"Yes"},{"$f":"IF(OR(J$14=\"\",$F53=\"\"),\"\",INDIRECT(J$14&\"!\"&$F53))","v":"Yes"},{"$f":"IF(OR(K$14=\"\",$F53=\"\"),\"\",INDIRECT(K$14&\"!\"&$F53))","v":"Yes"},{"$f":"IF(OR(L$14=\"\",$F53=\"\"),\"\",INDIRECT(L$14&\"!\"&$F53))","v":"Yes"},{"$f":"IF(OR(M$14=\"\",$F53=\"\"),\"\",INDIRECT(M$14&\"!\"&$F53))","v":"No"},{"$f":"IF(OR(N$14=\"\",$F53=\"\"),\"\",INDIRECT(N$14&\"!\"&$F53))","v":"Yes"},{"$f":"IF(OR(O$14=\"\",$F53=\"\"),\"\",INDIRECT(O$14&\"!\"&$F53))","v":"No"},{"$f":"IF(OR(P$14=\"\",$F53=\"\"),\"\",INDIRECT(P$14&\"!\"&$F53))","v":"No"},{"$f":"IF(OR(Q$14=\"\",$F53=\"\"),\"\",INDIRECT(Q$14&\"!\"&$F53))","v":"No"},{"$f":"IF(OR(R$14=\"\",$F53=\"\"),\"\",INDIRECT(R$14&\"!\"&$F53))","v":"Yes"},{"$f":"IF(OR(S$14=\"\",$F53=\"\"),\"\",INDIRECT(S$14&\"!\"&$F53))","v":"Yes"},{"$f":"IF(OR(T$14=\"\",$F53=\"\"),\"\",INDIRECT(T$14&\"!\"&$F53))","v":"No"},{"$f":"IF(OR(U$14=\"\",$F53=\"\"),\"\",INDIRECT(U$14&\"!\"&$F53))","v":"No"},{"$f":"IF(OR(V$14=\"\",$F53=\"\"),\"\",INDIRECT(V$14&\"!\"&$F53))","v":"Yes"},{"$f":"IF(OR(W$14=\"\",$F53=\"\"),\"\",INDIRECT(W$14&\"!\"&$F53))","v":"No"},{"$f":"IF(OR(X$14=\"\",$F53=\"\"),\"\",INDIRECT(X$14&\"!\"&$F53))","v":"Yes"},{"$f":"IF(OR(Y$14=\"\",$F53=\"\"),\"\",INDIRECT(Y$14&\"!\"&$F53))","v":"No"},{"$f":"IF(OR(Z$14=\"\",$F53=\"\"),\"\",INDIRECT(Z$14&\"!\"&$F53))","v":"Yes"},{"$f":"IF(OR(AA$14=\"\",$F53=\"\"),\"\",INDIRECT(AA$14&\"!\"&$F53))","v":""},{"$f":"IF(OR(AB$14=\"\",$F53=\"\"),\"\",INDIRECT(AB$14&\"!\"&$F53))","v":""},{"$f":"IF(OR(AC$14=\"\",$F53=\"\"),\"\",INDIRECT(AC$14&\"!\"&$F53))","v":""}]
[null,null,null,null,"Monitoring","C108",{"$f":"IF(OR(G$14=\"\",$F54=\"\"),\"\",INDIRECT(G$14&\"!\"&$F54))","v":"No"},{"$f":"IF(OR(H$14=\"\",$F54=\"\"),\"\",INDIRECT(H$14&\"!\"&$F54))","v":"Yes"},{"$f":"IF(OR(I$14=\"\",$F54=\"\"),\"\",INDIRECT(I$14&\"!\"&$F54))","v":"Yes"},{"$f":"IF(OR(J$14=\"\",$F54=\"\"),\"\",INDIRECT(J$14&\"!\"&$F54))","v":"No"},{"$f":"IF(OR(K$14=\"\",$F54=\"\"),\"\",INDIRECT(K$14&\"!\"&$F54))","v":"No"},{"$f":"IF(OR(L$14=\"\",$F54=\"\"),\"\",INDIRECT(L$14&\"!\"&$F54))","v":"No"},{"$f":"IF(OR(M$14=\"\",$F54=\"\"),\"\",INDIRECT(M$14&\"!\"&$F54))","v":"No"},{"$f":"IF(OR(N$14=\"\",$F54=\"\"),\"\",INDIRECT(N$14&\"!\"&$F54))","v":"Yes"},{"$f":"IF(OR(O$14=\"\",$F54=\"\"),\"\",INDIRECT(O$14&\"!\"&$F54))","v":"No"},{"$f":"IF(OR(P$14=\"\",$F54=\"\"),\"\",INDIRECT(P$14&\"!\"&$F54))","v":"No"},{"$f":"IF(OR(Q$14=\"\",$F54=\"\"),\"\",INDIRECT(Q$14&\"!\"&$F54))","v":"No"},{"$f":"IF(OR(R$14=\"\",$F54=\"\"),\"\",INDIRECT(R$14&\"!\"&$F54))","v":"No"},{"$f":"IF(OR(S$14=\"\",$F54=\"\"),\"\",INDIRECT(S$14&\"!\"&$F54))","v":"Yes"},{"$f":"IF(OR(T$14=\"\",$F54=\"\"),\"\",INDIRECT(T$14&\"!\"&$F54))","v":"No"},{"$f":"IF(OR(U$14=\"\",$F54=\"\"),\"\",INDIRECT(U$14&\"!\"&$F54))","v":"No"},{"$f":"IF(OR(V$14=\"\",$F54=\"\"),\"\",INDIRECT(V$14&\"!\"&$F54))","v":"No"},{"$f":"IF(OR(W$14=\"\",$F54=\"\"),\"\",INDIRECT(W$14&\"!\"&$F54))","v":"No"},{"$f":"IF(OR(X$14=\"\",$F54=\"\"),\"\",INDIRECT(X$14&\"!\"&$F54))","v":"No"},{"$f":"IF(OR(Y$14=\"\",$F54=\"\"),\"\",INDIRECT(Y$14&\"!\"&$F54))","v":"No"},{"$f":"IF(OR(Z$14=\"\",$F54=\"\"),\"\",INDIRECT(Z$14&\"!\"&$F54))","v":"No"},{"$f":"IF(OR(AA$14=\"\",$F54=\"\"),\"\",INDIRECT(AA$14&\"!\"&$F54))","v":""},{"$f":"IF(OR(AB$14=\"\",$F54=\"\"),\"\",INDIRECT(AB$14&\"!\"&$F54))","v":""},{"$f":"IF(OR(AC$14=\"\",$F54=\"\"),\"\",INDIRECT(AC$14&\"!\"&$F54))","v":""}]
[null,null,null,"Tool can be used for:","Design an asset and evaluate/optimize sustainability","C111",{"$f":"IF(OR(G$14=\"\",$F55=\"\"),\"\",INDIRECT(G$14&\"!\"&$F55))","v":"Yes"},{"$f":"IF(OR(H$14=\"\",$F55=\"\"),\"\",INDIRECT(H$14&\"!\"&$F55))","v":"Yes"},{"$f":"IF(OR(I$14=\"\",$F55=\"\"),\"\",INDIRECT(I$14&\"!\"&$F55))","v":"Yes"},{"$f":"IF(OR(J$14=\"\",$F55=\"\"),\"\",INDIRECT(J$14&\"!\"&$F55))","v":"Yes"},{"$f":"IF(OR(K$14=\"\",$F55=\"\"),\"\",INDIRECT(K$14&\"!\"&$F55))","v":"Yes"},{"$f":"IF(OR(L$14=\"\",$F55=\"\"),\"\",INDIRECT(L$14&\"!\"&$F55))","v":"Yes"},{"$f":"IF(OR(M$14=\"\",$F55=\"\"),\"\",INDIRECT(M$14&\"!\"&$F55))","v":"No"},{"$f":"IF(OR(N$14=\"\",$F55=\"\"),\"\",INDIRECT(N$14&\"!\"&$F55))","v":"Yes"},{"$f":"IF(OR(O$14=\"\",$F55=\"\"),\"\",INDIRECT(O$14&\"!\"&$F55))","v":"Yes"},{"$f":"IF(OR(P$14=\"\",$F55=\"\"),\"\",INDIRECT(P$14&\"!\"&$F55))","v":"Yes"},{"$f":"IF(OR(Q$14=\"\",$F55=\"\"),\"\",INDIRECT(Q$14&\"!\"&$F55))","v":"Yes"},{"$f":"IF(OR(R$14=\"\",$F55=\"\"),\"\",INDIRECT(R$14&\"!\"&$F55))","v":"Yes"},{"$f":"IF(OR(S$14=\"\",$F55=\"\"),\"\",INDIRECT(S$14&\"!\"&$F55))","v":"Yes"},{"$f":"IF(OR(T$14=\"\",$F55=\"\"),\"\",INDIRECT(T$14&\"!\"&$F55))","v":"Yes"},{"$f":"IF(OR(U$14=\"\",$F55=\"\"),\"\",INDIRECT(U$14&\"!\"&$F55))","v":"No"},{"$f":"IF(OR(V$14=\"\",$F55=\"\"),\"\",INDIRECT(V$14&\"!\"&$F55))","v":"Yes"},{"$f":"IF(OR(W$14=\"\",$F55=\"\"),\"\",INDIRECT(W$14&\"!\"&$F55))","v":"No"},{"$f":"IF(OR(X$14=\"\",$F55=\"\"),\"\",INDIRECT(X$14&\"!\"&$F55))","v":"Yes"},{"$f":"IF(OR(Y$14=\"\",$F55=\"\"),\"\",INDIRECT(Y$14&\"!\"&$F55))","v":"Yes"},{"$f":"IF(OR(Z$14=\"\",$F55=\"\"),\"\",INDIRECT(Z$14&\"!\"&$F55))","v":"Yes"},{"$f":"IF(OR(AA$14=\"\",$F55=\"\"),\"\",INDIRECT(AA$14&\"!\"&$F55))","v":""},{"$f":"IF(OR(AB$14=\"\",$F55=\"\"),\"\",INDIRECT(AB$14&\"!\"&$F55))","v":""},{"$f":"IF(OR(AC$14=\"\",$F55=\"\"),\"\",INDIRECT(AC$14&\"!\"&$F55))","v":""}]
[null,null,null,null,"Analyze and/or optimize product sustainability","C112",{"$f":"IF(OR(G$14=\"\",$F56=\"\"),\"\",INDIRECT(G$14&\"!\"&$F56))","v":"Yes"},{"$f":"IF(OR(H$14=\"\",$F56=\"\"),\"\",INDIRECT(H$14&\"!\"&$F56))","v":"Yes"},{"$f":"IF(OR(I$14=\"\",$F56=\"\"),\"\",INDIRECT(I$14&\"!\"&$F56))","v":"No"},{"$f":"IF(OR(J$14=\"\",$F56=\"\"),\"\",INDIRECT(J$14&\"!\"&$F56))","v":"Yes"},{"$f":"IF(OR(K$14=\"\",$F56=\"\"),\"\",INDIRECT(K$14&\"!\"&$F56))","v":"Yes"},{"$f":"IF(OR(L$14=\"\",$F56=\"\"),\"\",INDIRECT(L$14&\"!\"&$F56))","v":"Yes"},{"$f":"IF(OR(M$14=\"\",$F56=\"\"),\"\",INDIRECT(M$14&\"!\"&$F56))","v":"Yes"},{"$f":"IF(OR(N$14=\"\",$F56=\"\"),\"\",INDIRECT(N$14&\"!\"&$F56))","v":"No"},{"$f":"IF(OR(O$14=\"\",$F56=\"\"),\"\",INDIRECT(O$14&\"!\"&$F56))","v":"No"},{"$f":"IF(OR(P$14=\"\",$F56=\"\"),\"\",INDIRECT(P$14&\"!\"&$F56))","v":"No"},{"$f":"IF(OR(Q$14=\"\",$F56=\"\"),\"\",INDIRECT(Q$14&\"!\"&$F56))","v":"Yes"},{"$f":"IF(OR(R$14=\"\",$F56=\"\"),\"\",INDIRECT(R$14&\"!\"&$F56))","v":"Yes"},{"$f":"IF(OR(S$14=\"\",$F56=\"\"),\"\",INDIRECT(S$14&\"!\"&$F56))","v":"Yes"},{"$f":"IF(OR(T$14=\"\",$F56=\"\"),\"\",INDIRECT(T$14&\"!\"&$F56))","v":"No"},{"$f":"IF(OR(U$14=\"\",$F56=\"\"),\"\",INDIRECT(U$14&\"!\"&$F56))","v":"Yes"},{"$f":"IF(OR(V$14=\"\",$F56=\"\"),\"\",INDIRECT(V$14&\"!\"&$F56))","v":"Yes"},{"$f":"IF(OR(W$14=\"\",$F56=\"\"),\"\",INDIRECT(W$14&\"!\"&$F56))","v":"No"},{"$f":"IF(OR(X$14=\"\",$F56=\"\"),\"\",INDIRECT(X$14&\"!\"&$F56))","v":"Yes"},{"$f":"IF(OR(Y$14=\"\",$F56=\"\"),\"\",INDIRECT(Y$14&\"!\"&$F56))","v":"Yes"},{"$f":"IF(OR(Z$14=\"\",$F56=\"\"),\"\",INDIRECT(Z$14&\"!\"&$F56))","v":"Yes"},{"$f":"IF(OR(AA$14=\"\",$F56=\"\"),\"\",INDIRECT(AA$14&\"!\"&$F56))","v":""},{"$f":"IF(OR(AB$14=\"\",$F56=\"\"),\"\",INDIRECT(AB$14&\"!\"&$F56))","v":""},{"$f":"IF(OR(AC$14=\"\",$F56=\"\"),\"\",INDIRECT(AC$14&\"!\"&$F56))","v":""}]
[null,null,null,null,"Procurement procedures","C113",{"$f":"IF(OR(G$14=\"\",$F57=\"\"),\"\",INDIRECT(G$14&\"!\"&$F57))","v":"Yes"},{"$f":"IF(OR(H$14=\"\",$F57=\"\"),\"\",INDIRECT(H$14&\"!\"&$F57))","v":"Yes"},{"$f":"IF(OR(I$14=\"\",$F57=\"\"),\"\",INDIRECT(I$14&\"!\"&$F57))","v":"Yes"},{"$f":"IF(OR(J$14=\"\",$F57=\"\"),\"\",INDIRECT(J$14&\"!\"&$F57))","v":"Yes"},{"$f":"IF(OR(K$14=\"\",$F57=\"\"),\"\",INDIRECT(K$14&\"!\"&$F57))","v":"Yes"},{"$f":"IF(OR(L$14=\"\",$F57=\"\"),\"\",INDIRECT(L$14&\"!\"&$F57))","v":"Yes"},{"$f":"IF(OR(M$14=\"\",$F57=\"\"),\"\",INDIRECT(M$14&\"!\"&$F57))","v":"Yes"},{"$f":"IF(OR(N$14=\"\",$F57=\"\"),\"\",INDIRECT(N$14&\"!\"&$F57))","v":"No"},{"$f":"IF(OR(O$14=\"\",$F57=\"\"),\"\",INDIRECT(O$14&\"!\"&$F57))","v":"Yes"},{"$f":"IF(OR(P$14=\"\",$F57=\"\"),\"\",INDIRECT(P$14&\"!\"&$F57))","v":"Yes"},{"$f":"IF(OR(Q$14=\"\",$F57=\"\"),\"\",INDIRECT(Q$14&\"!\"&$F57))","v":"No"},{"$f":"IF(OR(R$14=\"\",$F57=\"\"),\"\",INDIRECT(R$14&\"!\"&$F57))","v":"Yes"},{"$f":"IF(OR(S$14=\"\",$F57=\"\"),\"\",INDIRECT(S$14&\"!\"&$F57))","v":"Yes"},{"$f":"IF(OR(T$14=\"\",$F57=\"\"),\"\",INDIRECT(T$14&\"!\"&$F57))","v":"Yes"},{"$f":"IF(OR(U$14=\"\",$F57=\"\"),\"\",INDIRECT(U$14&\"!\"&$F57))","v":"Yes"},{"$f":"IF(OR(V$14=\"\",$F57=\"\"),\"\",INDIRECT(V$14&\"!\"&$F57))","v":"Yes"},{"$f":"IF(OR(W$14=\"\",$F57=\"\"),\"\",INDIRECT(W$14&\"!\"&$F57))","v":"Yes"},{"$f":"IF(OR(X$14=\"\",$F57=\"\"),\"\",INDIRECT(X$14&\"!\"&$F57))","v":"Yes"},{"$f":"IF(OR(Y$14=\"\",$F57=\"\"),\"\",INDIRECT(Y$14&\"!\"&$F57))","v":"No"},{"$f":"IF(OR(Z$14=\"\",$F57=\"\"),\"\",INDIRECT(Z$14&\"!\"&$F57))","v":"Yes"},{"$f":"IF(OR(AA$14=\"\",$F57=\"\"),\"\",INDIRECT(AA$14&\"!\"&$F57))","v":""},{"$f":"IF(OR(AB$14=\"\",$F57=\"\"),\"\",INDIRECT(AB$14&\"!\"&$F57))","v":""},{"$f":"IF(OR(AC$14=\"\",$F57=\"\"),\"\",INDIRECT(AC$14&\"!\"&$F57))","v":""}]
[null,null,null,null,"Monitoring of assets","C114",{"$f":"IF(OR(G$14=\"\",$F58=\"\"),\"\",INDIRECT(G$14&\"!\"&$F58))","v":"No"},{"$f":"IF(OR(H$14=\"\",$F58=\"\"),\"\",INDIRECT(H$14&\"!\"&$F58))","v":"Yes"},{"$f":"IF(OR(I$14=\"\",$F58=\"\"),\"\",INDIRECT(I$14&\"!\"&$F58))","v":"Yes"},{"$f":"IF(OR(J$14=\"\",$F58=\"\"),\"\",INDIRECT(J$14&\"!\"&$F58))","v":"No"},{"$f":"IF(OR(K$14=\"\",$F58=\"\"),\"\",INDIRECT(K$14&\"!\"&$F58))","v":"No"},{"$f":"IF(OR(L$14=\"\",$F58=\"\"),\"\",INDIRECT(L$14&\"!\"&$F58))","v":"No"},{"$f":"IF(OR(M$14=\"\",$F58=\"\"),\"\",INDIRECT(M$14&\"!\"&$F58))","v":"No"},{"$f":"IF(OR(N$14=\"\",$F58=\"\"),\"\",INDIRECT(N$14&\"!\"&$F58))","v":"Yes"},{"$f":"IF(OR(O$14=\"\",$F58=\"\"),\"\",INDIRECT(O$14&\"!\"&$F58))","v":"No"},{"$f":"IF(OR(P$14=\"\",$F58=\"\"),\"\",INDIRECT(P$14&\"!\"&$F58))","v":"No"},{"$f":"IF(OR(Q$14=\"\",$F58=\"\"),\"\",INDIRECT(Q$14&\"!\"&$F58))","v":"No"},{"$f":"IF(OR(R$14=\"\",$F58=\"\"),\"\",INDIRECT(R$14&\"!\"&$F58))","v":"No"},{"$f":"IF(OR(S$14=\"\",$F58=\"\"),\"\",INDIRECT(S$14&\"!\"&$F58))","v":"No"},{"$f":"IF(OR(T$14=\"\",$F58=\"\"),\"\",INDIRECT(T$14&\"!\"&$F58))","v":"No"},{"$f":"IF(OR(U$14=\"\",$F58=\"\"),\"\",INDIRECT(U$14&\"!\"&$F58))","v":"No"},{"$f":"IF(OR(V$14=\"\",$F58=\"\"),\"\",INDIRECT(V$14&\"!\"&$F58))","v":"No"},{"$f":"IF(OR(W$14=\"\",$F58=\"\"),\"\",INDIRECT(W$14&\"!\"&$F58))","v":"No"},{"$f":"IF(OR(X$14=\"\",$F58=\"\"),\"\",INDIRECT(X$14&\"!\"&$F58))","v":"No"},{"$f":"IF(OR(Y$14=\"\",$F58=\"\"),\"\",INDIRECT(Y$14&\"!\"&$F58))","v":"No"},{"$f":"IF(OR(Z$14=\"\",$F58=\"\"),\"\",INDIRECT(Z$14&\"!\"&$F58))","v":"No"},{"$f":"IF(OR(AA$14=\"\",$F58=\"\"),\"\",INDIRECT(AA$14&\"!\"&$F58))","v":""},{"$f":"IF(OR(AB$14=\"\",$F58=\"\"),\"\",INDIRECT(AB$14&\"!\"&$F58))","v":""},{"$f":"IF(OR(AC$14=\"\",$F58=\"\"),\"\",INDIRECT(AC$14&\"!\"&$F58))","v":""}]
[null,null,null,null,"Verification of sustainability claims (EPD)","C115",{"$f":"IF(OR(G$14=\"\",$F59=\"\"),\"\",INDIRECT(G$14&\"!\"&$F59))","v":"No"},{"$f":"IF(OR(H$14=\"\",$F59=\"\"),\"\",INDIRECT(H$14&\"!\"&$F59))","v":"No"},{"$f":"IF(OR(I$14=\"\",$F59=\"\"),\"\",INDIRECT(I$14&\"!\"&$F59))","v":"No"},{"$f":"IF(OR(J$14=\"\",$F59=\"\"),\"\",INDIRECT(J$14&\"!\"&$F59))","v":"Yes"},{"$f":"IF(OR(K$14=\"\",$F59=\"\"),\"\",INDIRECT(K$14&\"!\"&$F59))","v":"No"},{"$f":"IF(OR(L$14=\"\",$F59=\"\"),\"\",INDIRECT(L$14&\"!\"&$F59))","v":"No"},{"$f":"IF(OR(M$14=\"\",$F59=\"\"),\"\",INDIRECT(M$14&\"!\"&$F59))","v":"Yes"},{"$f":"IF(OR(N$14=\"\",$F59=\"\"),\"\",INDIRECT(N$14&\"!\"&$F59))","v":"No"},{"$f":"IF(OR(O$14=\"\",$F59=\"\"),\"\",INDIRECT(O$14&\"!\"&$F59))","v":"No"},{"$f":"IF(OR(P$14=\"\",$F59=\"\"),\"\",INDIRECT(P$14&\"!\"&$F59))","v":"No"},{"$f":"IF(OR(Q$14=\"\",$F59=\"\"),\"\",INDIRECT(Q$14&\"!\"&$F59))","v":"No"},{"$f":"IF(OR(R$14=\"\",$F59=\"\"),\"\",INDIRECT(R$14&\"!\"&$F59))","v":"Yes"},{"$f":"IF(OR(S$14=\"\",$F59=\"\"),\"\",INDIRECT(S$14&\"!\"&$F59))","v":"No"},{"$f":"IF(OR(T$14=\"\",$F59=\"\"),\"\",INDIRECT(T$14&\"!\"&$F59))","v":"No"},{"$f":"IF(OR(U$14=\"\",$F59=\"\"),\"\",INDIRECT(U$14&\"!\"&$F59))","v":"Yes"},{"$f":"IF(OR(V$14=\"\",$F59=\"\"),\"\",INDIRECT(V$14&\"!\"&$F59))","v":"Yes"},{"$f":"IF(OR(W$14=\"\",$F59=\"\"),\"\",INDIRECT(W$14&\"!\"&$F59))","v":"No"},{"$f":"IF(OR(X$14=\"\",$F59=\"\"),\"\",INDIRECT(X$14&\"!\"&$F59))","v":"No"},{"$f":"IF(OR(Y$14=\"\",$F59=\"\"),\"\",INDIRECT(Y$14&\"!\"&$F59))","v":"Yes"},{"$f":"IF(OR(Z$14=\"\",$F59=\"\"),\"\",INDIRECT(Z$14&\"!\"&$F59))","v":"Yes"},{"$f":"IF(OR(AA$14=\"\",$F59=\"\"),\"\",INDIRECT(AA$14&\"!\"&$F59))","v":""},{"$f":"IF(OR(AB$14=\"\",$F59=\"\"),\"\",INDIRECT(AB$14&\"!\"&$F59))","v":""},{"$f":"IF(OR(AC$14=\"\",$F59=\"\"),\"\",INDIRECT(AC$14&\"!\"&$F59))","v":""}]
[null,null,null,"Tool can be used by:","Road owner ","C118",{"$f":"IF(OR(G$14=\"\",$F60=\"\"),\"\",INDIRECT(G$14&\"!\"&$F60))","v":"Yes"},{"$f":"IF(OR(H$14=\"\",$F60=\"\"),\"\",INDIRECT(H$14&\"!\"&$F60))","v":"Yes"},{"$f":"IF(OR(I$14=\"\",$F60=\"\"),\"\",INDIRECT(I$14&\"!\"&$F60))","v":"Yes"},{"$f":"IF(OR(J$14=\"\",$F60=\"\"),\"\",INDIRECT(J$14&\"!\"&$F60))","v":"Yes"},{"$f":"IF(OR(K$14=\"\",$F60=\"\"),\"\",INDIRECT(K$14&\"!\"&$F60))","v":"Yes"},{"$f":"IF(OR(L$14=\"\",$F60=\"\"),\"\",INDIRECT(L$14&\"!\"&$F60))","v":"Yes"},{"$f":"IF(OR(M$14=\"\",$F60=\"\"),\"\",INDIRECT(M$14&\"!\"&$F60))","v":"Yes"},{"$f":"IF(OR(N$14=\"\",$F60=\"\"),\"\",INDIRECT(N$14&\"!\"&$F60))","v":"Yes"},{"$f":"IF(OR(O$14=\"\",$F60=\"\"),\"\",INDIRECT(O$14&\"!\"&$F60))","v":"Yes"},{"$f":"IF(OR(P$14=\"\",$F60=\"\"),\"\",INDIRECT(P$14&\"!\"&$F60))","v":"Yes"},{"$f":"IF(OR(Q$14=\"\",$F60=\"\"),\"\",INDIRECT(Q$14&\"!\"&$F60))","v":"Yes"},{"$f":"IF(OR(R$14=\"\",$F60=\"\"),\"\",INDIRECT(R$14&\"!\"&$F60))","v":"No"},{"$f":"IF(OR(S$14=\"\",$F60=\"\"),\"\",INDIRECT(S$14&\"!\"&$F60))","v":"No"},{"$f":"IF(OR(T$14=\"\",$F60=\"\"),\"\",INDIRECT(T$14&\"!\"&$F60))","v":"Yes"},{"$f":"IF(OR(U$14=\"\",$F60=\"\"),\"\",INDIRECT(U$14&\"!\"&$F60))","v":"Yes"},{"$f":"IF(OR(V$14=\"\",$F60=\"\"),\"\",INDIRECT(V$14&\"!\"&$F60))","v":"No"},{"$f":"IF(OR(W$14=\"\",$F60=\"\"),\"\",INDIRECT(W$14&\"!\"&$F60))","v":"Yes"},{"$f":"IF(OR(X$14=\"\",$F60=\"\"),\"\",INDIRECT(X$14&\"!\"&$F60))","v":"Yes"},{"$f":"IF(OR(Y$14=\"\",$F60=\"\"),\"\",INDIRECT(Y$14&\"!\"&$F60))","v":"No"},{"$f":"IF(OR(Z$14=\"\",$F60=\"\"),\"\",INDIRECT(Z$14&\"!\"&$F60))","v":"No"},{"$f":"IF(OR(AA$14=\"\",$F60=\"\"),\"\",INDIRECT(AA$14&\"!\"&$F60))","v":""},{"$f":"IF(OR(AB$14=\"\",$F60=\"\"),\"\",INDIRECT(AB$14&\"!\"&$F60))","v":""},{"$f":"IF(OR(AC$14=\"\",$F60=\"\"),\"\",INDIRECT(AC$14&\"!\"&$F60))","v":""}]
[null,null,null,null,"Contracting company","C119",{"$f":"IF(OR(G$14=\"\",$F61=\"\"),\"\",INDIRECT(G$14&\"!\"&$F61))","v":"Yes"},{"$f":"IF(OR(H$14=\"\",$F61=\"\"),\"\",INDIRECT(H$14&\"!\"&$F61))","v":"Yes"},{"$f":"IF(OR(I$14=\"\",$F61=\"\"),\"\",INDIRECT(I$14&\"!\"&$F61))","v":"Yes"},{"$f":"IF(OR(J$14=\"\",$F61=\"\"),\"\",INDIRECT(J$14&\"!\"&$F61))","v":"Yes"},{"$f":"IF(OR(K$14=\"\",$F61=\"\"),\"\",INDIRECT(K$14&\"!\"&$F61))","v":"Yes"},{"$f":"IF(OR(L$14=\"\",$F61=\"\"),\"\",INDIRECT(L$14&\"!\"&$F61))","v":"No"},{"$f":"IF(OR(M$14=\"\",$F61=\"\"),\"\",INDIRECT(M$14&\"!\"&$F61))","v":"Yes"},{"$f":"IF(OR(N$14=\"\",$F61=\"\"),\"\",INDIRECT(N$14&\"!\"&$F61))","v":"Yes"},{"$f":"IF(OR(O$14=\"\",$F61=\"\"),\"\",INDIRECT(O$14&\"!\"&$F61))","v":"Yes"},{"$f":"IF(OR(P$14=\"\",$F61=\"\"),\"\",INDIRECT(P$14&\"!\"&$F61))","v":"Yes"},{"$f":"IF(OR(Q$14=\"\",$F61=\"\"),\"\",INDIRECT(Q$14&\"!\"&$F61))","v":"No"},{"$f":"IF(OR(R$14=\"\",$F61=\"\"),\"\",INDIRECT(R$14&\"!\"&$F61))","v":"Yes"},{"$f":"IF(OR(S$14=\"\",$F61=\"\"),\"\",INDIRECT(S$14&\"!\"&$F61))","v":"Yes"},{"$f":"IF(OR(T$14=\"\",$F61=\"\"),\"\",INDIRECT(T$14&\"!\"&$F61))","v":"Yes"},{"$f":"IF(OR(U$14=\"\",$F61=\"\"),\"\",INDIRECT(U$14&\"!\"&$F61))","v":"Yes"},{"$f":"IF(OR(V$14=\"\",$F61=\"\"),\"\",INDIRECT(V$14&\"!\"&$F61))","v":"Yes"},{"$f":"IF(OR(W$14=\"\",$F61=\"\"),\"\",INDIRECT(W$14&\"!\"&$F61))","v":"Yes"},{"$f":"IF(OR(X$14=\"\",$F61=\"\"),\"\",INDIRECT(X$14&\"!\"&$F61))","v":"Yes"},{"$f":"IF(OR(Y$14=\"\",$F61=\"\"),\"\",INDIRECT(Y$14&\"!\"&$F61))","v":"No"},{"$f":"IF(OR(Z$14=\"\",$F61=\"\"),\"\",INDIRECT(Z$14&\"!\"&$F61))","v":"Yes"},{"$f":"IF(OR(AA$14=\"\",$F61=\"\"),\"\",INDIRECT(AA$14&\"!\"&$F61))","v":""},{"$f":"IF(OR(AB$14=\"\",$F61=\"\"),\"\",INDIRECT(AB$14&\"!\"&$F61))","v":""},{"$f":"IF(OR(AC$14=\"\",$F61=\"\"),\"\",INDIRECT(AC$14&\"!\"&$F61))","v":""}]
[null,null,null,null,"Product developer","C120",{"$f":"IF(OR(G$14=\"\",$F62=\"\"),\"\",INDIRECT(G$14&\"!\"&$F62))","v":"Yes"},{"$f":"IF(OR(H$14=\"\",$F62=\"\"),\"\",INDIRECT(H$14&\"!\"&$F62))","v":"Yes"},{"$f":"IF(OR(I$14=\"\",$F62=\"\"),\"\",INDIRECT(I$14&\"!\"&$F62))","v":"No"},{"$f":"IF(OR(J$14=\"\",$F62=\"\"),\"\",INDIRECT(J$14&\"!\"&$F62))","v":"Yes"},{"$f":"IF(OR(K$14=\"\",$F62=\"\"),\"\",INDIRECT(K$14&\"!\"&$F62))","v":"Yes"},{"$f":"IF(OR(L$14=\"\",$F62=\"\"),\"\",INDIRECT(L$14&\"!\"&$F62))","v":"No"},{"$f":"IF(OR(M$14=\"\",$F62=\"\"),\"\",INDIRECT(M$14&\"!\"&$F62))","v":"No"},{"$f":"IF(OR(N$14=\"\",$F62=\"\"),\"\",INDIRECT(N$14&\"!\"&$F62))","v":"Yes"},{"$f":"IF(OR(O$14=\"\",$F62=\"\"),\"\",INDIRECT(O$14&\"!\"&$F62))","v":"No"},{"$f":"IF(OR(P$14=\"\",$F62=\"\"),\"\",INDIRECT(P$14&\"!\"&$F62))","v":"No"},{"$f":"IF(OR(Q$14=\"\",$F62=\"\"),\"\",INDIRECT(Q$14&\"!\"&$F62))","v":"No"},{"$f":"IF(OR(R$14=\"\",$F62=\"\"),\"\",INDIRECT(R$14&\"!\"&$F62))","v":"Yes"},{"$f":"IF(OR(S$14=\"\",$F62=\"\"),\"\",INDIRECT(S$14&\"!\"&$F62))","v":"Yes"},{"$f":"IF(OR(T$14=\"\",$F62=\"\"),\"\",INDIRECT(T$14&\"!\"&$F62))","v":"No"},{"$f":"IF(OR(U$14=\"\",$F62=\"\"),\"\",INDIRECT(U$14&\"!\"&$F62))","v":"No"},{"$f":"IF(OR(V$14=\"\",$F62=\"\"),\"\",INDIRECT(V$14&\"!\"&$F62))","v":"Yes"},{"$f":"IF(OR(W$14=\"\",$F62=\"\"),\"\",INDIRECT(W$14&\"!\"&$F62))","v":"No"},{"$f":"IF(OR(X$14=\"\",$F62=\"\"),\"\",INDIRECT(X$14&\"!\"&$F62))","v":"Yes"},{"$f":"IF(OR(Y$14=\"\",$F62=\"\"),\"\",INDIRECT(Y$14&\"!\"&$F62))","v":"Yes"},{"$f":"IF(OR(Z$14=\"\",$F62=\"\"),\"\",INDIRECT(Z$14&\"!\"&$F62))","v":"Yes"},{"$f":"IF(OR(AA$14=\"\",$F62=\"\"),\"\",INDIRECT(AA$14&\"!\"&$F62))","v":""},{"$f":"IF(OR(AB$14=\"\",$F62=\"\"),\"\",INDIRECT(AB$14&\"!\"&$F62))","v":""},{"$f":"IF(OR(AC$14=\"\",$F62=\"\"),\"\",INDIRECT(AC$14&\"!\"&$F62))","v":""}]
[]
[]
[null,null,"Step 1. Language preferences"]
[]
[null,null,null,"At least one selected language must be included in the LCA tool."]
[null,null,null,"Information type","Current Selection",null,{"$f":"G$13","v":"asPECT"},{"$f":"H$13","v":"Athena Pavement LCA"},"Dubocalc","Ecochain","Ecorce M","GreenDOT","Klimatkalkyl","LCC AM-QM","LCCA original and express","LCE4ROADS","Life Cycle Considerations in EIA of Road Infrastructure - LICCER","OpenLCA","PaLATE","Real Cost LCCA - FHWA","Système d’Evaluation des Variantes Environnementales (SEVE)","SimaPro","SMART SPP","VTTI/UC Pavement LCA Tool","Emerald EPD tool","Gabi",0,0,0]
[null,null,null,"English",{"$f":"INDEX(PrefLang_CurrentSelection,MATCH($D69,PrefLang_Field,0))","v":true},null,{"$f":"IF(G$14=\"\",\"\",\nIF($E69=TRUE(),\nIF(ISNUMBER(FIND($D69,G$16)),TRUE(),FALSE()),\"\"))","v":true},{"$f":"IF(H$14=\"\",\"\",\nIF($E69=TRUE(),\nIF(ISNUMBER(FIND($D69,H$16)),TRUE(),FALSE()),\"\"))","v":true},false,true,true,true,false,true,true,true,true,true,true,true,true,true,true,true,true,true,"","",""]
[null,null,null,"Chinese",true,null,{"$f":"IF(G$14=\"\",\"\",\nIF($E70=TRUE(),\nIF(ISNUMBER(FIND($D70,G$16)),TRUE(),FALSE()),\"\"))","v":false},false,false,false,false,false,false,false,false,false,false,true,false,false,false,true,false,false,false,true,"","",""]
[null,null,null,"Dutch",true,null,false,false,true,true,false,false,false,false,false,false,false,true,false,false,false,true,false,false,false,true,"","",""]
[null,null,null,"French",true,null,false,false,false,true,true,false,false,false,false,false,false,true,false,false,true,true,false,false,false,true,"","",""]
[null,null,null,"German",true,null,false,false,false,true,false,false,false,false,false,false,false,true,false,false,true,true,true,false,false,true,"","",""]
[null,null,null,"Hungarian",true,null,false,false,false,false,false,false,false,false,false,false,false,false,false,false,true,false,false,false,false,false,"","",""]
[null,null,null,"Italian",true,null,false,false,false,false,false,false,false,false,false,false,false,true,false,false,false,true,false,false,false,true,"","",""]
[null,null,null,"Spanish",true,null,false,false,false,false,false,false,false,false,false,false,false,true,false,false,true,true,false,false,false,true,"","",""]
[null,null,null,"Swedish",true,null,false,false,false,false,false,false,true,false,false,false,false,false,false,false,false,false,false,false,false,false,"","",""]
[null,null,null,null,"ApplicableToolsCount_Step1"]
[null,null,null,"Applicable tools",{"$f":"COUNTIF($G79:$AC79,TRUE())","v":20},"Applicable tool?",{"$f":"IF(G$14=\"\",\"\",OR(G$69:G$77))","v":true},{"$f":"IF(H$14=\"\",\"\",OR(H$69:H$77))","v":true},true,true,true,true,true,true,true,true,true,true,true,true,true,true,true,true,true,true,"","",""]
[]
[null,null,"Step 2. Intended use"]
[]
[null,null,null,null,"Yes","For all selected fieds (displayed as True), \"Yes\" must have been filled in the tool info sheet. For non selected fields, tool characteristics do not matter. Tools excluded base on language preferences are also not applicable."]
[null,null,null,"Information type","Current Selection",null,{"$f":"G$13","v":"asPECT"},{"$f":"H$13","v":"Athena Pavement LCA"},"Dubocalc","Ecochain","Ecorce M","GreenDOT","Klimatkalkyl","LCC AM-QM","LCCA original and express","LCE4ROADS","Life Cycle Considerations in EIA of Road Infrastructure - LICCER","OpenLCA","PaLATE","Real Cost LCCA - FHWA","Système d’Evaluation des Variantes Environnementales (SEVE)","SimaPro","SMART SPP","VTTI/UC Pavement LCA Tool","Emerald EPD tool","Gabi",0,0,0]
[null,null,null,"Road owner ",{"$f":"INDEX(IntUse_CurrentSelection,MATCH($D85,IntUse_Field,0))","v":false},null,{"$f":"IF(G$14=\"\",\"\",\nIF($E85=TRUE(),\nIF(INDEX(G$14:G$62,MATCH($D85,SummaryTable_DataType,0))=$E$83,TRUE(),FALSE()),\"\"))","v":""},"","","","","","","","","",{"$f":"IF(Q$14=\"\",\"\",\nIF($E85=TRUE(),\nIF(INDEX(Q$14:Q$62,MATCH($D85,SummaryTable_DataType,0))=$E$83,TRUE(),FALSE()),\"\"))","v":""},"","","","","","","","","","","",""]
[null,null,null,"Contracting company",false,null,"","","","","","","","","","","","","","","","","","","","","","",""]
[null,null,null,"Product developer",false,null,"","","","","","","","","","","","","","","","","","","","","","",""]
[null,null,null,"Road pavement activities (layers of pavement)",false,null,"","","","","","","","","","","","","","","","","","","","","","",""]
[null,null,null,"Road pavement materials (asphalt/concrete)",false,null,"","","","","","","","","","","","","","","","","","","","","","",""]
[null,null,null,"Planning phase",false,null,"","","","","","","","","","","","","","","","","","","","","","",""]
[null,null,null,"Acquisition / Procurement procedure",false,null,"","","","","","","","","","","","","","","","","","","","","","",""]
[null,null,null,"Realisation",false,null,"","","","","","","","","","","","","","","","","","","","","","",""]
[null,null,null,"Monitoring",false,null,"","","","","","","","","","","","","","","","","","","","","","",""]
[null,null,null,"Design an asset and evaluate/optimize sustainability",false,null,"","","","","","","","","","","","","","","","","","","","","","",""]
[null,null,null,"Analyze and/or optimize product sustainability",false,null,"","","","","","","","","","","","","","","","","","","","","","",""]
[null,null,null,"Procurement procedures",false,null,"","","","","","","","","","","","","","","","","","","","","","",""]
[null,null,null,"Monitoring of assets",false,null,"","","","","","","","","","","","","","","","","","","","","","",""]
[null,null,null,"Verification of sustainability claims (EPD)",false,null,"","","","","","","","","","","","","","","","","","","","","","",""]
[null,null,null,null,"ApplicableToolsCount_Step2","Count False",{"$f":"IF(G$14=\"\",\"\",COUNTIF(G$85:G$98,FALSE()))","v":0},0,0,0,0,0,0,0,0,0,0,0,0,0,0,0,0,0,0,0,"","",""]
[null,null,null,"Applicable tools",{"$f":"COUNTIF($G100:$AC100,TRUE())","v":20},"Applicable tool?",{"$f":"AND(G$99=0,G79)","v":true},{"$f":"AND(H$99=0,H79)","v":true},true,true,true,true,true,true,true,true,true,true,true,true,true,true,true,true,true,true,false,false,false]
[]
[null,null,"Step 3. Further requirements and preferences"]
[]
[null,null,null,null,null,null,"Used in formulae below ->","License, >500 euros/year","License, 101-500 euros/year","License, 1-100 euros/year","Free"]
[null,null,null,null,null,"Step3Res_ReqPref",null,"License, 101-500 euros/year","License, 1-100 euros/year","Free"]
[null,null,null,null,null,"Requirement",null,"License, 1-100 euros/year","Free"]
[null,null,null,null,null,"Preference",null,"Free"]
[null,null,null,"Step3Res_Type","Yes","Y","Step3Res_ToolName"]
[null,null,null,"Information type","Current Selection",null,{"$f":"G$13","v":"asPECT"},{"$f":"H$13","v":"Athena Pavement LCA"},"Dubocalc","Ecochain","Ecorce M","GreenDOT","Klimatkalkyl","LCC AM-QM","LCCA original and express","LCE4ROADS","Life Cycle Considerations in EIA of Road Infrastructure - LICCER","OpenLCA","PaLATE","Real Cost LCCA - FHWA","Système d’Evaluation des Variantes Environnementales (SEVE)","SimaPro","SMART SPP","VTTI/UC Pavement LCA Tool","Emerald EPD tool","Gabi",0,0,0]
[null,null,"Step3Res_UserCosts","Max allowed costs",{"$f":"ReqPref_CostPref","v":0},{"$f":"ReqPref_MaxCost","v":0},{"$f":"IF(OR(G$14=\"\",$E110=0),\"\",\nISNUMBER(MATCH(G$17,INDEX($H$104:$K$107,0,MATCH($F$110,$H$104:$K$104,0)),0)))","v":""},"","","","","","","","","","","","","","","","","","","","","",""]
[null,null,"Step3Res_CountryName","World",{"$f":"INDEX(ReqPref_Input1,MATCH($D111,ReqPref_Field1,0))","v":0},{"$f":"IF(OR($E111=$F$106,$E111=$F$107),$F$108,\"\")","v":""},{"$f":"IF(G$14=\"\",\"\",\nIF(ISNUMBER(FIND($D111,G$15)),TRUE(),FALSE()))","v":false},{"$f":"IF(H$14=\"\",\"\",\nIF(ISNUMBER(FIND($D111,H$15)),TRUE(),FALSE()))","v":false},false,false,false,false,false,true,false,false,false,true,false,false,true,true,false,false,false,true,"","",""]
[null,null,"Step3Res_CountryCheck","Canada",0,{"$f":"IF(OR($E112=$F$106,$E112=$F$107),$F$108,\"\")","v":""},{"$f":"IF(G$14=\"\",\"\",\nIF(ISNUMBER(FIND($D112,G$15)),TRUE(),FALSE()))","v":false},true,false,false,false,false,false,false,false,false,false,false,false,false,false,false,false,false,false,false,"","",""]
[null,null,null,"Europe",0,"",true,false,false,true,false,false,false,false,false,true,true,false,false,false,true,false,true,false,false,false,"","",""]
[null,null,null,"France",0,"",false,false,false,false,true,false,false,false,false,false,false,false,false,false,false,false,false,false,false,false,"","",""]
[null,null,null,"Netherlands",0,"",false,false,true,false,false,false,false,false,false,false,false,false,false,false,false,false,false,false,false,false,"","",""]
[null,null,null,"Sweden",0,"",false,false,false,false,false,false,true,false,false,false,false,false,false,false,false,false,false,false,false,false,"","",""]
[null,null,null,"USA",0,"",false,true,false,false,false,true,false,false,true,false,false,false,true,true,false,false,false,true,false,false,"","",""]
[null,null,null,"A1 - Extraction and pre-processing of raw materials",0,"",{"$f":"IF(OR($E118=0,G$14=\"\"),\"\",\nIF(INDEX(G$14:G$62,MATCH($D118,SummaryTable_DataType,0))=$E$108,TRUE(),FALSE()))","v":""},"","","","","","","","","",{"$f":"IF(OR($E118=0,Q$14=\"\"),\"\",\nIF(INDEX(Q$14:Q$62,MATCH($D118,SummaryTable_DataType,0))=$E$108,TRUE(),FALSE()))","v":""},"","","","","","","","","","","",""]
[null,null,null,"A2 - Transport to producer",0,"","","","","","","","","","","","","","","","","","","","","","","",""]
[null,null,null,"A3 - Production",0,"","","","","","","","","","","","","","","","","","","","","","","",""]
[null,null,null,"A4 - Transport to building location",0,"","","","","","","","","","","","","","","","","","","","","","","",""]
[null,null,null,"A5 - Building phase and implementation",0,"","","","","","","","","","","","","","","","","","","","","","","",""]
[null,null,null,"B - Use stage + maintenance",0,"","","","","","","","","","","","","","","","","","","","","","","",""]
[null,null,null,"C1 - Demolition / removal",0,"","","","","","","","","","","","","","","","","","","","","","","",""]
[null,null,null,"C2 - Transport to waste processing facility",0,"","","","","","","","","","","","","","","","","","","","","","","",""]
[null,null,null,"C3 - Waste processing",0,"","","","","","","","","","","","","","","","","","","","","","","",""]
[null,null,null,"C4 - Final waste destination",0,"","","","","","","","","","","","","","","","","","","","","","","",""]
[null,null,null,"D - Recycling",0,"",{"$f":"IF(OR($E128=0,G$14=\"\"),\"\",\nIF(INDEX(G$14:G$62,MATCH($D128,SummaryTable_DataType,0))=$E$108,TRUE(),FALSE()))","v":""},"","","","","","","","","",{"$f":"IF(OR($E128=0,Q$14=\"\"),\"\",\nIF(INDEX(Q$14:Q$62,MATCH($D128,SummaryTable_DataType,0))=$E$108,TRUE(),FALSE()))","v":""},"","","","","","","","","","","",""]
[null,null,null,"Environmental",{"$f":"INDEX(ReqPref_Input2,MATCH($D129,ReqPref_Field2,0))","v":0},"","","","","","","","","","","","","","","","","","","","","","","",""]
[null,null,null,"Costs",0,"","","","","","","","","","","","","","","","","","","","","","","",""]
[null,null,null,"Social",0,"","","","","","","","","","","","","","","","","","","","","","","",""]
[null,null,null,"Asphalt",0,"","","","","","","","","","","","","","","","","","","","","","","",""]
[null,null,null,"Concrete",0,"","","","","","","","","","","","","","","","","","","","","","","",""]
[null,null,null,"Groundworks",0,"","","","","","","","","","","","","","","","","","","","","","","",""]
[null,null,null,"Roads",0,"","","","","","","","","","","","","","","","","","","","","","","",""]
[null,null,null,"Civil works",0,"","","","","","","","","","","","","","","","","","","","","","","",""]
[null,null,null,"Railways",0,"","","","","","","","","","","","","","","","","","","","","","","",""]
[null,null,null,"Waterways",0,"",{"$f":"IF(OR($E138=0,G$14=\"\"),\"\",\nIF(INDEX(G$14:G$62,MATCH($D138,SummaryTable_DataType,0))=$E$108,TRUE(),FALSE()))","v":""},"","","","","","","","","",{"$f":"IF(OR($E138=0,Q$14=\"\"),\"\",\nIF(INDEX(Q$14:Q$62,MATCH($D138,SummaryTable_DataType,0))=$E$108,TRUE(),FALSE()))","v":""},"","","","","","","","","","","",""]
[null,null,null,"Weighing",0,"","","","","","","","","","","","","","","","","","","","","","","",""]
[null,null,null,"Lifetime expectation info",0,"","","","","","","","","","","","","","","","","","","","","","","",""]
[null,null,null,"Infrastructure (capital goods included)",0,"","","","","","","","","","","","","","","","","","","","","","","",""]
[null,null,null,"Discount rate (for LCC)",0,"","","","","","","","","","","","","","","","","","","","","","","",""]
[null,null,null,"Reviewed data",0,"","","","","","","","","","","","","","","","","","","","","","","",""]
[null,null,null,"Uncertainty information ",0,"","","","","","","","","","","","","","","","","","","","","","","",""]
[]
[null,null,null,"Requirement","ApplicableToolsCount_Step3","Count False on requirements",{"$f":"IF(G$14=\"\",\"\",COUNTIFS($E$110:$E$144,$D$146,G$110:G$144,FALSE()))","v":0},0,0,0,0,0,0,0,0,0,0,0,0,0,0,0,0,0,0,0,"","",""]
[null,null,null,"Applicable tools",{"$f":"COUNTIF($G147:$AC147,TRUE())","v":20},"Applicable tool?",{"$f":"AND(G$146=0,G100)","v":true},true,true,true,true,true,true,true,true,true,true,true,true,true,true,true,true,true,true,true,false,false,false]
[null,null,null,"Preference",null,"Count true on preferences",{"$f":"IF(G$147=TRUE(),COUNTIFS($E$110:$E$144,$D$148,G$110:G$144,TRUE()),\"\")","v":0},0,0,0,0,0,0,0,0,0,0,0,0,0,0,0,0,0,0,0,"","",""]
[null,null,null,null,null,"Ranking of tools (raw)",{"$f":"IF(G$148=\"\",\"\",_xlfn.RANK.EQ(G$148,$G$148:$AC$148))","v":1},1,1,1,1,1,1,1,1,1,1,1,1,1,1,1,1,1,1,1,"","",""]
[null,null,null,null,null,"Duplicates",null,{"$f":"IF(H$147,COUNTIF($G$149:G$149,H$149),\"\")","v":1},{"$f":"IF(I$147,COUNTIF($G$149:H$149,I$149),\"\")","v":2},{"$f":"IF(J$147,COUNTIF($G$149:I$149,J$149),\"\")","v":3},{"$f":"IF(K$147,COUNTIF($G$149:J$149,K$149),\"\")","v":4},{"$f":"IF(L$147,COUNTIF($G$149:K$149,L$149),\"\")","v":5},{"$f":"IF(M$147,COUNTIF($G$149:L$149,M$149),\"\")","v":6},{"$f":"IF(N$147,COUNTIF($G$149:M$149,N$149),\"\")","v":7},{"$f":"IF(O$147,COUNTIF($G$149:N$149,O$149),\"\")","v":8},{"$f":"IF(P$147,COUNTIF($G$149:O$149,P$149),\"\")","v":9},{"$f":"IF(Q$147,COUNTIF($G$149:P$149,Q$149),\"\")","v":10},{"$f":"IF(R$147,COUNTIF($G$149:Q$149,R$149),\"\")","v":11},{"$f":"IF(S$147,COUNTIF($G$149:R$149,S$149),\"\")","v":12},{"$f":"IF(T$147,COUNTIF($G$149:S$149,T$149),\"\")","v":13},{"$f":"IF(U$147,COUNTIF($G$149:T$149,U$149),\"\")","v":14},{"$f":"IF(V$147,COUNTIF($G$149:U$149,V$149),\"\")","v":15},{"$f":"IF(W$147,COUNTIF($G$149:V$149,W$149),\"\")","v":16},{"$f":"IF(X$147,COUNTIF($G$149:W$149,X$149),\"\")","v":17},{"$f":"IF(Y$147,COUNTIF($G$149:X$149,Y$149),\"\")","v":18},{"$f":"IF(Z$147,COUNTIF($G$149:Y$149,Z$149),\"\")","v":19},{"$f":"IF(AA$147,COUNTIF($G$149:Z$149,AA$149),\"\")","v":""},{"$f":"IF(AB$147,COUNTIF($G$149:AA$149,AB$149),\"\")","v":""},{"$f":"IF(AC$147,COUNTIF($G$149:AB$149,AC$149),\"\")","v":""}]
[null,null,null,null,"Result_ToolRankiing","Ranking of tools (final)",{"$f":"IF(G$147,SUM(G$149:G$150),\"\")","v":1},{"$f":"IF(H$147,SUM(H$149:H$150),\"\")","v":2},3,4,5,6,7,8,9,10,11,12,13,14,15,16,17,18,19,20,"","",""]

{"sheet":"asPECT","index":8,"n_rows":124,"n_cols":6,"rows_kept":124,"cut":false,"hidden":false,"merged":[[18,1,18,7],[69,3,69,7],[70,3,79,7],[32,3,32,7],[33,3,33,7],[34,3,34,7],[35,3,35,7],[36,3,36,7],[22,1,22,7],[23,1,23,7],[26,1,26,7],[27,1,27,7],[28,1,28,7],[21,1,21,7]]}
[]
[]
[]
[]
[null,"Aspect"]
[]
[null,"General information"]
[]
[null,"Country coverage","Europe",null,null," "]
[null,"Language","English"]
[null,"Developed by","Transport Research Laboratory"]
[null,"Maintained by","Transport Research Laboratory"]
[null,"Link to contact","http://www.sustainabilityofhighways.org.uk/ContactUs.aspx"]
[null,"Link to tool/data"]
[null,"Costs","Free"]
[null,"Data, average age","Data in general is about 5 - 10 years old"]
[]
[null,"Short description"]
[null,"asPECT is a tool developed by the Transport Research Laboratory. asPECT estimates CO2e emissions from asphalt paving processes in a cradle to gate scenario, and has been designed to meet the specifications in the UK standard PAS 2050. It can be used by producers of road materials, designers and contractors to calculate carbon dioxide equivalent (CO2e) emissions associated with bitumen bound mixtures. This tool does not provide default asphalt mixtures, therefore the user must input all the information on asphalt production him/herself. For instance, only the use of primary data for aggregates and filler is permitted. It is also possible to model the use of recycled asphalt, in this case the benefits are attributed to the user of the recycled asphalt. "]
[]
[null,"Strong points"]
[null,"Model is highly adaptable"]
[null,"Calculation of results for different phases of the project"]
[null,"Allows to model the use of reclaimed asphalt planings (RAP)"]
[]
[null,"Weak points"]
[null,"For new elements the user has to manually input CO2 emissions or fuel conumption "]
[null,"Does not allow the modelling of use stage"]
[null," Limited to flexible pavements "]
[]
[null,"Types of geener asphalt included "]
[]
[null,"Type","Datasets","Comment"]
[null,"Warm mix asphalt","No","Can be modelled"]
[null,"Asphalt with RAP content","No","Can be modelled"]
[null,"Asphalt with crumbed rubber","No","Can be modelled"]
[null,"Others","No"]
[]
[null,"Main impacts included:"]
[]
[null,"Environmental","Costs","Social"]
[null,"Yes","No","No"]
[]
[null,"Specific impacts included:"]
[null,"Environmental","Costs","Social"]
[null,"GHG emissons"]
[]
[]
[]
[]
[]
[]
[]
[]
[]
[]
[]
[]
[]
[]
[null,"Compatible with:"]
[null,"PAS2050:2011","Yes"]
[]
[]
[]
[null,"Weighing included?","No"]
[null,"If yes, what kind of weighing?"]
[]
[null,"Life cycle stages included"]
[null,"A1 - Extraction and pre-processing of raw materials","Yes","Observation"]
[null,"A2 - Transport to producer","Yes","In the use phase only maintenance is accounted for.\nThe interaction between vehicle and road surface is not considered.\nModels can include raw material acquisition,transport, processing, processed material transport, road component production, material transport to building site, site preparation, laying and compacting, scheme specific works (project level), maintenance and End-of-Life."]
[null,"A3 - Production","Yes"]
[null,"A4 - Transport to building location","Yes"]
[null,"A5 - Building phase and implementation","Yes"]
[null,"B - Use stage + maintenance","Yes"]
[null,"C1 - Demolition / removal","Yes"]
[null,"C2 - Transport to waste processing facility","Yes"]
[null,"C3 - Waste processing","Yes"]
[null,"C4 - Final waste destination","Yes"]
[null,"D - Recycling","No"]
[]
[null,"Focus of tool"]
[null,"Road pavement activities (layers of pavement)","No"]
[null,"Road pavement materials (asphalt/concrete)","Yes"]
[]
[null,"Main product categories","Included?"]
[null,"Asphalt","Yes"]
[null,"Concrete","No"]
[null,"Groundworks","No"]
[null,"Roads","No"]
[null,"Civil works","No"]
[null,"Railways","No"]
[null,"Waterways","No"]
[null,"Other","No"]
[]
[null,"Scoping aspects"]
[null,"Lifetime expectation info","No"]
[null,"Infrastructure (capital goods included)","Yes"]
[null,"Discount rate (for LCC)","No"]
[null,"Are the data reviewed?","Yes"]
[null,"Uncertainty information available?","No"]
[null,"Tool updating frequency","Unknown, last update 2019"]
[]
[null,"When is the tool applicable?"]
[null,"Planning phase","Yes"]
[null,"Acquisition / Procurement procedure","Yes"]
[null,"Realisation","Yes"]
[null,"Monitoring","No"]
[]
[null,"What can you use it for?"]
[null,"Design an asset and evaluate/optimize sustainability","Yes"]
[null,"Analyze and/or optimize product sustainability","Yes"]
[null,"Procurement procedures","Yes"]
[null,"Monitoring of assets","No"]
[null,"Verification of sustainability claims (EPD)","No"]
[]
[null,"To be used by whom"]
[null,"Road owner ","Yes"]
[null,"Contracting company","Yes"]
[null,"Product developer","Yes"]
[]
[null,"Examples of major projects which used this tool/dataset"]
[]
[null,"Project name","Link"]

{"sheet":"Athena","index":9,"n_rows":124,"n_cols":4,"rows_kept":124,"cut":false,"hidden":false,"merged":[[18,1,18,7],[69,3,69,7],[70,3,79,7],[32,3,32,7],[33,3,33,7],[34,3,34,7],[35,3,35,7],[36,3,36,7],[22,1,22,7],[23,1,23,7],[26,1,26,7],[27,1,27,7],[28,1,28,7],[21,1,21,7]]}
[]
[]
[]
[]
[null,"Athena Pavement LCA"]
[]
[null,"General information"]
[]
[null,"Country coverage","Canada, USA"]
[null,"Language","English"]
[null,"Developed by","Cement Association of Canada and Athena Institute"]
[null,"Maintained by","Athena Sustainable Materials Institute"]
[null,"Link to contact","https://calculatelca.com/contact-us/"]
[null,"Link to tool/data","https://pavementlca.com/pavementlca/Authentication/Login"]
[null,"Costs","Free"]
[null,"Data, average age","Data in general is about 5 - 10 years old"]
[]
[null,"Short description"]
[null,"The software was developed by ement Association of Canada and Athena Institute and covers Canada and USA context. It includes a large equipment and materials database drawn from the Athena Institute, the US LCI Database, and EcoInvent, including 50 roadway designs. Three types of pavement are available, flexible (asphalt), rigid (concrete) and reinforcing steel. Moreover all data is generally less than 10 years old. The user has flexibility to specify unique pavement systems – sub-base and base granular materials as well as hot and warm mix asphalt and a host of user-specified concrete mix designs. Roadway lifespan is variable and dictates rehabilitation events such as scheduled resurfacing. Results are reported on a gross roadway surface area basis. Results are reported consistently with the US EPA TRACI methodology. Life Cycle Cost Analysis (LCCA) is available on the web based version and a Cost Item Reference Library has been created for Ontario and Quebec roadways using data from Applied Research Associates (ARA). Regarding uncertainties, when comparing different systems the developers recommend to consider a 15% margin of error."]
[]
[null,"Strong points"]
[null,"Web based version available which includes LCC"]
[null,"Enables easy comparison of different design options"]
[null,"Contains pre-defined roadway designs"]
[]
[null,"Weak points"]
[null,"Does not allow insertion of new datasets or modelling of new materials"]
[null,"Modelling is relatively complex"]
[null,"Only representative of Canada and US situation"]
[]
[null,"Types of geener asphalt included "]
[]
[null,"Type","Datasets","Comment"]
[null,"Warm mix asphalt","No","Can be modelled"]
[null,"Asphalt with RAP content","No","Can be modelled"]
[null,"Asphalt with crumbed rubber","No"]
[null,"Others","No"]
[]
[null,"Main impacts included:"]
[]
[null,"Environmental","Costs","Social"]
[null,"Yes","Yes","No"]
[]
[null,"Specific impacts included:"]
[null,"Environmental","Costs","Social"]
[null,"Global warming potential (kg eq.CO2)","net present value (NPV) "]
[null,"Acidification (Air) Potential – kg SO2 eq.","Actual costs per year"]
[null,"Human Health Particulate – kg PM 2.5 eq.","User costs"]
[null,"Eutrophication (air & water) Potential – kg N eq. "]
[null,"Smog (air) Potential – kg O3 eq. "]
[null,"Eutrophication potential (kg eq.PO4)"]
[null,"Total Primary Energy Consumption – MJ "]
[null,"Non-Renewable Energy Consumption - MJ "]
[null,"Ozone Depletion (air) Potential – kg CFC 11 eq. "]
[null,"Fossil Fuel Consumption - MJ "]
[]
[]
[]
[]
[]
[null,"Compatible with:"]
[null,"ISO 14040"]
[null,"ISO 14044"]
[null,"ISO 21930/31"]
[]
[null,"Weighing included?","No"]
[null,"If yes, what kind of weighing?"]
[]
[null,"Life cycle stages included"]
[null,"A1 - Extraction and pre-processing of raw materials","Yes","Observation"]
[null,"A2 - Transport to producer","Yes","Use phase can be modelled with or without PVI effects (Pavement Vehicle Interaction)"]
[null,"A3 - Production","Yes"]
[null,"A4 - Transport to building location","Yes"]
[null,"A5 - Building phase and implementation","Yes"]
[null,"B - Use stage + maintenance","Yes"]
[null,"C1 - Demolition / removal","Yes"]
[null,"C2 - Transport to waste processing facility","No"]
[null,"C3 - Waste processing","No"]
[null,"C4 - Final waste destination","No"]
[null,"D - Recycling","No"]
[]
[null,"Focus of tool"]
[null,"Road pavement activities (layers of pavement)","Yes"]
[null,"Road pavement materials (asphalt/concrete)","No"]
[]
[null,"Main product categories","Included?"]
[null,"Asphalt","Yes"]
[null,"Concrete","Yes"]
[null,"Groundworks","No"]
[null,"Roads","Yes"]
[null,"Civil works","No"]
[null,"Railways","No"]
[null,"Waterways","No"]
[null,"Other","No"]
[]
[null,"Scoping aspects"]
[null,"Lifetime expectation info","No"]
[null,"Infrastructure (capital goods included)","Yes"]
[null,"Discount rate (for LCC)","Yes"]
[null,"Are the data reviewed?","Yes"]
[null,"Uncertainty information available?","Yes","Developers recommend to consider a 15% margin of error"]
[null,"Tool updating frequency","Not determined, last update 2018"]
[]
[null,"When is the tool applicable?"]
[null,"Planning phase","Yes"]
[null,"Acquisition / Procurement procedure","Yes"]
[null,"Realisation","Yes"]
[null,"Monitoring","Yes"]
[]
[null,"What can you use it for?"]
[null,"Design an asset and evaluate/optimize sustainability","Yes"]
[null,"Analyze and/or optimize product sustainability","Yes"]
[null,"Procurement procedures","Yes"]
[null,"Monitoring of assets","Yes"]
[null,"Verification of sustainability claims (EPD)","No"]
[]
[null,"To be used by whom"]
[null,"Road owner ","Yes"]
[null,"Contracting company","Yes"]
[null,"Product developer","Yes"]
[]
[null,"Examples of major projects which used this tool/dataset"]
[]
[null,"Project name","Link"]

{"sheet":"DuboCalc","index":10,"n_rows":124,"n_cols":4,"rows_kept":124,"cut":false,"hidden":false,"merged":[[18,1,18,7],[22,1,22,7],[23,1,23,7],[26,1,26,7],[70,3,79,7],[69,3,69,7],[27,1,27,7],[28,1,28,7],[21,1,21,7],[32,3,32,7],[33,3,33,7],[34,3,34,7],[35,3,35,7],[36,3,36,7]]}
[]
[]
[]
[]
[null,"DuboCalc"]
[]
[null,"General information"]
[]
[null,"Country coverage","Netherlands"]
[null,"Language","Dutch"]
[null,"Developed by","Rijkswaterstaat"]
[null,"Maintained by","Royal Haskoning DHV"]
[null,"Link to contact","https://www.dubocalc.nl/contact/"]
[null,"Link to tool/data","https://app.dubocalc.nl/"]
[null,"Costs","License, 101-500 euros/year"]
[null,"Data, average age","Not older than 5 years old"]
[]
[null,"Short description"]
[null,"DuboCalc is a tool developed by the Dutch NRA. With DuboCalc, road designers can calculate environmental profiles of road infrastructure design alternatives. The tool uses envrionmental profiles (EPDs) of building products (from the Dutch National Environmental Database) and calculates the environmental peformance of road infrastructure projects in line with the SBK Bepalingsmethode (Dutch EPD guideline, which is extended version of EN15804) . The output of the tool, expressed in environmental costs (shadowprices, “MKI”) is used in green procurement (\"MEAT\" procedures). \nData older than 5 years has to be updated, otherwise it is withdrawn from the database."]
[]
[null,"Strong points"]
[null,"Up to date data"]
[null,"Has pre-modelled product profiles, and therefore does not demand a lot of data input from user"]
[null,"Appropriate for construction works in general and roads construction and maintenance"]
[]
[null,"Weak points"]
[null,"Does not allow to model new products"]
[null,"Only available in Dutch"]
[null,"Representative of Dutch situation only"]
[]
[null,"Types of geener asphalt included "]
[]
[null,"Type","Datasets","Comment"]
[null,"Warm mix asphalt","Yes","LEAB (base layer), Greenway LA"]
[null,"Asphalt with RAP content","Yes","AC surf + 30% RAP, AC bin/base + 50% RAP"]
[null,"Asphalt with crumbed rubber","No"]
[null,"Others","No"]
[]
[null,"Main impacts included:"]
[]
[null,"Environmental","Costs","Social"]
[null,"Yes","No","No"]
[]
[null,"Specific impacts included:"]
[null,"Environmental","Costs","Social"]
[null,"ADP non fossil"]
[null,"ADP fossil"]
[null,"GWP 100a"]
[null,"ODP"]
[null,"POCP"]
[null,"EP"]
[null,"AP"]
[null,"HTP"]
[null,"FAETP"]
[null,"MAETP"]
[null,"TETP"]
[]
[]
[]
[]
[null,"Compatible with:"]
[null,"EPD (EN 15804)","Yes"]
[null,"CWA 17089","Partially"]
[]
[]
[null,"Weighing included?","Yes"]
[null,"If yes, what kind of weighing?","Shadow prices"]
[]
[null,"Life cycle stages included"]
[null,"A1 - Extraction and pre-processing of raw materials","Yes","Observation"]
[null,"A2 - Transport to producer","Yes"]
[null,"A3 - Production","Yes"]
[null,"A4 - Transport to building location","Yes"]
[null,"A5 - Building phase and implementation","Yes"]
[null,"B - Use stage + maintenance","Yes"]
[null,"C1 - Demolition / removal","Yes"]
[null,"C2 - Transport to waste processing facility","Yes"]
[null,"C3 - Waste processing","Yes"]
[null,"C4 - Final waste destination","Yes"]
[null,"D - Recycling","Yes"]
[]
[null,"Focus of tool"]
[null,"Road pavement activities (layers of pavement)","Yes"]
[null,"Road pavement materials (asphalt/concrete)","Yes"]
[]
[null,"Main product categories","Included?"]
[null,"Asphalt","Yes"]
[null,"Concrete","Yes"]
[null,"Groundworks","Yes"]
[null,"Roads","Yes"]
[null,"Civil works","Yes"]
[null,"Railways","Yes"]
[null,"Waterways","Yes"]
[null,"Other","Yes"]
[]
[null,"Scoping aspects"]
[null,"Lifetime expectation info","Yes"]
[null,"Infrastructure (capital goods included)","Yes"]
[null,"Discount rate (for LCC)","Yes"]
[null,"Are the data reviewed?","Yes"]
[null,"Uncertainty information available?","No"]
[null,"Tool updating frequency","Every 2 years"]
[]
[null,"When is the tool applicable?"]
[null,"Planning phase","No"]
[null,"Acquisition / Procurement procedure","Yes"]
[null,"Realisation","Yes"]
[null,"Monitoring","Yes"]
[]
[null,"What can you use it for?"]
[null,"Design an asset and evaluate/optimize sustainability","Yes"]
[null,"Analyze and/or optimize product sustainability","No"]
[null,"Procurement procedures","Yes"]
[null,"Monitoring of assets","Yes"]
[null,"Verification of sustainability claims","No"]
[]
[null,"To be used by whom"]
[null,"Road owner ","Yes"]
[null,"Contracting company","Yes"]
[null,"Product developer","No"]
[]
[null,"Examples of major projects which used this tool/dataset"]
[]
[null,"Project name","Link"]

{"sheet":"Ecochain","index":11,"n_rows":124,"n_cols":4,"rows_kept":124,"cut":false,"hidden":false,"merged":[[18,1,18,7],[69,3,69,7],[70,3,79,7],[32,3,32,7],[33,3,33,7],[34,3,34,7],[35,3,35,7],[36,3,36,7],[22,1,22,7],[23,1,23,7],[26,1,26,7],[27,1,27,7],[28,1,28,7],[21,1,21,7]]}
[]
[]
[]
[]
[null,"Ecochain"]
[]
[null,"General information"]
[]
[null,"Country coverage","Europe"]
[null,"Language","English, Dutch, German, French"]
[null,"Developed by","Ecochain Technologies B.V."]
[null,"Maintained by","Ecochain Technologies B.V."]
[null,"Link to contact","https://ecochain.com/software/#elementor-action%3Aaction%3Dpopup%3Aopen%20settings%3DeyJpZCI6IjMzMyIsInRvZ2dsZSI6ZmFsc2V9"]
[null,"Link to tool/data","https://ecochain.com/"]
[null,"Costs (licence and/or montlhy subscription)","License, >500 euros/year"]
[null,"Data, average age","5-10 years ","(data from NMD less than 5 years, data from EcoInvent 10 years on average)"]
[]
[null,"Short description"]
[null,"EcoChain is an online sustainability data management platform that enables to quantify the full environmental performance of an entire product portfolio through full LCA/EPD. It provides insights into many sustainability drivers, such as energy efficiency, raw material use and process efficiency. All life cycle stages are covered, from raw material mining to waste diposal as described on EN15804. The two main databases available in Ecochain are Ecoinvent and the Nationale Milieu Database (NMD). Ecoinvent is the largest LCA database available founded by several institutes of the ETH Domain and by Agroscope. The Nationale Milieu Database (NMD) is a LCA database focused on the construction sector in the Netherlands. The tool is compatble wit hISO 14040/44, ISO 14021/25 compliance, EU Energy Efficiency Directive EED, ISO 14067, ISO 14001 data framework, EN 15804, ISO 50001 data framework, PAS 2050 and GRI data framework environment, making it suitable to verify environmental claims. Useful for desgin, planning and tendering/procurement phases. Green aphalt datasets such as asphalt with RAP content and WMA are present in the database."]
[]
[null,"Strong points"]
[null,"Comprehensive brackground database available"]
[null,"Flexible modelling"]
[null,"LCA and LCC study with support to generate EPDs"]
[]
[null,"Weak points"]
[null,"Complex to handle the tool"]
[null,"LCA knowledge necessary"]
[null,"Not focused in pavement and infrastructure"]
[]
[null,"Types of geener asphalt included "]
[]
[null,"Type","Datasets","Comment"]
[null,"Warm mix asphalt","No","Specific datasets are nor directly available but can be modelled"]
[null,"Asphalt with RAP content","Yes"]
[null,"Asphalt with crumbed rubber","No","Specific datasets are nor directly available but can be modelled"]
[null,"Others","No","Specific datasets are nor directly available but can be modelled"]
[]
[null,"Main impacts included:"]
[]
[null,"Environmental","Costs","Social"]
[null,"Yes","Yes","No"]
[]
[null,"Specific impacts included:"]
[null,"Environmental","Costs","Social"]
[null,"ADP non fossil","Total Costs"]
[null,"ADP fossil"]
[null,"GWP 100a"]
[null,"ODP"]
[null,"POCP"]
[null,"EP"]
[null,"AP"]
[null,"HTP"]
[null,"FAETP"]
[null,"MAETP"]
[null,"TETP"]
[]
[]
[]
[]
[null,"Compatible with:"]
[null,"ISO 14040/44","ISO 14021/25 compliance","EU Energy Efficiency Directive EED"]
[null,"ISO 14067","ISO 14001 data framework"]
[null,"EN 15804","ISO 50001 data framework"]
[null,"PAS 2050","GRI data framework environment"]
[null,"Weighing included?","Yes"]
[null,"If yes, what kind of weighing?","Dutch MKI - Environmental Cost"]
[]
[null,"Life cycle stages included"]
[null,"A1 - Extraction and pre-processing of raw materials","Yes","Observation"]
[null,"A2 - Transport to producer","Yes"]
[null,"A3 - Production","Yes"]
[null,"A4 - Transport to building location","Yes"]
[null,"A5 - Building phase and implementation","Yes"]
[null,"B - Use stage + maintenance","Yes"]
[null,"C1 - Demolition / removal","Yes"]
[null,"C2 - Transport to waste processing facility","Yes"]
[null,"C3 - Waste processing","Yes"]
[null,"C4 - Final waste destination","Yes"]
[null,"D - Recycling","No"]
[]
[null,"Focus of tool"]
[null,"Road pavement activities (layers of pavement)","No"]
[null,"Road pavement materials (asphalt/concrete)","Yes"]
[]
[null,"Main product categories","Included?"]
[null,"Asphalt","Yes"]
[null,"Concrete","Yes"]
[null,"Groundworks","Yes"]
[null,"Roads","Yes"]
[null,"Civil works","Yes"]
[null,"Railways","Yes"]
[null,"Waterways","Yes"]
[null,"Other","Yes"]
[]
[null,"Scoping aspects"]
[null,"Lifetime expectation info","No"]
[null,"Infrastructure (capital goods included)","Yes"]
[null,"Discount rate (for LCC)","No"]
[null,"Are the data reviewed?","Yes"]
[null,"Uncertainty information available?","No"]
[null,"Tool updating frequency","Yearly"]
[]
[null,"When is the tool applicable?"]
[null,"Planning phase","Yes"]
[null,"Procurement procedure","Yes"]
[null,"Realisation","Yes"]
[null,"Monitoring","No"]
[]
[null,"What can you use it for?"]
[null,"Design an asset and evaluate/optimize sustainability","Yes"]
[null,"Analyze and/or optimize product sustainability","Yes"]
[null,"Procurement procedures","Yes"]
[null,"Monitoring of assets","No"]
[null,"Verification of sustainability claims (EPD)","Yes"]
[]
[null,"To be used by whom"]
[null,"Road owner ","Yes"]
[null,"Contracting company","Yes"]
[null,"Product developer","Yes"]
[]
[null,"Examples of major projects which used this tool/dataset"]
[]
[null,"Project name","Link"]

{"sheet":"Ecorce_M","index":12,"n_rows":124,"n_cols":4,"rows_kept":124,"cut":false,"hidden":false,"merged":[[36,3,36,7],[22,1,22,7],[23,1,23,7],[26,1,26,7],[27,1,27,7],[28,1,28,7],[18,1,18,7],[32,3,32,7],[33,3,33,7],[34,3,34,7],[35,3,35,7],[21,1,21,7]]}
[]
[]
[]
[]
[null,"Ecorce M"]
[]
[null,"General information"]
[]
[null,"Country coverage","France"]
[null,"Language","Software: English, Database: French (English upon request)"]
[null,"Developed by","French Institute of Science and Technology for Transport Development and\nNetworks (IFSTTAR)"]
[null,"Maintained by","IFSTTAR"]
[null,"Link to contact","contact@programme-ecorce.org"]
[null,"Link to tool/data","https://www.programme-ecorce.org/login"]
[null,"Costs","Free"]
[null,"Data, average age","Data in general is about 5 - 10 years old"]
[]
[null,"Short description"]
[null,"The software provides a robust assessment for calculating a set of mid-point indicators in the framework of LCA for road construction and maintenance. The database available in Ecorce was gathered from scientific literature and validated during standard review processes. To generate the impact assessment the user is required to input volumetric data, equipment type (e.g. roller, paver, etc.), layer composition data, the type of mixing plant, and the transport distances and modes. Ecorce deals specially with the following types of works: construction and structural aintenance of pavements on road corridors, installation of foundation layer, preparation of the upper part of earthworks and construction of fills. The user is required to model each layer of the pavement what makes possible to compare not only the materials used in a given layer but also different pavement structures with several layers. The results are provided in terms of mid-point categories in several screens and tables. The impact assessment is done using the CML 2001 impact assessment method."]
[]
[null,"Strong points"]
[null,"Extensive integrated database (representative of the French context)"]
[null,"Results can be exported to a PDF file or excel file"]
[null,"Possible to model asphalt mixtures with RAP"]
[]
[null,"Weak points"]
[null,"Does not allow insertion of new datasets"]
[null,"User interface relatively difficult to use"]
[]
[]
[null,"Types of geener asphalt included "]
[]
[null,"Type","Datasets","Comment"]
[null,"Warm mix asphalt","Yes"]
[null,"Asphalt with RAP content","Yes"]
[null,"Asphalt with crumbed rubber","No"]
[null,"Others","No"]
[]
[null,"Main impacts included:"]
[]
[null,"Environmental","Costs","Social"]
[null,"Yes","No","No"]
[]
[null,"Specific impacts included:"]
[null,"Environmental","Costs","Social"]
[null,"Greenhouse Effect (kg eq.CO2)"]
[null,"Acidification (kg eq.SO2)"]
[null,"Eutrophication (kg eq.PO4)"]
[null,"Tropospheric Ozone Formation (kg eq. ethylene)"]
[null,"Ecotoxicity and Chronic Toxicity (kg 1,4 dichlorobenzene eq.)"]
[null,"threshold toxicity"]
[null,"energy consumption"]
[null,"water consumption"]
[]
[]
[]
[]
[]
[]
[]
[null,"Compatible with:"]
[null,"OEET, 2011"]
[null,"ISO 14040 series"]
[null,"NFP 01010"]
[]
[null,"Weighing included?","No"]
[null,"If yes, what kind of weighing?"]
[]
[null,"Life cycle stages included"]
[null,"A1 - Extraction and pre-processing of raw materials","Yes","Observation"]
[null,"A2 - Transport to producer","Yes"]
[null,"A3 - Production","Yes"]
[null,"A4 - Transport to building location","Yes"]
[null,"A5 - Building phase and implementation","Yes"]
[null,"B - Use stage + maintenance","Yes"]
[null,"C1 - Demolition / removal","Yes"]
[null,"C2 - Transport to waste processing facility","No"]
[null,"C3 - Waste processing","No"]
[null,"C4 - Final waste destination","No"]
[null,"D - Recycling","No"]
[]
[null,"Focus of tool"]
[null,"Road pavement activities (layers of pavement)","Yes"]
[null,"Road pavement materials (asphalt/concrete)","Yes"]
[]
[null,"Main product categories","Included?"]
[null,"Asphalt","Yes"]
[null,"Concrete","No"]
[null,"Groundworks","Yes"]
[null,"Roads","Yes"]
[null,"Civil works","No"]
[null,"Railways","No"]
[null,"Waterways","No"]
[null,"Other","No"]
[]
[null,"Scoping aspects"]
[null,"Lifetime expectation info","No"]
[null,"Infrastructure (capital goods included)","Yes"]
[null,"Discount rate (for LCC)","No"]
[null,"Are the data reviewed?","Yes"]
[null,"Uncertainty information available?","No"]
[null,"Tool updating frequency","Unknown, last update 2013"]
[]
[null,"When is the tool applicable?"]
[null,"Planning phase","Yes"]
[null,"Acquisition / Procurement procedure","Yes"]
[null,"Realisation","Yes"]
[null,"Monitoring","No"]
[]
[null,"What can you use it for?"]
[null,"Design an asset and evaluate/optimize sustainability","Yes"]
[null,"Analyze and/or optimize product sustainability","Yes"]
[null,"Procurement procedures","Yes"]
[null,"Monitoring of assets","No"]
[null,"Verification of sustainability claims (EPD)","No"]
[]
[null,"To be used by whom"]
[null,"Road owner ","Yes"]
[null,"Contracting company","Yes"]
[null,"Product developer","Yes"]
[]
[null,"Examples of major projects which used this tool/dataset"]
[]
[null,"Project name","Link"]

{"sheet":"GreenDOT","index":13,"n_rows":124,"n_cols":4,"rows_kept":124,"cut":false,"hidden":false,"merged":[[18,1,18,7],[69,3,69,7],[70,3,79,7],[32,3,32,7],[33,3,33,7],[34,3,34,7],[35,3,35,7],[36,3,36,7],[22,1,22,7],[23,1,23,7],[26,1,26,7],[27,1,27,7],[28,1,28,7],[21,1,21,7]]}
[]
[]
[]
[]
[null,"GreenDOT"]
[]
[null,"General information"]
[]
[null,"Country coverage","USA"]
[null,"Language","English"]
[null,"Developed by","Frank Gallivan, Jeff Ang-Olson, and Andrew Papson - ICF International"]
[null,"Maintained by"]
[null,"Link to contact","https://trid.trb.org/view/1266322"]
[null,"Link to tool/data","onlinepubs.trb.org/onlinepubs/nchrp/docs/NCHRP25-25(58)_GreenDOTv1-5b.xls"]
[null,"Costs","Free"]
[null,"Data, average age","Data in general is about 5 - 10 years old"]
[]
[null,"Short description"]
[null,"GreenDOT calculates carbon dioxide (CO2) emissions from the operations, construction, and maintenance activities of state Deparments of Transportation (DOTs). GreenDOT is designed to calculate emissions for geographical areas ranging from a single project to an entire state, and over time periods ranging from one day to several years. The two most likely uses of the tool are to calculate annual agency-wide emissions or to calculate emissions related to a specific project, covering a period of days or years. The database in the tool consists of primary data from projects and research from Master's students. It is possible to model different ratios for the asphalt mixes, including the possibility of including RAP and choose between Hot-or warm mix asphalt. The tool does not require a large amount of inputs from the user but in turn is also not very flexible when it comes to adapting the materials included in the tool. "]
[]
[null,"Strong points"]
[null,"Possible to study emissions from different traffic scenarios (use stage)"]
[null,"Excel tool, simple/easy to use"]
[null,"Possible to model RAP content in asphalt"]
[]
[null,"Weak points"]
[null,"Only calculates CO2 emissions, and GWP with the help of an auxiliary calculator"]
[null,"Model is not easily adaptable"]
[null,"Only representative of US situation"]
[]
[null,"Types of geener asphalt included "]
[]
[null,"Type","Datasets","Comment"]
[null,"Warm mix asphalt","Yes","Can be modelled in terms of % of CO2 savings in relation to HMA"]
[null,"Asphalt with RAP content","Yes"]
[null,"Asphalt with crumbed rubber","Yes"]
[null,"Others","No"]
[]
[null,"Main impacts included:"]
[]
[null,"Environmental","Costs","Social"]
[null,"Yes","No","No"]
[]
[null,"Specific impacts included:"]
[null,"Environmental","Costs","Social"]
[null,"Carbon dioxide emissions (CO2 kg)"]
[]
[]
[]
[]
[]
[]
[]
[]
[]
[]
[]
[]
[]
[]
[null,"Compatible with:"]
[null,"none","this tool is not compatible with any international standard "]
[]
[]
[]
[null,"Weighing included?","No"]
[null,"If yes, what kind of weighing?"]
[]
[null,"Life cycle stages included"]
[null,"A1 - Extraction and pre-processing of raw materials","Yes","Observation"]
[null,"A2 - Transport to producer","Yes","In the use phase traffic smoothing strategies can also be modelled but maintenance is not included and Pavement Vehicle Interaction also not."]
[null,"A3 - Production","Yes"]
[null,"A4 - Transport to building location","Yes"]
[null,"A5 - Building phase and implementation","Yes"]
[null,"B - Use stage + maintenance","Yes"]
[null,"C1 - Demolition / removal","Yes"]
[null,"C2 - Transport to waste processing facility","No"]
[null,"C3 - Waste processing","No"]
[null,"C4 - Final waste destination","No"]
[null,"D - Recycling","No"]
[]
[null,"Focus of tool"]
[null,"Road pavement activities (layers of pavement)","No"]
[null,"Road pavement materials (asphalt/concrete)","Yes"]
[]
[null,"Main product categories","Included?"]
[null,"Asphalt","Yes"]
[null,"Concrete","Yes"]
[null,"Groundworks","No"]
[null,"Roads","Yes"]
[null,"Civil works","No"]
[null,"Railways","No"]
[null,"Waterways","No"]
[null,"Other","No"]
[]
[null,"Scoping aspects"]
[null,"Lifetime expectation info","No"]
[null,"Infrastructure (capital goods included)","Yes"]
[null,"Discount rate (for LCC)","No"]
[null,"Are the data reviewed?","No"]
[null,"Uncertainty information available?","No"]
[null,"Tool updating frequency","Not updated, released on 2010"]
[]
[null,"When is the tool applicable?"]
[null,"Planning phase","Yes"]
[null,"Acquisition / Procurement procedure","Yes"]
[null,"Realisation","Yes"]
[null,"Monitoring","No"]
[]
[null,"What can you use it for?"]
[null,"Design an asset and evaluate/optimize sustainability","Yes"]
[null,"Analyze and/or optimize product sustainability","Yes"]
[null,"Procurement procedures","Yes"]
[null,"Monitoring of assets","No"]
[null,"Verification of sustainability claims (EPD)","No"]
[]
[null,"To be used by whom"]
[null,"Road owner ","Yes"]
[null,"Contracting company","No"]
[null,"Product developer","No"]
[]
[null,"Examples of major projects which used this tool/dataset"]
[]
[null,"Project name","Link"]

{"sheet":"Klimatkalkyl","index":14,"n_rows":124,"n_cols":4,"rows_kept":124,"cut":false,"hidden":false,"merged":[[18,1,18,7],[69,3,69,7],[70,3,79,7],[32,3,32,7],[33,3,33,7],[34,3,34,7],[35,3,35,7],[36,3,36,7],[22,1,22,7],[23,1,23,7],[26,1,26,7],[27,1,27,7],[28,1,28,7],[21,1,21,7]]}
[]
[]
[]
[]
[null,"Klimatkalkyl"]
[]
[null,"General information"]
[]
[null,"Country coverage","Sweden"]
[null,"Language","Swedish"]
[null,"Developed by","WSP"]
[null,"Maintained by","Trafikverket - Swedish Transport Administration"]
[null,"Link to contact","https://www.trafikverket.se/en/startpage/about-us/Contact-us/"]
[null,"Link to tool/data","http://webapp.trafikverket.se/Klimatkalkyl/"]
[null,"Costs","Free"]
[null,"Data, average age","5-10 years"]
[]
[null,"Short description"]
[null,"This tool developed by the Swedish Transport Administration allows to make climate calculations that show climate impact and energy use for the construction, operation and maintenance of roads and railways, and for basic road contracts, from a life cycle perspective.  The results are presented in terms of green house gases emissions (CO2 eq.) and energy use. This tool is intended for use during tender procedures by the swedish road authority and contractors. The tool does contain EcoInvent data and an own database that can be used for calculating the carbon footprint of a road/pavement already in the system, for instance  cubic metres of concrete per square metre of bridge, but also allows the input of project specific data."]
[]
[null,"Strong points"]
[null,"Web based, easy access tool"]
[null,"Focus on infra-structure works"]
[null,"Cointains pre-modeled objects (standard product/activity profiles)"]
[]
[null,"Weak points"]
[null,"Only available in swedish"]
[null,"It is necessary to request permission of the Swedish authority to use it and an EcoInvent licence to use some of the data"]
[]
[]
[null,"Types of geener asphalt included "]
[]
[null,"Type","Datasets","Comment"]
[null,"Warm mix asphalt","Unknown"]
[null,"Asphalt with RAP content","Unknown"]
[null,"Asphalt with crumbed rubber","Unknown"]
[null,"Others","Unknown"]
[]
[null,"Main impacts included:"]
[]
[null,"Environmental","Costs","Social"]
[null,"Yes","No","No"]
[]
[null,"Specific impacts included:"]
[null,"Environmental","Costs","Social"]
[null,"GWP (CO2 eq.)"]
[null,"Energy use (MJ)"]
[]
[]
[]
[]
[]
[]
[]
[]
[]
[]
[]
[]
[]
[null,"Compatible with:"]
[null,"Swedish Transport Administration’s guideline TDOK 2015:0007"]
[null,"Swedish Transport Administration’s guideline TMALL 0167"]
[]
[]
[null,"Weighing included?","No"]
[null,"If yes, what kind of weighing?"]
[]
[null,"Life cycle stages included"]
[null,"A1 - Extraction and pre-processing of raw materials","Yes","Observation"]
[null,"A2 - Transport to producer","Yes"]
[null,"A3 - Production","Yes"]
[null,"A4 - Transport to building location","No"]
[null,"A5 - Building phase and implementation","Yes"]
[null,"B - Use stage + maintenance","Yes"]
[null,"C1 - Demolition / removal","Yes"]
[null,"C2 - Transport to waste processing facility","No"]
[null,"C3 - Waste processing","No"]
[null,"C4 - Final waste destination","No"]
[null,"D - Recycling","Yes"]
[]
[null,"Focus of tool"]
[null,"Road pavement activities (layers of pavement)","Yes"]
[null,"Road pavement materials (asphalt/concrete)","Yes"]
[]
[null,"Main product categories","Included?"]
[null,"Asphalt","Yes"]
[null,"Concrete","Yes"]
[null,"Groundworks","Yes"]
[null,"Roads","Yes"]
[null,"Civil works","Yes"]
[null,"Railways","Yes"]
[null,"Waterways","No"]
[null,"Other","No"]
[]
[null,"Scoping aspects"]
[null,"Lifetime expectation info","No"]
[null,"Infrastructure (capital goods included)","No"]
[null,"Discount rate (for LCC)","No"]
[null,"Are the data reviewed?","Yes"]
[null,"Uncertainty information available?","No"]
[null,"Tool updating frequency","Yearly"]
[]
[null,"When is the tool applicable?"]
[null,"Planning phase","Yes"]
[null,"Acquisition / Procurement procedure","Yes"]
[null,"Realisation","No"]
[null,"Monitoring","No"]
[]
[null,"What can you use it for?"]
[null,"Design an asset and evaluate/optimize sustainability","No"]
[null,"Analyze and/or optimize product sustainability","Yes"]
[null,"Procurement procedures","Yes"]
[null,"Monitoring of assets","No"]
[null,"Verification of sustainability claims (EPD)","Yes","According to Swedish guidelines"]
[]
[null,"To be used by whom"]
[null,"Road owner ","Yes"]
[null,"Contracting company","Yes"]
[null,"Product developer","No"]
[]
[null,"Examples of major projects which used this tool/dataset"]
[]
[null,"Project name","Link"]

{"sheet":"LCC_AM_QM","index":15,"n_rows":124,"n_cols":4,"rows_kept":124,"cut":false,"hidden":false,"merged":[[18,1,18,7],[69,3,69,7],[70,3,79,7],[32,3,32,7],[33,3,33,7],[34,3,34,7],[35,3,35,7],[36,3,36,7],[22,1,22,7],[23,1,23,7],[26,1,26,7],[27,1,27,7],[28,1,28,7],[21,1,21,7]]}
[]
[]
[]
[]
[null,"LCC AM-QM"]
[]
[null,"General information"]
[]
[null,"Country coverage","Any, Worldwide"]
[null,"Language","English"]
[null,"Developed by","S&G Asset Management"]
[null,"Maintained by","S&G Asset Management"]
[null,"Link to contact","http://www.sg-assetmanagement.nl/wpbeta2018/#Contact"]
[null,"Link to tool/data","http://www.sg-assetmanagement.nl/wpbeta2018/lcc-amqm/"]
[null,"Costs (licence and/or montlhy subscription)","License, >500 euros/year"]
[null,"Data, average age","no data included "]
[]
[null,"Short description"]
[null,"The tool allows to calculate Total Costs of Ownership (TCO), focusing on finding out what your investment will cost during its entire life cycle. It takes into account composed interest effects, investments, replacements, maintenance, general costs, production levels, taxes and a myriad of other costs than can be entered manually or using automation. This tool does not perform environmental performance assessment and therefore delivers results in terms of costs only.  It is possible to do Quantitative Analysis on the recorded data in your Maintenance management system (CMMS) to provide aging information about your assets and installations. among others. The software is developped and maintained by S&G Asset Management\nResults are presented as total costs per yer or over the whole life cycle of an asset.\nThere is no background database with asphalt or road data available."]
[]
[null,"Strong points"]
[null,"Comprehensive Life cycle costing assessment"]
[null,"Can be automated to include information from already existing maintenance information system"]
[]
[]
[null,"Weak points"]
[null,"No environmental performance assessment available"]
[null,"Relatively complex interface"]
[null,"User needs to provide a large amount of data"]
[]
[null,"Types of geener asphalt included "]
[]
[null,"Type","Datasets","Comment"]
[null,"Warm mix asphalt","no","no pre loaded datasets are available"]
[null,"Asphalt with RAP content","no","no pre loaded datasets are available"]
[null,"Asphalt with crumbed rubber","no","no pre loaded datasets are available"]
[null,"Others","no","no pre loaded datasets are available"]
[]
[null,"Main impacts included:"]
[]
[null,"Environmental","Costs","Social"]
[null,"No","Yes","No"]
[]
[null,"Specific impacts included:"]
[null,"Environmental","Costs","Social"]
[null,null,"Total cost"]
[null,null,"Cumulative costs"]
[]
[]
[]
[]
[]
[]
[]
[]
[]
[]
[]
[]
[]
[null,"Compatible with:"]
[null,"none","this tool is not compatible with any international standard "]
[]
[]
[]
[null,"Weighing included? ","No"]
[null,"If yes, what kind of weighing?"]
[]
[null,"Life cycle stages included"]
[null,"A1 - Extraction and pre-processing of raw materials","No","Observation"]
[null,"A2 - Transport to producer","No","Only possible to evaluate direct costs of the activities undertaken"]
[null,"A3 - Production","No"]
[null,"A4 - Transport to building location","No"]
[null,"A5 - Building phase and implementation","Yes"]
[null,"B - Use stage + maintenance","Yes"]
[null,"C1 - Demolition / removal","Yes"]
[null,"C2 - Transport to waste processing facility","No"]
[null,"C3 - Waste processing","No"]
[null,"C4 - Final waste destination","No"]
[null,"D - Recycling","No"]
[]
[null,"Focus of tool"]
[null,"Road pavement activities (layers of pavement)","Yes"]
[null,"Road pavement materials (asphalt/concrete)","Yes"]
[]
[null,"Main product categories","Included?"]
[null,"Asphalt","No"]
[null,"Concrete","No"]
[null,"Groundworks","No"]
[null,"Roads","No"]
[null,"Civil works","No"]
[null,"Railways","No"]
[null,"Waterways","No"]
[null,"Other","No"]
[]
[null,"Scoping aspects"]
[null,"Lifetime expectation info","No"]
[null,"Infrastructure (capital goods included)","Yes"]
[null,"Discount rate (for LCC)","No"]
[null,"Are the data reviewed?","No"]
[null,"Uncertainty information available?","No"]
[null,"Tool updating frequency","Unknown"]
[]
[null,"When is the tool applicable?"]
[null,"Planning phase","Yes"]
[null,"Procurement procedure","No"]
[null,"Realisation","Yes"]
[null,"Monitoring","Yes"]
[]
[null,"What can you use it for?"]
[null,"Design an asset and evaluate/optimize sustainability","Yes"]
[null,"Analyze and/or optimize product sustainability","No"]
[null,"Procurement procedures","No"]
[null,"Monitoring of assets","Yes"]
[null,"Verification of sustainability claims (EPD)","No"]
[]
[null,"To be used by whom"]
[null,"Road owner ","Yes"]
[null,"Contracting company","Yes"]
[null,"Product developer","Yes"]
[]
[null,"Examples of major projects which used this tool/dataset"]
[]
[null,"Project name","Link"]

{"sheet":"LCCA_original_and_express","index":16,"n_rows":124,"n_cols":4,"rows_kept":124,"cut":false,"hidden":false,"merged":[[18,1,18,7],[69,3,69,7],[70,3,79,7],[32,3,32,7],[33,3,33,7],[34,3,34,7],[35,3,35,7],[36,3,36,7],[22,1,22,7],[23,1,23,7],[26,1,26,7],[27,1,27,7],[28,1,28,7],[21,1,21,7]]}
[]
[]
[]
[]
[null,"LCCA original and express - Life cycle costing assessment"]
[]
[null,"General information"]
[]
[null,"Country coverage","USA"]
[null,"Language","English"]
[null,"Developed by","Dr. David H. Timm"]
[null,"Maintained by","Asphalt Pavement Alliance"]
[null,"Link to contact","http://www.asphaltroads.org/contact-us/"]
[null,"Link to tool/data","http://www.asphaltroads.org/why-asphalt/economics/life-cycle-cost/"]
[null,"Costs (licence and/or montlhy subscription)","Free"]
[null,"Data, average age","Unknown"]
[]
[null,"Short description"]
[null,"LCCA original and express versions are life cycle costing tools developped according to the principles recommended by the Federal Highway Administration (FHWA) to compare the economics of alternative designs for a given road project to compare the economics of alternative designs for a given road project. It calculates the net present value of different pavement alternatives using either deterministic or probabilistic analyses as described in FHWA Publication No. FHWA-SA-98-079. It is maintained by Asphalt Pavement Alliance. Costs can be calculated for the life cycle of an asset from the initial construction to the demolition and removal phase. Results are presented in terms of In terms of net present value and discount rates. It is possible to model \nDoes the tool have a database in the background with data the user can use?\nIs the tool compatible with international sustainability standards?\nFor which phase of a road administration is this tool useful? (Desgin, planning, tendering/procurement, monitoring/maintenance?)"]
[]
[null,"Strong points"]
[null,"Focus on life cycle costing "]
[null,"Two versions of the tool, a simpler and a more complete one"]
[null,"Simple interface focused on pavements"]
[]
[null,"Weak points"]
[null,"Compliant only with guidelines from the Federal Highway Administration (US)"]
[null,"No environmental performance performed"]
[]
[]
[null,"Types of geener asphalt included "]
[]
[null,"Type","Datasets","Comment"]
[null,"Warm mix asphalt","No"]
[null,"Asphalt with RAP content","No"]
[null,"Asphalt with crumbed rubber","No"]
[null,"Others","No"]
[]
[null,"Main impacts included:"]
[]
[null,"Environmental","Costs","Social"]
[null,"No","Yes","No"]
[]
[null,"Specific impacts included:"]
[null,"Environmental","Costs","Social"]
[null,null,"net present value"]
[null,null,"discount rates"]
[null,null,"salvage value"]
[null,null,"maintenance costs"]
[null,null,"predicted performance life"]
[]
[]
[]
[]
[]
[]
[]
[]
[]
[]
[null,"Compatible with: "]
[null,"principles recommended by the Federal Highway Administration (FHWA)"]
[]
[]
[]
[null,"Weighing included? (weighted results)","No"]
[null,"If yes, what kind of weighing?"]
[]
[null,"Life cycle stages included"]
[null,"A1 - Extraction and pre-processing of raw materials","No","Observation"]
[null,"A2 - Transport to producer","No"]
[null,"A3 - Production","No"]
[null,"A4 - Transport to building location","No"]
[null,"A5 - Building phase and implementation","Yes"]
[null,"B - Use stage + maintenance","Yes"]
[null,"C1 - Demolition / removal","No"]
[null,"C2 - Transport to waste processing facility","No"]
[null,"C3 - Waste processing","No"]
[null,"C4 - Final waste destination","No"]
[null,"D - Recycling","No"]
[]
[null,"Focus of tool"]
[null,"Road pavement activities (layers of pavement)","Yes"]
[null,"Road pavement materials (asphalt/concrete)","No"]
[]
[null,"Main product categories","Included?"]
[null,"Asphalt","Yes"]
[null,"Concrete","Yes"]
[null,"Groundworks","No"]
[null,"Roads","Yes"]
[null,"Civil works","No"]
[null,"Railways","No"]
[null,"Waterways","No"]
[null,"Other","No"]
[]
[null,"Scoping aspects"]
[null,"Lifetime expectation info","No","Given by the user"]
[null,"Infrastructure (capital goods included)","No"]
[null,"Discount rate (for LCC)","Yes"]
[null,"Are the data reviewed?","No"]
[null,"Uncertainty information available?","No"]
[null,"Tool updating frequency","Unknown, realised in 2009"]
[]
[null,"When is the tool applicable?"]
[null,"Planning phase","Yes"]
[null,"Procurement procedure","Yes"]
[null,"Realisation","No"]
[null,"Monitoring","No"]
[]
[null,"What can you use it for?"]
[null,"Design an asset and evaluate/optimize sustainability","Yes"]
[null,"Analyze and/or optimize product sustainability","No"]
[null,"Procurement procedures","Yes"]
[null,"Monitoring of assets","No"]
[null,"Verification of sustainability claims (EPD)","No"]
[]
[null,"To be used by whom"]
[null,"Road owner ","Yes"]
[null,"Contracting company","Yes"]
[null,"Product developer","No"]
[]
[null,"Examples of major projects which used this tool/dataset"]
[]
[null,"Project name","Link"]

{"sheet":"LCE4ROADS","index":17,"n_rows":124,"n_cols":4,"rows_kept":124,"cut":false,"hidden":false,"merged":[[36,3,36,7],[22,1,22,7],[23,1,23,7],[26,1,26,7],[27,1,27,7],[28,1,28,7],[18,1,18,7],[32,3,32,7],[33,3,33,7],[34,3,34,7],[35,3,35,7],[21,1,21,7]]}
[]
[]
[]
[]
[null,"LCE4ROADS"]
[]
[null,"General information"]
[]
[null,"Country coverage","European union"]
[null,"Language","English"]
[null,"Developed by","LCE4Roads partners"]
[null,"Maintained by","CIRCE - Research Centre for Energy Resources and Consumption"]
[null,"Link to contact","Tatiana García Armingol <tgarcia@fcirce.es>"]
[null,"Link to tool/data","Not available"]
[null,"Costs","Free"]
[null,"Data, average age","Data in general is about 5 - 10 years old"]
[]
[null,"Short description"]
[null,"LCE4Roads tool integrates the certification methodology developed for road products and infrastructures alongside the LCE4Roads project allowing the evaluation of the overall performance of a road according to the Key Performance Indicators (KPIs) selected. The tool is able to model and calculate the impact of the materials and activities involved in all phases of its life cycle (design, construction, use, maintenance and final disposal) considering different perspectives (environmental, economic, social and technical). The software comes with a pre-loaded database based on EcoInvent, literature research and primary data collection, whic offers several machinery datasets, typical asphalt mixes, energy usage from different sources and country mixes and other materials used in the EU. It is also possible to add custom data and use in the projects but it is not possible to change data available in the library. The results are delivered in chosen indicators and a certificate may be emitted and exported to a PDF file."]
[]
[null,"Strong points"]
[null,"Provides a database to facilitate modelling"]
[null,"Provides a holistic evaluation including environmental, social, economic and technical aspects"]
[null,"Allows to export and share data of projects created in the tool"]
[]
[null,"Weak points"]
[null,"Software not easily available"]
[]
[]
[]
[null,"Types of geener asphalt included "]
[]
[null,"Type","Datasets","Comment"]
[null,"Warm mix asphalt","Yes"]
[null,"Asphalt with RAP content","Yes"]
[null,"Asphalt with crumbed rubber","No","Probably possible to manually include in the database"]
[null,"Others","No"]
[]
[null,"Main impacts included:"]
[]
[null,"Environmental","Costs","Social"]
[null,"Yes","Yes","Yes"]
[]
[null,"Specific impacts included:"]
[null,"Environmental","Costs","Social"]
[null,"Materials consumption","Initial Cost","Comfort index"]
[null,"Recycled materials used","Maintenance Cost","Safety audits and inspections"]
[null,"Materials expected to be recycled","Salvage Value","Amount of noise reduction realized by the pavement surface"]
[null,"Energy demand"]
[null,"Waste"]
[null,"Global Warming Potential"]
[null,"Photochemical Ozone Creation Potential"]
[null,"Ozone Depletion Potential"]
[null,"Acidification Potential"]
[null,"Eutrophication"]
[null,"Abiotic Depletion Potential"]
[null,"Abiotic Depletion (fossil fuels)"]
[null,"Human Toxicity"]
[null,"Ecotoxicity"]
[]
[null,"Compatible with:"]
[null,"EN15804"]
[]
[]
[]
[null,"Weighing included?","No"]
[null,"If yes, what kind of weighing?"]
[]
[null,"Life cycle stages included"]
[null,"A1 - Extraction and pre-processing of raw materials","Yes","Observation"]
[null,"A2 - Transport to producer","Yes"]
[null,"A3 - Production","Yes"]
[null,"A4 - Transport to building location","Yes"]
[null,"A5 - Building phase and implementation","Yes"]
[null,"B - Use stage + maintenance","Yes"]
[null,"C1 - Demolition / removal","Yes"]
[null,"C2 - Transport to waste processing facility","Yes"]
[null,"C3 - Waste processing","Yes"]
[null,"C4 - Final waste destination","Yes"]
[null,"D - Recycling","No"]
[]
[null,"Focus of tool"]
[null,"Road pavement activities (layers of pavement)","Yes"]
[null,"Road pavement materials (asphalt/concrete)","Yes"]
[]
[null,"Main product categories","Included?"]
[null,"Asphalt","Yes"]
[null,"Concrete","Yes"]
[null,"Groundworks","No"]
[null,"Roads","Yes"]
[null,"Civil works","Yes"]
[null,"Railways","No"]
[null,"Waterways","No"]
[null,"Other","No"]
[]
[null,"Scoping aspects"]
[null,"Lifetime expectation info","No"]
[null,"Infrastructure (capital goods included)","Yes"]
[null,"Discount rate (for LCC)","Yes"]
[null,"Are the data reviewed?","No"]
[null,"Uncertainty information available?","No"]
[null,"Tool updating frequency","unknown"]
[]
[null,"When is the tool applicable?"]
[null,"Planning phase","Yes"]
[null,"Acquisition / Procurement procedure","Yes"]
[null,"Realisation","No"]
[null,"Monitoring","No"]
[]
[null,"What can you use it for?"]
[null,"Design an asset and evaluate/optimize sustainability","Yes"]
[null,"Analyze and/or optimize product sustainability","No"]
[null,"Procurement procedures","Yes"]
[null,"Monitoring of assets","No"]
[null,"Verification of sustainability claims (EPD)","No"]
[]
[null,"To be used by whom"]
[null,"Road owner ","Yes"]
[null,"Contracting company","Yes"]
[null,"Product developer","No"]
[]
[null,"Examples of major projects which used this tool/dataset"]
[]
[null,"Project name","Link"]

{"sheet":"LICCER","index":18,"n_rows":124,"n_cols":4,"rows_kept":124,"cut":false,"hidden":false,"merged":[[18,1,18,7],[69,3,69,7],[70,3,79,7],[32,3,32,7],[33,3,33,7],[34,3,34,7],[35,3,35,7],[36,3,36,7],[22,1,22,7],[23,1,23,7],[26,1,26,7],[27,1,27,7],[28,1,28,7],[21,1,21,7]]}
[]
[]
[]
[]
[null,"Life Cycle Considerations in EIA of Road Infrastructure - LICCER"]
[]
[null,"General information"]
[]
[null,"Country coverage","Europe"]
[null,"Language","English"]
[null,"Developed by","ENR2011 ENERGY project consortium"]
[null,"Maintained by"]
[null,"Link to contact","https://www.cedr.eu/about/contact/"]
[null,"Link to tool/data","https://www.cedr.eu/strategic-plan-tasks/research/era-net-road/call-2011-energy/liccer-project-results/"]
[null,"Costs (licence and/or montlhy subscription)","Free"]
[null,"Data, average age","Data in general is about 5 - 10 years old"]
[]
[null,"Short description"]
[null,"LICCER was a research project of the cross-border funded joint research programme “ENR2011 ENERGY – Sustainability and Energy Efficient Management of Roads”. The model consists of guidelines, based on existing tools and methodologies for Life Cycle Assessment of road infrastructure fully integrating modelling of road elements (i.e. road, bridges and tunnels). The model aim is to support decision-making in the early stage of transport planning and is based on existing tools and methodologies for Life Cycle Assessment of road infrastructure. Results are calculated in terms of cumulative energy consumption and GHG emissions. The interface is an excel based spreadsheet. The LICCER guidelines and tool do not provide a database in itself since other existing tools are used."]
[]
[null,"Strong points"]
[null,"Easy to use guidelines and user friendly interface"]
[null,"Focused on infrastructure "]
[null,"Provides case study examples"]
[]
[null,"Weak points"]
[null,"Not easily available"]
[null,"Does not contain a database in itself, thus require data input from an external database"]
[null,"Results from different studies may not be comparable"]
[]
[null,"Types of geener asphalt included "]
[]
[null,"Type","Datasets","Comment"]
[null,"Warm mix asphalt","No"]
[null,"Asphalt with RAP content","No"]
[null,"Asphalt with crumbed rubber","No"]
[null,"Others","No"]
[]
[null,"Main impacts included:"]
[]
[null,"Environmental","Costs","Social"]
[null,"Yes","No","No"]
[]
[null,"Specific impacts included: (indicators)"]
[null,"Environmental","Costs","Social"]
[null,"GHG emissions (CO2 eq. / year)"]
[null,"Primary energy (GJ/year)"]
[]
[]
[]
[]
[]
[]
[]
[]
[]
[]
[]
[]
[]
[null,"Compatible with:"]
[null,"none"]
[]
[]
[]
[null,"Weighing included?","No"]
[null,"If yes, what kind of weighing?"]
[]
[null,"Life cycle stages included"]
[null,"A1 - Extraction and pre-processing of raw materials","Yes","Observation"]
[null,"A2 - Transport to producer","Yes","It does not take into account the influence of road design on the energy use and GHG emissions from traffic, (for instance due to rolling resistance of the pavement)."]
[null,"A3 - Production","Yes"]
[null,"A4 - Transport to building location","Yes"]
[null,"A5 - Building phase and implementation","Yes"]
[null,"B - Use stage + maintenance","Yes"]
[null,"C1 - Demolition / removal","Yes"]
[null,"C2 - Transport to waste processing facility","Yes"]
[null,"C3 - Waste processing","Yes"]
[null,"C4 - Final waste destination","Yes"]
[null,"D - Recycling","No"]
[]
[null,"Focus of tool"]
[null,"Road pavement activities (layers of pavement)","Yes"]
[null,"Road pavement materials (asphalt/concrete)","No"]
[]
[null,"Main product categories","Included?"]
[null,"Asphalt","Yes"]
[null,"Concrete","Yes"]
[null,"Groundworks","Yes"]
[null,"Roads","Yes"]
[null,"Civil works","Yes"]
[null,"Railways","Yes"]
[null,"Waterways","Yes"]
[null,"Other","No"]
[]
[null,"Scoping aspects"]
[null,"Lifetime expectation info","No"]
[null,"Infrastructure (capital goods included)","No"]
[null,"Discount rate (for LCC)","No"]
[null,"Are the data reviewed?","No"]
[null,"Uncertainty information available?","No"]
[null,"Tool updating frequency","Unknown"]
[]
[null,"When is the tool applicable?"]
[null,"Planning phase","Yes"]
[null,"Procurement procedure","No"]
[null,"Realisation","No"]
[null,"Monitoring","No"]
[]
[null,"What can you use it for?"]
[null,"Design an asset and evaluate/optimize sustainability","Yes"]
[null,"Analyze and/or optimize product sustainability","Yes"]
[null,"Procurement procedures","No"]
[null,"Monitoring of assets","No"]
[null,"Verification of sustainability claims (EPD)","No"]
[]
[null,"To be used by whom"]
[null,"Road owner ","Yes"]
[null,"Contracting company","No"]
[null,"Product developer","No"]
[]
[null,"Examples of major projects which used this tool/dataset"]
[]
[null,"Project name","Link"]

{"sheet":"OpenLCA","index":19,"n_rows":127,"n_cols":4,"rows_kept":127,"cut":false,"hidden":false,"merged":[[18,1,18,7],[69,3,69,7],[70,3,79,7],[32,3,32,7],[33,3,33,7],[34,3,34,7],[35,3,35,7],[36,3,36,7],[22,1,22,7],[23,1,23,7],[26,1,26,7],[27,1,27,7],[28,1,28,7],[21,1,21,7]]}
[]
[]
[]
[]
[null,"openLCA"]
[]
[null,"General information"]
[]
[null,"Country coverage","Worldwide"]
[null,"Language","English, Dutch, Spanish, French, German, Italian, Chinese and more"]
[null,"Developed by","GreenDelta"]
[null,"Maintained by","GreenDelta"]
[null,"Link to contact","http://www.openlca.org/contact/"]
[null,"Link to tool/data","http://www.openlca.org/download/","https://nexus.openlca.org/database"]
[null,"Costs","Free"]
[null,"Data, average age","5-10 years ","Depends on the database"]
[]
[null,"Short description"]
[null,"openLCA is a general LCA tool developped by GreenDelta which is provided free of charge.\nTo make use of paid databases, such as EcoInvent, the users should purchase a license from that database from the openLCA nexus website.\nWith openLCA users can calculate the environmental performance of any type of product, including asphalt and other materials for road infrastructure. The software does not provide any databases by default, but a great variety of paid and free of charge databases is available. The results are delivered per impact category of the chosen calculation methodology in the correspondent unit. This tool is used by many universities, organizations and some private companies for their LCA studies. There are no pre-defined models available which means that the user is required to input data for the whole model and make all design decisions on its own. "]
[]
[null,"Strong points"]
[null,"Offers a great variety of databases."]
[null,"Offers built in tools for data uncertainty analysis (Pedigree matrix and Monte Carlo analysis)"]
[null,"Offers differnet modelling possibilities (visual/graphic or systematic), accepts loopings, offers "]
[]
[null,"Weak points"]
[null,"Big amount of input data is required from user"]
[null,"It is necessary to start the model from scratch"]
[null,"Not focused on pavement or infra-structure"]
[]
[null,"Types of geener asphalt included "]
[]
[null,"Type","Datasets","Comment"]
[null,"Warm mix asphalt","No","Specific datasets are nor directly available but can be modelled"]
[null,"Asphalt with RAP content","No","Specific datasets are nor directly available but can be modelled"]
[null,"Asphalt with crumbed rubber","No","Specific datasets are nor directly available but can be modelled"]
[null,"Others"]
[]
[null,"Main impacts included:"]
[]
[null,"Environmental","Costs","Social"]
[null,"Yes","Yes","Yes"]
[]
[null,"Specific impacts included:"]
[null,"Environmental","Costs","Social"]
[null,"ADP non fossil","EcoInvent costs with eventual adaptations","labour hours"]
[null,"ADP fossil","Can be added manually ","Can be added manually "]
[null,"GWP 100a"]
[null,"ODP"]
[null,"POCP"]
[null,"EP"]
[null,"AP"]
[null,"HTP"]
[null,"FAETP"]
[null,"MAETP"]
[null,"TETP"]
[]
[]
[]
[]
[null,"Compatible with:"]
[null,"EPD (EN 15804)"]
[null,"CWA 17089"]
[null,"ISO 14040 family"]
[]
[null,"Weighing included?","Yes"]
[null,"If yes, what kind of weighing?","Defined by the user"]
[]
[null,"Life cycle stages included"]
[null,"A1 - Extraction and pre-processing of raw materials","Yes","Observation"]
[null,"A2 - Transport to producer","Yes","The inclusion or exclusion of a life cycle phase is determined by the user, therefore it is not always included.\nIntems from databases such as EcoInvent can be cradle to gate systems, thus only including life cycle stages from A1 to A5"]
[null,"A3 - Production","Yes"]
[null,"A4 - Transport to building location","Yes"]
[null,"A5 - Building phase and implementation","Yes"]
[null,"B - Use stage + maintenance","Yes"]
[null,"C1 - Demolition / removal","Yes"]
[null,"C2 - Transport to waste processing facility","Yes"]
[null,"C3 - Waste processing","Yes"]
[null,"C4 - Final waste destination","Yes"]
[null,"D - Recycling","Yes"]
[]
[null,"Focus of tool"]
[null,"Road pavement activities (layers of pavement)","No"]
[null,"Road pavement materials (asphalt/concrete)","Yes"]
[]
[null,"Main product categories","Included?"]
[null,"Asphalt","Yes"]
[null,"Concrete","Yes"]
[null,"Groundworks","Yes"]
[null,"Roads","Yes"]
[null,"Civil works","Yes"]
[null,"Railways","Yes"]
[null,"Waterways","Yes"]
[null,"Other","Yes"]
[]
[null,"Scoping aspects"]
[null,"Lifetime expectation info","Yes","For some datasets this information can be found in the description"]
[null,"Infrastructure (capital goods included)","Yes"]
[null,"Discount rate (for LCC)","Yes"]
[null,"Are the data reviewed?","Yes"]
[null,"Uncertainty information available?","Yes"]
[null,"Tool updating frequency","Yearly"]
[]
[null,"When is the tool applicable?"]
[null,"Planning phase","Yes"]
[null,"Acquisition / Procurement procedure","Yes"]
[null,"Realisation","Yes"]
[null,"Monitoring","No"]
[]
[null,"What can you use it for?"]
[null,"Design an asset and evaluate/optimize sustainability","Yes"]
[null,"Analyze and/or optimize product sustainability","Yes"]
[null,"Procurement procedures","Yes"]
[null,"Monitoring of assets","No"]
[null,"Verification of sustainability claims","Yes"]
[]
[null,"To be used by whom"]
[null,"Road owner ","No"]
[null,"Contracting company","Yes"]
[null,"Product developer","Yes"]
[]
[null,"Examples of major projects which used this tool/dataset"]
[]
[null,"Project name","Link"]
[null,"ITERAMS","http://www.iterams.eu/"]
[null,"Product Environmental Footprint","http://ec.europa.eu/environment/eussd/smgp/dev_methods.htm"]
[null,"USDA - Life Cycle Assessment commons","https://www.lcacommons.gov/content/about"]

{"sheet":"PaLATE","index":20,"n_rows":124,"n_cols":4,"rows_kept":124,"cut":false,"hidden":false,"merged":[[18,1,18,7],[69,3,69,7],[70,3,79,7],[32,3,32,7],[33,3,33,7],[34,3,34,7],[35,3,35,7],[36,3,36,7],[22,1,22,7],[23,1,23,7],[26,1,26,7],[27,1,27,7],[28,1,28,7],[21,1,21,7]]}
[]
[]
[]
[]
[null,"PaLATE"]
[]
[null,"General information"]
[]
[null,"Country coverage","USA"]
[null,"Language","English"]
[null,"Developed by","University of California, Berkeley"]
[null,"Maintained by","University of California, Berkeley"]
[null,"Link to contact","https://rmrc.wisc.edu/request-information/"]
[null,"Link to tool/data","https://rmrc.wisc.edu/palate/"]
[null,"Costs","Free"]
[null,"Data, average age","Data in general is about 5 - 10 years old"]
[]
[null,"Short description"]
[null,"PaLATE is a life cycle costing and life cycle assessment tool developped by members of the University of California, Berkeley.\nThe tool makes the assessment of materials production, construction and maintenance for road pavements and includes emissions from specific equipment use and life cycle costing results including a discount rate. The LCA results are provided in terms of emissions rather than impact categories, apart from that the tool generates graphs showing the results for LCC and LCA. This tool is not compatible with EPD and CWA 17089 standards and considers the USA context for calculations, which are performed using the CML 2001 impact assessment method. The data available in this tool comes from the Carnegie Mellon University EIO-LCA software and the Transportation Energy Data Book. "]
[]
[null,"Strong points"]
[null,"Focused on pavement layers"]
[null,"LCC and LCA combined"]
[null,"Shows alternative scenarios"]
[]
[null,"Weak points"]
[null,"Developed for USA context, thus units are in U.S. customary system"]
[null,"No impact categories for LCA (consumption/emissions inventory of determined substances)"]
[]
[]
[null,"Types of geener asphalt included "]
[]
[null,"Type","Datasets","Comment"]
[null,"Warm mix asphalt","No","Dataset not available and tool does not allow to model new elements"]
[null,"Asphalt with RAP content","Yes"]
[null,"Asphalt with crumbed rubber","Yes"]
[null,"Others","Glass Cullet, RAS, RCA, RCM"]
[]
[null,"Main impacts included:"]
[]
[null,"Environmental","Costs","Social"]
[null,"Yes","Yes","No"]
[]
[null,"Specific impacts included:"]
[null,"Environmental","Costs","Social"]
[null,"Energy consumption (MJ)","UCRF"]
[null,"Water consumption (kg)","Unit Cost [$/(yd^3)]"]
[null,"CO2 eq. (kg)","Actual Cost [$]"]
[null,"NOx (g)"]
[null,"PM10 (g)"]
[null,"SO2 (g)"]
[null,"CO (g)"]
[null,"Hg (g)"]
[null,"Pb (g)"]
[null,"RCRA Hazardous Waste Generated [g]"]
[null,"CDD/CDF [g TEQ]"]
[]
[]
[]
[]
[null,"Compatible with:"]
[null,"Greenroads® Rating System"]
[]
[]
[]
[null,"Weighing included?","No"]
[null,"If yes, what kind of weighing?"]
[]
[null,"Life cycle stages included"]
[null,"A1 - Extraction and pre-processing of raw materials","Yes","Observation"]
[null,"A2 - Transport to producer","Yes","In the use phase only maintenance is accounted for.\nThe interaction between vehicle and road surface is not considered."]
[null,"A3 - Production","Yes"]
[null,"A4 - Transport to building location","Yes"]
[null,"A5 - Building phase and implementation","Yes"]
[null,"B - Use stage + maintenance","Yes"]
[null,"C1 - Demolition / removal","No"]
[null,"C2 - Transport to waste processing facility","No"]
[null,"C3 - Waste processing","No"]
[null,"C4 - Final waste destination","No"]
[null,"D - Recycling","No"]
[]
[null,"Focus of tool"]
[null,"Road pavement activities (layers of pavement)","Yes"]
[null,"Road pavement materials (asphalt/concrete)","Yes"]
[]
[null,"Main product categories","Included?"]
[null,"Asphalt","Yes"]
[null,"Concrete","Yes"]
[null,"Groundworks","No"]
[null,"Roads","Yes"]
[null,"Civil works","No"]
[null,"Railways","No"]
[null,"Waterways","No"]
[null,"Other","No"]
[]
[null,"Scoping aspects"]
[null,"Lifetime expectation info","No"]
[null,"Infrastructure (capital goods included)","No"]
[null,"Discount rate (for LCC)","Yes"]
[null,"Are the data reviewed?","No"]
[null,"Uncertainty information available?","No"]
[null,"Tool updating frequency","Unknown, last update 2003"]
[]
[null,"When is the tool applicable?"]
[null,"Planning phase","Yes"]
[null,"Acquisition / Procurement procedure","Yes"]
[null,"Realisation","Yes"]
[null,"Monitoring","Yes"]
[]
[null,"What can you use it for?"]
[null,"Design an asset and evaluate/optimize sustainability","Yes"]
[null,"Analyze and/or optimize product sustainability","Yes"]
[null,"Procurement procedures","Yes"]
[null,"Monitoring of assets","No"]
[null,"Verification of sustainability claims (EPD)","No"]
[]
[null,"To be used by whom"]
[null,"Road owner ","No"]
[null,"Contracting company","Yes"]
[null,"Product developer","Yes"]
[]
[null,"Examples of major projects which used this tool/dataset"]
[]
[null,"Project name","Link"]

{"sheet":"RealCost_LCCA_FHWA","index":21,"n_rows":124,"n_cols":4,"rows_kept":124,"cut":false,"hidden":false,"merged":[[18,1,18,7],[69,3,69,7],[70,3,79,7],[32,3,32,7],[33,3,33,7],[34,3,34,7],[35,3,35,7],[36,3,36,7],[22,1,22,7],[23,1,23,7],[26,1,26,7],[27,1,27,7],[28,1,28,7],[21,1,21,7]]}
[]
[]
[]
[]
[null,"Real Cost LCCA - FHWA"]
[]
[null,"General information"]
[]
[null,"Country coverage","USA"]
[null,"Language","English"]
[null,"Developed by","Federal Highway Administration - FHWA"]
[null,"Maintained by","Federal Highway Administration - FHWA"]
[null,"Link to contact","https://www.fhwa.dot.gov/contact/"]
[null,"Link to tool/data","https://www.fhwa.dot.gov/infrastructure/asstmgmt/lccasoft.cfm"]
[null,"Costs (licence and/or montlhy subscription)","Free"]
[null,"Data, average age","Unknown"]
[]
[null,"Short description"]
[null,"RealCost was created to provide an instructional tool for pavement design decisionmakers who want to learn about LCCA.allowing to investigate the effects of cost, service life, and economic inputs on life-cycle cost and to provide an actual tool for pavement designers, to incorporate life-cycle costs into pavement investment decisions. The software calculates life-cycle values for agency and user costs associated with construction and rehabilitation. Results are presented in terms of total costs and costs for ageny and user. This tool is useful for planning and tendering/procurement phases."]
[]
[null,"Strong points"]
[null,"Focus on life cycle costing "]
[null,"Relativel simple interface focused on pavements"]
[null,"Provides uncertainty analysis"]
[]
[null,"Weak points"]
[null,"Compliant only with guidelines from the Federal Highway Administration (US)"]
[null,"No environmental performance performed"]
[]
[]
[null,"Types of geener asphalt included "]
[]
[null,"Type","Datasets","Comment"]
[null,"Warm mix asphalt","No"]
[null,"Asphalt with RAP content","No"]
[null,"Asphalt with crumbed rubber","No"]
[null,"Others","No"]
[]
[null,"Main impacts included:"]
[]
[null,"Environmental","Costs","Social"]
[null,"No","Yes","No"]
[]
[null,"Specific impacts included:"]
[null,"Environmental","Costs","Social"]
[null,null,"total costs"]
[null,null,"agency cost"]
[null,null,"user costs"]
[]
[]
[]
[]
[]
[]
[]
[]
[]
[]
[]
[]
[null,"Compatible with:"]
[null,"principles recommended by the Federal Highway Administration (FHWA)"]
[]
[]
[]
[null,"Weighing included? (weighted results)","No"]
[null,"If yes, what kind of weighing?"]
[]
[null,"Life cycle stages included"]
[null,"A1 - Extraction and pre-processing of raw materials","No","Observation"]
[null,"A2 - Transport to producer","No","User can define how many activities will be performed in a project.\nThe life cycle stages are not defined in the tool though."]
[null,"A3 - Production","Yes"]
[null,"A4 - Transport to building location","No"]
[null,"A5 - Building phase and implementation","Yes"]
[null,"B - Use stage + maintenance","Yes"]
[null,"C1 - Demolition / removal","No"]
[null,"C2 - Transport to waste processing facility","No"]
[null,"C3 - Waste processing","No"]
[null,"C4 - Final waste destination","No"]
[null,"D - Recycling","No"]
[]
[null,"Focus of tool"]
[null,"Road pavement activities (layers of pavement)","No"]
[null,"Road pavement materials (asphalt/concrete)","No"]
[]
[null,"Main product categories","Included?"]
[null,"Asphalt","Yes"]
[null,"Concrete","No"]
[null,"Groundworks","No"]
[null,"Roads","Yes"]
[null,"Civil works","No"]
[null,"Railways","No"]
[null,"Waterways","No"]
[null,"Other","No"]
[]
[null,"Scoping aspects"]
[null,"Lifetime expectation info","No"]
[null,"Infrastructure (capital goods included)","No"]
[null,"Discount rate (for LCC)","Yes"]
[null,"Are the data reviewed?","No"]
[null,"Uncertainty information available?","Yes"]
[null,"Tool updating frequency","Unknown, realised in 2004"]
[]
[null,"When is the tool applicable?"]
[null,"Planning phase","Yes"]
[null,"Procurement procedure","Yes"]
[null,"Realisation","No"]
[null,"Monitoring","No"]
[]
[null,"What can you use it for?"]
[null,"Design an asset and evaluate/optimize sustainability","Yes"]
[null,"Analyze and/or optimize product sustainability","No"]
[null,"Procurement procedures","Yes"]
[null,"Monitoring of assets","No"]
[null,"Verification of sustainability claims (EPD)","No"]
[]
[null,"To be used by whom"]
[null,"Road owner ","Yes"]
[null,"Contracting company","Yes"]
[null,"Product developer","No"]
[]
[null,"Examples of major projects which used this tool/dataset"]
[]
[null,"Project name","Link"]

{"sheet":"SEVE","index":22,"n_rows":125,"n_cols":4,"rows_kept":125,"cut":false,"hidden":false,"merged":[[36,3,36,7],[22,1,22,7],[23,1,23,7],[26,1,26,7],[27,1,27,7],[28,1,28,7],[18,1,18,7],[32,3,32,7],[33,3,33,7],[34,3,34,7],[35,3,35,7],[21,1,21,7]]}
[]
[]
[]
[]
[null,"Système d’Evaluation des Variantes Environnementales (SEVE)"]
[]
[null,"General information"]
[]
[null,"Country coverage","World and especially Europe"]
[null,"Language","French, English, German, Spanish and Hungarian"]
[null,"Developed by","Routes de France (program LIFE 2013)"]
[null,"Maintained by","USIRF Routes de France"]
[null,"Link to contact","christine.leroy@routesdefrance.com"]
[null,"Link to tool/data","http://hungarian.seve-tp.com\nhttp://spanish.seve-tp.com\nhttp://international3.seve-tp.com\nhttp://german.seve-tp.com/\nhttp://seve-tp.com/"]
[null,"Costs","License, >500 euros/year"]
[null,"Data, average age","Data in general is about 5 - 10 years old"]
[]
[null,"Short description"]
[null," SEVE is an internet based tool, widely used by industries in France and has been officially recognized by the French government as a tool for evaluating bids in the frame of call for tender, allowing equivalent technical solutions for road maintenance works or building works to be compared on the same level regarding environmental claims. During a call for tenders, the users can enter parameters for each aspect of the project, namely: nature of the layers, constituents, condition of manufacture of the pavement, composition of the application workshops, distances and modes of transport. It is not possible to calculate the environmental impacts of a construction site in an absolute way with this tool and therefore it is not suitable for carrying out a greenhouse gas emissions assessment. The tool is associated with a database of materials, equipment, products, ... common to all users and a base of formulas (concrete, asphalt) specific to each manufacturing station (bituminous materials production tools or concrete). SEVE can thus calculate the environmental indicators of the projects according to the specific environmental cost of the resources present in these bases. This specific cost is calculated according to several criteria: Distance and type of transport from the raw materials to the item Type of fuel Asphalt temperature Percentage of aggregates added to the formula This database is managed independently of the part of the software devolved to the calculations of the environmental costs of the basic solutions and variants. The result is delivered in terms of the specific environmental cost of the resources present in the database which is calculated based on 9 indicators."]
[]
[null,"Strong points"]
[null,"Very useful to compare different project proposals within the frame of a call for tender"]
[null,"Internet based and user friendly"]
[null,"Verification by Bio by Deloitte; Technical advice by IDRRIM"]
[]
[null,"Weak points"]
[null,"Only delivers results for the construction phase of a project"]
[null,"Mandatory internet connection"]
[]
[]
[null,"Types of geener asphalt included "]
[]
[null,"Type","Datasets","Comment"]
[null,"Warm mix asphalt","Yes","Includes: Quantity, Means of transport, Freight operations throughout the construction site "]
[null,"Asphalt with RAP content","Yes","Includes: Quantity, Means of transport, Freight operations throughout the construction site "]
[null,"Asphalt with crumbed rubber","No"]
[null,"Others","Yes","Includes: Quantity, Means of transport, Freight operations throughout the construction site "]
[]
[null,"Main impacts included:"]
[]
[null,"Environmental","Costs","Social"]
[null,"Yes","No","No"]
[]
[null,"Specific impacts included:"]
[null,"Environmental","Costs","Social"]
[null,"global warming (CO2 eq)"]
[null,"energy Consumed \"process\" (MJ) "]
[null,"ton.kilometre (t.km)"]
[null,"Consumption of natural aggregates (t)"]
[null,"Consumption of asphalt aggregates (t)"]
[null,"Consumption of cuttings produced and reused within the project (t)"]
[null,"Consumption of recycled materials (t)"]
[null,"Water management"]
[null,"Consideration of the biodiversity (declarative)"]
[]
[]
[]
[]
[]
[]
[null,"Compatible with:"]
[null,"ISO 14040","Partially"]
[null,"ISO 14044 ","Partially"]
[null,"EN 15 804","no"]
[]
[null,"Weighing included?","Yes"]
[null,"If yes, what kind of weighing?","Not mentioned in user manual"]
[]
[null,"Life cycle stages included"]
[null,"A1 - Extraction and pre-processing of raw materials","Yes","Observation"]
[null,"A2 - Transport to producer","Yes"]
[null,"A3 - Production","Yes"]
[null,"A4 - Transport to building location","Yes"]
[null,"A5 - Building phase and implementation","Yes"]
[null,"B - Use stage + maintenance","Yes"]
[null,"C1 - Demolition / removal","Yes"]
[null,"C2 - Transport to waste processing facility","Yes"]
[null,"C3 - Waste processing","Yes"]
[null,"C4 - Final waste destination","Yes"]
[null,"D - Recycling","Yes"]
[]
[null,"Focus of tool"]
[null,"Road pavement activities (layers of pavement)","Yes"]
[null,"Road pavement materials (asphalt/concrete)","Yes"]
[]
[null,"Main product categories","Included?"]
[null,"Asphalt","Yes"]
[null,"Concrete","Yes"]
[null,"Groundworks","Yes"]
[null,"Roads","Yes"]
[null,"Civil works","Yes"]
[null,"Railways","No"]
[null,"Waterways","No"]
[null,"Other","Yes","Urban works"]
[]
[null,"Scoping aspects"]
[null,"Lifetime expectation info","Yes"]
[null,"Infrastructure (capital goods included)","Yes"]
[null,"Discount rate (for LCC)","No"]
[null,"Are the data reviewed?","Yes"]
[null,"Uncertainty information available?","No"]
[null,"Tool updating frequency","Not regularly updated, last update 2016"]
[]
[null,"When is the tool applicable?"]
[null,"Planning phase","Yes"]
[null,"Acquisition / Procurement procedure","Yes"]
[null,"Realisation","No"]
[null,"Monitoring","No"]
[]
[null,"What can you use it for?"]
[null,"Design an asset and evaluate/optimize sustainability","No"]
[null,"Analyze and/or optimize product sustainability","Yes"]
[null,"Procurement procedures","Yes"]
[null,"Monitoring of assets","No"]
[null,"Verification of sustainability claims (EPD)","Yes"]
[]
[null,"To be used by whom"]
[null,"Road owner ","Yes"]
[null,"Contracting company","Yes"]
[null,"Product developer","No"]
[]
[null,"Examples of major projects which used this tool/dataset"]
[]
[null,"Project name","Link"]
[null,"RD 1089 Project Life + (Europen Union)"]

{"sheet":"SimaPro","index":23,"n_rows":124,"n_cols":4,"rows_kept":124,"cut":false,"hidden":false,"merged":[[21,1,21,7],[18,1,18,7],[69,3,69,7],[70,3,79,7],[32,3,32,7],[33,3,33,7],[34,3,34,7],[35,3,35,7],[36,3,36,7],[22,1,22,7],[23,1,23,7],[26,1,26,7],[27,1,27,7],[28,1,28,7]]}
[]
[]
[]
[]
[null,"SimaPro"]
[]
[null,"General information"]
[]
[null,"Country coverage","Worldwide"]
[null,"Language","English, Dutch, Spanish, French, German, Italian, Chinese and 5 more"]
[null,"Developed by","Pré consultants BV"]
[null,"Maintained by","Pré consultants BV"]
[null,"Link to contact","https://simapro.com/contact/"]
[null,"Link to tool/data","https://simapro.com/databases/"]
[null,"Costs","License, >500 euros/year"]
[null,"Data, average age","Data in general is about 5 - 10 years old"]
[]
[null,"Short description"]
[null,"SimaPro is a general LCA tool developed by Pré Consultants.\nWith simaPro users can calculate the environmental performance of any type of product, including asphalt and other materials for road infrastructure. The software provides by default different databases, such as EcoInvent, Agri-footprint, ELCD and others, for the user to  design the product's life cycle and calculate it's environmental performance. The results are delivered per impact category of the chosen calculation methodology in the correspondent unit. This tool is used by many universities, governmental organizations and private companies for their LCA studies."]
[]
[null,"Strong points"]
[null,"Offers different calculation methodologies and databases."]
[null,"Is available in several different languages."]
[null,"Has a built in tool for estimation of uncertainties."]
[]
[null,"Weak points"]
[null,"User complex interface which demands extensive knowledge from the user"]
[null,"User needs to model the whole road system in order to get results"]
[null,"Not specific for roads or pavement"]
[]
[null,"Types of geener asphalt included "]
[]
[null,"Type","Datasets","Comment"]
[null,"Warm mix asphalt","No","Specific datasets are nor directly available but can be modelled"]
[null,"Asphalt with RAP content","No","Specific datasets are nor directly available but can be modelled"]
[null,"Asphalt with crumbed rubber","No","Specific datasets are nor directly available but can be modelled"]
[null,"Others"]
[]
[null,"Main impacts included:"]
[]
[null,"Environmental","Costs","Social"]
[null,"Yes","Yes","Yes"]
[]
[null,"Specific impacts included:"]
[null,"Environmental (among others)","Costs","Social"]
[null,"ADP non fossil","Can be added manually ","Can be added manually "]
[null,"ADP fossil"]
[null,"GWP 100a"]
[null,"ODP"]
[null,"POCP"]
[null,"EP"]
[null,"AP"]
[null,"HTP"]
[null,"FAETP"]
[null,"MAETP"]
[null,"TETP"]
[]
[]
[]
[]
[null,"Compatible with:"]
[null,"EPD (EN 15804)","Yes"]
[null,"CWA 17089","partially"]
[]
[]
[null,"Weighing included?","Yes"]
[null,"If yes, what kind of weighing?","Determined by the user"]
[]
[null,"Life cycle stages included"]
[null,"A1 - Extraction and pre-processing of raw materials","Yes","Observation"]
[null,"A2 - Transport to producer","Yes","The inclusion or exclusion of a life cycle phase is determined by the user, therefore it is not always included.\nIntems from databases such as EcoInvent can be cradle to gate systems, thus only including life cycle stages from A1 to A5"]
[null,"A3 - Production","Yes"]
[null,"A4 - Transport to building location","Yes"]
[null,"A5 - Building phase and implementation","Yes"]
[null,"B - Use stage + maintenance","Yes"]
[null,"C1 - Demolition / removal","Yes"]
[null,"C2 - Transport to waste processing facility","Yes"]
[null,"C3 - Waste processing","Yes"]
[null,"C4 - Final waste destination","Yes"]
[null,"D - Recycling","Yes"]
[]
[null,"Focus of tool"]
[null,"Road pavement activities (layers of pavement)","No"]
[null,"Road pavement materials (asphalt/concrete)","Yes"]
[]
[null,"Main product categories","Included?"]
[null,"Asphalt","Yes"]
[null,"Concrete","Yes"]
[null,"Groundworks","Yes"]
[null,"Roads","Yes"]
[null,"Civil works","Yes"]
[null,"Railways","Yes"]
[null,"Waterways","Yes"]
[null,"Other","Yes"]
[]
[null,"Scoping aspects"]
[null,"Lifetime expectation info","No","For some datasets this information can be found in the description"]
[null,"Infrastructure (capital goods included)","Yes"]
[null,"Discount rate (for LCC)","No"]
[null,"Are the data reviewed?","Yes"]
[null,"Uncertainty information available?","Yes"]
[null,"Tool updating frequency","Yearly"]
[]
[null,"When is the tool applicable?"]
[null,"Planning phase","Yes"]
[null,"Acquisition / Procurement procedure","Yes"]
[null,"Realisation","Yes"]
[null,"Monitoring","No"]
[]
[null,"What can you use it for?"]
[null,"Design an asset and evaluate/optimize sustainability","Yes"]
[null,"Analyze and/or optimize product sustainability","Yes"]
[null,"Procurement procedures","Yes"]
[null,"Monitoring of assets","No"]
[null,"Verification of sustainability claims","Yes"]
[]
[null,"To be used by whom"]
[null,"Road owner ","No"]
[null,"Contracting company","Yes"]
[null,"Product developer","Yes"]
[]
[null,"Examples of major projects which used this tool/dataset"]
[]
[null,"Project name","Link"]

{"sheet":"SMART_SPP","index":24,"n_rows":124,"n_cols":4,"rows_kept":124,"cut":false,"hidden":false,"merged":[[18,1,18,7],[60,1,60,2],[32,3,32,7],[33,3,33,7],[34,3,34,7],[35,3,35,7],[36,3,36,7],[22,1,22,7],[23,1,23,7],[26,1,26,7],[27,1,27,7],[28,1,28,7],[21,1,21,7]]}
[]
[]
[]
[]
[null,"SMART SPP - innovation through sustainable procurement"]
[]
[null,"General information"]
[]
[null,"Country coverage","European union"]
[null,"Language","German, English"]
[null,"Developed by","Ecoinstitut Barcelona and Öko-Institut e.V. with support of ICLEI – Local Governments for Sustainability"]
[null,"Maintained by","SMART SPP consortium"]
[null,"Link to contact","procurement@iclei.org"]
[null,"Link to tool/data","www.smart-spp.eu"]
[null,"Costs","Free"]
[null,"Data, average age","Data in general is about 5 - 10 years old"]
[]
[null,"Short description"]
[null,"SMART SPP is an excel based calculation tool developed by Ecoinstitut Barcelona and Öko-Institut e.V. with support of ICLEI – Local Governments for Sustainability within the IEE funded project \"SMART SPP - innovation through sustainable procurement\". It has been developed to help you calculate the life cycle costs (LCC) and important emissions (CO2, CO2eq, NOx, SO2, NMHC and PM) of different products, work and services to assist in procurement decision-making. It has been particularly  designed to support decision making when tendering sustainable and innovative products. The tool accounts for all of the costs that will incur during the lifetime of the product, work or service and its related emissions. No database containing datasets relevant to model the life cycle of a road is included in the tool apart from lists of emission factors for different fuels, thus, to calculate the LCC and emissions the user should input the information of embeded emissions for a product manually (to obtain these, they should be calculated with the help of another tool) and provide information about energy usage (source and amount) during the implementation phase. "]
[]
[null,"Strong points"]
[null,"Focus on LCC"]
[null,"Appropriate to evaluate products and services within a tender"]
[null,"Simple interface, excel based tool"]
[]
[null,"Weak points"]
[null,"Only accounts for emissions of five pollutants"]
[null,"No database/datasets included to model roads or other infrastructure"]
[null,"Not in line with any international standard"]
[]
[null,"Types of geener asphalt included "]
[]
[null,"Type","Datasets","Comment"]
[null,"Warm mix asphalt","no","no pre loaded datasets are available"]
[null,"Asphalt with RAP content","no","no pre loaded datasets are available"]
[null,"Asphalt with crumbed rubber","no","no pre loaded datasets are available"]
[null,"Others","no","no pre loaded datasets are available"]
[]
[null,"Main impacts included:"]
[]
[null,"Environmental","Costs","Social"]
[null,"Yes","Yes","No"]
[]
[null,"Specific impacts included:"]
[null,"Environmental","Costs","Social"]
[null,"CO2 emissions","Total costs"]
[null,"NOx","Cumulative costs"]
[null,"SO2"]
[null,"NMHC"]
[null,"PM"]
[]
[]
[]
[]
[]
[]
[]
[]
[]
[]
[null,"Compatible with:"]
[null,"none","this tool is not compatible with any international standard "]
[]
[]
[]
[null,"Weighing included?","No"]
[null,"If yes, what kind of weighing?"]
[]
[null,"Life cycle stages included"]
[null,"A1 - Extraction and pre-processing of raw materials","No","Observation"]
[null,"A2 - Transport to producer","No"]
[null,"A3 - Production","No"]
[null,"A4 - Transport to building location","Yes"]
[null,"A5 - Building phase and implementation","Yes"]
[null,"B - Use stage + maintenance","Yes"]
[null,"C1 - Demolition / removal","No"]
[null,"C2 - Transport to waste processing facility","No"]
[null,"C3 - Waste processing","No"]
[null,"C4 - Final waste destination","No"]
[null,"D - Recycling","No"]
[]
[null,"Focus of tool"]
[null,"Road pavement activities (layers of pavement)","Yes"]
[null,"Road pavement materials (asphalt/concrete)","No"]
[]
[null,"Main product categories","Included?"]
[null,"Asphalt","No"]
[null,"Concrete","No"]
[null,"Groundworks","No"]
[null,"Roads","No"]
[null,"Civil works","No"]
[null,"Railways","No"]
[null,"Waterways","No"]
[null,"Other","No"]
[]
[null,"Scoping aspects"]
[null,"Lifetime expectation info","No"]
[null,"Infrastructure (capital goods included)","No"]
[null,"Discount rate (for LCC)","Yes"]
[null,"Are the data reviewed?","No"]
[null,"Uncertainty information available?","No"]
[null,"Tool updating frequency","Unknown"]
[]
[null,"When is the tool applicable?"]
[null,"Planning phase","No"]
[null,"Acquisition / Procurement procedure","Yes"]
[null,"Realisation","No"]
[null,"Monitoring","No"]
[]
[null,"What can you use it for?"]
[null,"Design an asset and evaluate/optimize sustainability","No"]
[null,"Analyze and/or optimize product sustainability","No"]
[null,"Procurement procedures","Yes"]
[null,"Monitoring of assets","No"]
[null,"Verification of sustainability claims (EPD)","No"]
[]
[null,"To be used by whom"]
[null,"Road owner ","Yes"]
[null,"Contracting company","Yes"]
[null,"Product developer","No"]
[]
[null,"Examples of major projects which used this tool/dataset"]
[]
[null,"Project name","Link"]

{"sheet":"VTTI_UC_Pavement_LCA","index":25,"n_rows":124,"n_cols":4,"rows_kept":124,"cut":false,"hidden":false,"merged":[[18,1,18,7],[69,3,69,7],[70,3,79,7],[32,3,32,7],[33,3,33,7],[34,3,34,7],[35,3,35,7],[36,3,36,7],[22,1,22,7],[23,1,23,7],[26,1,26,7],[27,1,27,7],[28,1,28,7],[21,1,21,7]]}
[]
[]
[]
[]
[null,"VTTI/UC Pavement LCA Tool"]
[]
[null,"General information"]
[]
[null,"Country coverage","USA"]
[null,"Language","English"]
[null,"Developed by","Virginia Tech Transportation Institute and University of Coimbra"]
[null,"Maintained by","Virginia Tech Transportation Institute"]
[null,"Link to contact","j.m.oliveiradossantos@utwente.nl"]
[null,"Link to tool/data"]
[null,"Costs","Free"]
[null,"Data, average age","Data in general is about 5 - 10 years old"]
[]
[null,"Short description"]
[null,"The VTTI/UC asphalt pavement LCA tool is a project-level pavement LCA tool that estimates the environmental burdens associated with materials extraction and production, construction, maintenance and rehabilitation (M&R), transportation of materials, work-zone (WZ) traffic management, usage, and end-of-life (EOL) phases of the life cycle of a flexible road pavement located in the United States. This tools uses the TRACI 2.0 impact assessment method to calculate the environmental performance of the pavement. For the database, data found in literature was used."]
[]
[null,"Strong points"]
[null,"Integrated database "]
[null,"Adopts TRACI 2.0 method as life cycle impact assessment method"]
[]
[]
[null,"Weak points"]
[null,"Only representative of US situation"]
[null,"Not easily available"]
[null,"Accounts exclusively for airborne emissions"]
[]
[null,"Types of geener asphalt included "]
[]
[null,"Type","Datasets","Comment"]
[null,"Warm mix asphalt","Unknown"]
[null,"Asphalt with RAP content","Unknown"]
[null,"Asphalt with crumbed rubber","Unknown"]
[null,"Others","Unknown"]
[]
[null,"Main impacts included:"]
[]
[null,"Environmental","Costs","Social"]
[null,"Yes","No","No"]
[]
[null,"Specific impacts included:"]
[null,"Environmental","Costs","Social"]
[null,"Greenhouse Effect (kg eq.CO2)"]
[null,"Tropospheric Ozone Formation (kg eq. ethylene)"]
[null,"Abiotic depletion"]
[null,"Eutrophication (kg eq.PO4)"]
[null,"Energy Consumption"]
[null,"Human health criteria pollutants"]
[]
[]
[]
[]
[]
[]
[]
[]
[]
[null,"Compatible with:"]
[null,"none","no information available"]
[]
[]
[]
[null,"Weighing included?","No"]
[null,"If yes, what kind of weighing?"]
[]
[null,"Life cycle stages included"]
[null,"A1 - Extraction and pre-processing of raw materials","Yes","Observation"]
[null,"A2 - Transport to producer","Yes","Work-zone traffic management also included"]
[null,"A3 - Production","Yes"]
[null,"A4 - Transport to building location","Yes"]
[null,"A5 - Building phase and implementation","Yes"]
[null,"B - Use stage + maintenance","Yes"]
[null,"C1 - Demolition / removal","Yes"]
[null,"C2 - Transport to waste processing facility","Yes"]
[null,"C3 - Waste processing","Yes"]
[null,"C4 - Final waste destination","Yes"]
[null,"D - Recycling","No"]
[]
[null,"Focus of tool"]
[null,"Road pavement activities (layers of pavement)","Yes"]
[null,"Road pavement materials (asphalt/concrete)","Yes"]
[]
[null,"Main product categories","Included?"]
[null,"Asphalt","Yes"]
[null,"Concrete","No"]
[null,"Groundworks","No"]
[null,"Roads","Yes"]
[null,"Civil works","No"]
[null,"Railways","No"]
[null,"Waterways","No"]
[null,"Other","No"]
[]
[null,"Scoping aspects"]
[null,"Lifetime expectation info","No"]
[null,"Infrastructure (capital goods included)","Yes"]
[null,"Discount rate (for LCC)","No"]
[null,"Are the data reviewed?","No"]
[null,"Uncertainty information available?","No"]
[null,"Tool updating frequency","Unknown"]
[]
[null,"When is the tool applicable?"]
[null,"Planning phase","Yes"]
[null,"Acquisition / Procurement procedure","Yes"]
[null,"Realisation","Yes"]
[null,"Monitoring","No"]
[]
[null,"What can you use it for?"]
[null,"Design an asset and evaluate/optimize sustainability","Yes"]
[null,"Analyze and/or optimize product sustainability","Yes"]
[null,"Procurement procedures","Yes"]
[null,"Monitoring of assets","No"]
[null,"Verification of sustainability claims (EPD)","No"]
[]
[null,"To be used by whom"]
[null,"Road owner ","Yes"]
[null,"Contracting company","Yes"]
[null,"Product developer","Yes"]
[]
[null,"Examples of major projects which used this tool/dataset"]
[]
[null,"Project name","Link"]

{"sheet":"NAPA_EPD_tool","index":26,"n_rows":124,"n_cols":4,"rows_kept":124,"cut":false,"hidden":false,"merged":[[27,1,27,7],[18,1,18,7],[21,1,21,7],[22,1,22,7],[23,1,23,7],[26,1,26,7],[69,3,69,7],[70,3,79,7],[28,1,28,7],[32,3,32,7],[33,3,33,7],[34,3,34,7],[35,3,35,7],[36,3,36,7]]}
[]
[]
[]
[]
[null,"Emerald EPD tool"]
[]
[null,"General information"]
[]
[null,"Country coverage","US"]
[null,"Language","English"]
[null,"Developed by","NAPA (National Asphalt Pavement Association)"]
[null,"Maintained by","NAPA (National Asphalt Pavement Association)"]
[null,"Link to contact","kkanaras@asphaltpavement.org"]
[null,"Link to tool/data","https://asphaltepd.org/"]
[null,"Costs","License, 101-500 euros/year"]
[null,"Data, average age","Data are inputed by the user"]
[]
[null,"Short description"]
[null,"The emarald Ecolabel tool (developed by NAPA) is a tool designed for asphalt producers that creates plant specific and mix specific EPDs that are in line with the LCA process. The LCA process underlining the EPD measures all the environmental impacts associated with all the steps of mix production until the mix leaves the production facility. The emerald Eco label tool makes it easy for a company to input data about what goes into an asphalt mixture and then generate a credible, transparent EPD that summarises the environmental impacts of the mixture. The EPD can also be used by the company to highlight areas for optimisation within the manufacturing process. The emerald EPD tool is particularly helpful to improve fuel use and material selection during the production process."]
[]
[null,"Strong points"]
[null,"Focussing specifically on asphalt EPDs"]
[null,"According to the ISO Standard 14025:2006"]
[null,"Can be used directly by manufacturers entering their own data"]
[]
[null,"Weak points"]
[null,"Only covers asphalt production, not use and end of life"]
[]
[]
[]
[null,"Types of geener asphalt included "]
[]
[null,"Type","Datasets","Comment"]
[null,"Warm mix asphalt","Yes"]
[null,"Asphalt with RAP content","Yes"]
[null,"Asphalt with crumbed rubber"]
[null,"Others","RAS (Recycled asphalt shingles and baghouse fines)"]
[]
[null,"Main impacts included:"]
[]
[null,"Environmental","Costs","Social"]
[null,"Yes"]
[]
[null,"Specific impacts included:"]
[null,"Environmental","Costs","Social"]
[null,"Global warming potential"]
[null,"Ozone Depletion potential"]
[null,"Acidification potential"]
[null,"Eutrophication potential"]
[null,"Smog formation potential"]
[null,"Hazardous waste"]
[null,"Abiotic Deplation for fossil resources"]
[null,"Photochemical Ozone Creation potential"]
[]
[]
[]
[]
[]
[]
[]
[null,"Compatible with:"]
[null,"Comform ISO 14025:2006"]
[null,"Comform CEN EN 15804:2012"]
[]
[]
[null,"Weighing included?","No"]
[null,"If yes, what kind of weighing?"]
[]
[null,"Life cycle stages included"]
[null,"A1 - Extraction and pre-processing of raw materials","Yes","Observation"]
[null,"A2 - Transport to producer","Yes"]
[null,"A3 - Production","Yes"]
[null,"A4 - Transport to building location","No"]
[null,"A5 - Building phase and implementation","No"]
[null,"B - Use stage + maintenance","No"]
[null,"C1 - Demolition / removal","No"]
[null,"C2 - Transport to waste processing facility","No"]
[null,"C3 - Waste processing","No"]
[null,"C4 - Final waste destination","No"]
[null,"D - Recycling","No"]
[]
[null,"Focus of tool"]
[null,"Road pavement activities (layers of pavement)","No"]
[null,"Road pavement materials (asphalt/concrete)","Yes"]
[]
[null,"Main product categories","Included?"]
[null,"Asphalt","Yes"]
[null,"Concrete","No"]
[null,"Groundworks","No"]
[null,"Roads","No"]
[null,"Civil works","No"]
[null,"Railways","No"]
[null,"Waterways","No"]
[null,"Other","No"]
[]
[null,"Scoping aspects"]
[null,"Lifetime expectation info","No"]
[null,"Infrastructure (capital goods included)","No"]
[null,"Discount rate (for LCC)","No"]
[null,"Are the data reviewed?","No"]
[null,"Uncertainty information available?","No"]
[null,"Tool updating frequency","unknown"]
[]
[null,"When is the tool applicable?"]
[null,"Planning phase","No"]
[null,"Acquisition / Procurement procedure","No"]
[null,"Realisation","No"]
[null,"Monitoring","No"]
[]
[null,"What can you use it for?"]
[null,"Design an asset and evaluate/optimize sustainability","Yes"]
[null,"Analyze and/or optimize product sustainability","Yes"]
[null,"Procurement procedures","No"]
[null,"Monitoring of assets","No"]
[null,"Verification of sustainability claims (EPD)","Yes"]
[]
[null,"To be used by whom"]
[null,"Road owner ","No"]
[null,"Contracting company","No"]
[null,"Product developer","Yes"]
[]
[null,"Examples of major projects which used this tool/dataset"]
[]
[null,"Project name","Link"]

{"sheet":"Gabi","index":27,"n_rows":124,"n_cols":4,"rows_kept":124,"cut":false,"hidden":false,"merged":[[27,1,27,7],[18,1,18,7],[21,1,21,7],[22,1,22,7],[23,1,23,7],[26,1,26,7],[69,3,69,7],[70,3,79,7],[28,1,28,7],[32,3,32,7],[33,3,33,7],[34,3,34,7],[35,3,35,7],[36,3,36,7]]}
[]
[]
[]
[]
[null,"Gabi"]
[]
[null,"General information"]
[]
[null,"Country coverage","Worldwide"]
[null,"Language","English, Dutch, Spanish, French, German, Italian, Chinese and 5 more"]
[null,"Developed by","Sphera Solutions GmbH"]
[null,"Maintained by","Sphera Solutions GmbH"]
[null,"Link to contact","http://www.gabi-software.com/international/contact/"]
[null,"Link to tool/data","http://www.gabi-software.com/international/databases/gabi-data-search/"]
[null,"Costs","License, >500 euros/year"]
[null,"Data, average age","Data is reviewed on a yearly basis"]
[]
[null,"Short description"]
[null,"Gabi is a general LCA tool developed and maintained by Sphera Solutions GmbH.\nWith Gabi users can calculate the environmental performance of any type of product, including asphalt and other materials for road infrastructure. The software provides by default different databases, such as EcoInvent, NREL, Environmental Footprint database and others, for the user to  design the product's life cycle and calculate it's environmental performance. The results are delivered per impact category of the chosen calculation methodology in the correspondent unit. This tool is used by many universities, governmental organizations and private companies for their LCA studies."]
[]
[null,"Strong points"]
[null,"Offers different calculation methodologies and databases."]
[null,"Is available in several different languages."]
[null,"Has a built in tool for estimation of uncertainties."]
[]
[null,"Weak points"]
[null,"User complex interface which demands extensive knowledge from the user"]
[null,"User needs to model the whole road system in order to get results"]
[null,"Not specific for roads or pavement"]
[]
[null,"Types of geener asphalt included "]
[]
[null,"Type","Datasets","Comment"]
[null,"Warm mix asphalt","No","Specific datasets are nor directly available but can be modelled"]
[null,"Asphalt with RAP content","No","Specific datasets are nor directly available but can be modelled"]
[null,"Asphalt with crumbed rubber","No","Specific datasets are nor directly available but can be modelled"]
[null,"Others"]
[]
[null,"Main impacts included:"]
[]
[null,"Environmental","Costs","Social"]
[null,"Yes"]
[]
[null,"Specific impacts included:"]
[null,"Environmental (among others)","Costs","Social"]
[null,"ADP non fossil"]
[null,"ADP fossil"]
[null,"GWP 100a"]
[null,"ODP"]
[null,"POCP"]
[null,"EP"]
[null,"AP"]
[null,"HTP"]
[null,"FAETP"]
[null,"MAETP"]
[null,"TETP"]
[]
[]
[]
[]
[null,"Compatible with:"]
[null,"EPD (EN 15804)","Yes"]
[]
[]
[]
[null,"Weighing included?","Yes"]
[null,"If yes, what kind of weighing?","Determined by the user"]
[]
[null,"Life cycle stages included"]
[null,"A1 - Extraction and pre-processing of raw materials","Yes","Observation"]
[null,"A2 - Transport to producer","Yes","The inclusion or exclusion of a life cycle phase is determined by the user, therefore it is not always included.\nIntems from databases such as EcoInvent can be cradle to gate systems, thus only including life cycle stages from A1 to A5"]
[null,"A3 - Production","Yes"]
[null,"A4 - Transport to building location","Yes"]
[null,"A5 - Building phase and implementation","Yes"]
[null,"B - Use stage + maintenance","Yes"]
[null,"C1 - Demolition / removal","Yes"]
[null,"C2 - Transport to waste processing facility","Yes"]
[null,"C3 - Waste processing","Yes"]
[null,"C4 - Final waste destination","Yes"]
[null,"D - Recycling","Yes"]
[]
[null,"Focus of tool"]
[null,"Road pavement activities (layers of pavement)","No"]
[null,"Road pavement materials (asphalt/concrete)","Yes"]
[]
[null,"Main product categories","Included?"]
[null,"Asphalt","Yes"]
[null,"Concrete","Yes"]
[null,"Groundworks","Yes"]
[null,"Roads","Yes"]
[null,"Civil works","Yes"]
[null,"Railways","Yes"]
[null,"Waterways","Yes"]
[null,"Other","Yes"]
[]
[null,"Scoping aspects"]
[null,"Lifetime expectation info","No","For some datasets this information can be found in the description"]
[null,"Infrastructure (capital goods included)","Yes"]
[null,"Discount rate (for LCC)","No"]
[null,"Are the data reviewed?","Yes"]
[null,"Uncertainty information available?","Yes"]
[null,"Tool updating frequency","Yearly"]
[]
[null,"When is the tool applicable?"]
[null,"Planning phase","Yes"]
[null,"Acquisition / Procurement procedure","Yes"]
[null,"Realisation","Yes"]
[null,"Monitoring","No"]
[]
[null,"What can you use it for?"]
[null,"Design an asset and evaluate/optimize sustainability","Yes"]
[null,"Analyze and/or optimize product sustainability","Yes"]
[null,"Procurement procedures","Yes"]
[null,"Monitoring of assets","No"]
[null,"Verification of sustainability claims","Yes"]
[]
[null,"To be used by whom"]
[null,"Road owner ","No"]
[null,"Contracting company","Yes"]
[null,"Product developer","Yes"]
[]
[null,"Examples of major projects which used this tool/dataset"]
[]
[null,"Project name","Link"]

{"sheet":"EmptyTemplate","index":28,"n_rows":124,"n_cols":4,"rows_kept":124,"cut":false,"hidden":false,"merged":[[70,3,79,7],[18,1,18,7],[32,3,32,7],[33,3,33,7],[34,3,34,7],[35,3,35,7],[36,3,36,7],[69,3,69,7],[21,1,21,7],[22,1,22,7],[23,1,23,7],[26,1,26,7],[27,1,27,7],[28,1,28,7]]}
[]
[]
[]
[]
[null,"<Add tool name here>"]
[]
[null,"General information"]
[]
[null,"Country coverage"]
[null,"Language"]
[null,"Developed by"]
[null,"Maintained by"]
[null,"Link to contact"]
[null,"Link to tool/data"]
[null,"Costs"]
[null,"Data, average age"]
[]
[null,"Short description"]
[]
[]
[null,"Strong points"]
[]
[]
[]
[]
[null,"Weak points"]
[]
[]
[]
[]
[null,"Types of geener asphalt included "]
[]
[null,"Type","Datasets","Comment"]
[null,"Warm mix asphalt"]
[null,"Asphalt with RAP content"]
[null,"Asphalt with crumbed rubber"]
[null,"Others"]
[]
[null,"Main impacts included:"]
[]
[null,"Environmental","Costs","Social"]
[]
[]
[null,"Specific impacts included:"]
[null,"Environmental","Costs","Social"]
[]
[]
[]
[]
[]
[]
[]
[]
[]
[]
[]
[]
[]
[]
[]
[null,"Compatible with:"]
[]
[]
[]
[]
[null,"Weighing included?"]
[null,"If yes, what kind of weighing?"]
[]
[null,"Life cycle stages included"]
[null,"A1 - Extraction and pre-processing of raw materials",null,"Observation"]
[null,"A2 - Transport to producer"]
[null,"A3 - Production"]
[null,"A4 - Transport to building location"]
[null,"A5 - Building phase and implementation"]
[null,"B - Use stage + maintenance"]
[null,"C1 - Demolition / removal"]
[null,"C2 - Transport to waste processing facility"]
[null,"C3 - Waste processing"]
[null,"C4 - Final waste destination"]
[null,"D - Recycling"]
[]
[null,"Focus of tool"]
[null,"Road pavement activities (layers of pavement)"]
[null,"Road pavement materials (asphalt/concrete)"]
[]
[null,"Main product categories","Included?"]
[null,"Asphalt"]
[null,"Concrete"]
[null,"Groundworks"]
[null,"Roads"]
[null,"Civil works"]
[null,"Railways"]
[null,"Waterways"]
[null,"Other"]
[]
[null,"Scoping aspects"]
[null,"Lifetime expectation info"]
[null,"Infrastructure (capital goods included)"]
[null,"Discount rate (for LCC)"]
[null,"Are the data reviewed?"]
[null,"Uncertainty information available?"]
[null,"Tool updating frequency"]
[]
[null,"When is the tool applicable?"]
[null,"Planning phase"]
[null,"Acquisition / Procurement procedure"]
[null,"Realisation"]
[null,"Monitoring"]
[]
[null,"What can you use it for?"]
[null,"Design an asset and evaluate/optimize sustainability"]
[null,"Analyze and/or optimize product sustainability"]
[null,"Procurement procedures"]
[null,"Monitoring of assets"]
[null,"Verification of sustainability claims (EPD)"]
[]
[null,"To be used by whom"]
[null,"Road owner "]
[null,"Contracting company"]
[null,"Product developer"]
[]
[null,"Examples of major projects which used this tool/dataset"]
[]
[null,"Project name","Link"]

{"sheet":"Admin","index":29,"n_rows":16,"n_cols":8,"rows_kept":16,"cut":false,"hidden":false,"merged":[]}
[]
[null,"Admin"]
[null,null,"[Hidden background sheet]"]
[]
[null,null,"Lists"]
[null,null,null,"Lists used throughout the tool. "]
[]
[null,null,null,"List_YesNo",null,"List_UserCosts",null,"List_ReqPref"]
[null,null,null,"Yes",null,"Free",null,"Requirement"]
[null,null,null,"No",null,"License, 1-100 euros/year",null,"Preference"]
[null,null,null,null,null,"License, 101-500 euros/year",null,"-"]
[null,null,null,null,null,"License, >500 euros/year"]
[]
[null,null,"Controls"]
[]
[null,null,"CurrentView","Current View","Developer"]

{"sheet":"Styles","index":30,"n_rows":38,"n_cols":19,"rows_kept":38,"cut":false,"hidden":false,"merged":[]}
[]
[null,"Styles sheet"]
[null,null,"Version 0.1 for testing. Developed by Karlien Wouters."]
[]
[null,null,"Instructions for use of this template"]
[]
[null,null,null,"- Each used cell in the workbook should be formatted using the appropriate cell from the overview below. Gridlines should be switched off."]
[null,null,null,"- It is recommended to add the Styles list to the Quick Access Toolbar."]
[null,null,null,"- When copying from another workbook, always paste as values (ctrl + alt + V) to avoid cluttering the styles list."]
[null,null,null,"- Only delete this styles sheet upon finalisation of externally shared workbooks. Leave it in internal work (instead you can hide it). This way you ensure all styles remain available in the workbook."]
[]
[null,null,"Styles overview",null,null,null,null,null,null,null,null,null,null,null,null,"(hidden)"]
[]
[null,null,null,"Headers",null,null,null,null,null,"Table cells",null,null,null,null,null,"Standard Excel Styles"]
[null,null,null,null,"These styles are used for structuring the workbook. Not used for headers of tables.",null,null,null,null,null,"These cells are use for structuring  tables. Combine with input and calculation styles as appropriate.",null,null,null,null,null,"Kept for consistency, but not recommended for use."]
[null,null,null,null,"0_Header1",null,"Used for the title of each worksheet",null,null,null,"0_TableHeader",null,"Used for table headers",null,null,null,"Normal"]
[null,null,null,null,"0_Header2",null,"Used for sub-headers",null,null,null,"0_TableFirstColumn",null,"Used for the first column(s) of tables.",null,null,null,"Bad",null,"Use 0_Warning."]
[null,null,null,null,"0_Header3",null,"Used for sub-headers",null,null,null,"0_TableCell",null,"Used for table cells (if input of calculation cells are not appropriate)",null,null,null,"Good"]
[null,null,null,null,null,null,null,null,null,null,null,null,null,null,null,null,"Neutral"]
[null,null,null,"Input Styles",null,null,null,null,null,"Transperancy styles",null,null,null,null,null,null,"Calculation",null,"Use 0_CalculationX"]
[null,null,null,null,"These styles are used for inputs. They should only containd hard-coded values, no formulae.",null,null,null,null,null,"These styles are used to enscure transperancy/traceability of the work.",null,null,null,null,null,"Check Cell",null,"Use 0_Check"]
[null,null,null,null,"0_InputDev",null,"Used for inputs entered during workbook development. These inputs should in general not be changed by the user.",null,null,null,"0_Comment",null,"Used for comments and descriptions.",null,null,null,"Explanatory Text",null,"Use 0_Comment"]
[null,null,null,null,"0_InputUser",null,"Used for inputs that should be filled by of can be changed by the tool user.",null,null,null,"0_Source",null,"Used to indicate the source of inputs (make sure references are clear and complete).",null,null,null,"Followed Hyperlink"]
[null,null,null,null,"0_InputDropDown",null,"Used for inputs selected from a drop-down list.",null,null,null,"0_NamedRange",null,"Used to state the name of named ranges (typically top/left of the range).",null,null,null,"Hyperlink"]
[null,null,null,null,"0_InputFixed",null,"Used for inputs that should never change (e.g. conversion factors)",null,null,null,"0_Warning",null,"Used for warning texts.",null,null,null,"Input",null,"Use the appropriate input style"]
[null,null,null,null,null,null,null,null,null,null,"0_Check",null,"Used for checks (typically returning TRUE or FALSE) or simple counters.",null,null,null,"Linked Cell",null,"Use the appropriate input style"]
[null,null,null,"Calcuation style",null,null,null,null,null,null,"0_LinkedCell",null,"Used for linked cells (e.g VBA of form controls)",null,null,null,"Note",null,"Use 0_Comment"]
[null,null,null,null,"These styles are use for calculations and should contain formulae, not hard-coded numbers",null,null,null,null,null,null,null,null,null,null,null,"Output",null,"Use 0_CalculationX"]
[null,null,null,null,"0_Calculation1",null,"Use the same shade for neighboring cells with the same formula.",null,null,"Accent Colors",null,null,null,null,null,null,"Warning Text",null,"Uae 0_Warning"]
[null,null,null,null,"0_Calculation2",null,"i.e. cells in the same shade should fill down/right."]
[null,null,null,null,"0_Calculation3",null,"Minimise the use of different shades. i.e. alternate two shades",null,null,null,"Accent1"]
[null,null,null,null,"0_Calculation4",null,"if each row/column contains a different formulae.",null,null,null,"Accent2"]
[null,null,null,null,"0_Calculation5",null,null,null,null,null,"Accent3"]
[null,null,null,null,"0_CalculationSum",null,"Used for sum rows or other highlighted calculations.",null,null,null,"Accent4"]
[null,null,null,null,null,null,null,null,null,null,"Accent5"]
[null,null,null,null,null,null,null,null,null,null,"Accent6"]
[null,null,null,null,null,null,null,null,null,null,"Accent7"]
[null,null,null,null,null,null,null,null,null,null,"Accent8"]